Workbook

Sheet Intro and Data Inputs
B1: GASB 75 Alternative Measurement Method for LEOFF 1
B3: Welcome to the Office of the State Actuary's (OSA) LEOFF 1 AMM Online Tool for FY 2021
C4: Intended Use
C5: This Alternative Measurement Method (AMM) Online Tool is intended to assist local government employers in Washington State covering Law Enforcement Officers' and Fire Fighters' Retirement System (LEOFF) Plan 1 retiree healthcare costs with their reporting requirements for Other Postemployment Benefits (OPEB) healthcare obligations under Governmental Accounting Standards Board (GASB) Statement No. 75. Please review the following explanation and directions below, along with the Additional Disclosures and Certification Letter, before proceeding.
C7: Requirements to use this Tool
C8: (1) Employers must be local government entities in Washington State. Employers outside the State of Washington are not eligible to use this Tool.
C9: (2) Covered members must be active in or retired from LEOFF 1. Please see the Public Employees Benefits Board (PEBB) AMM Online Tool for reporting PEBB healthcare obligations.
C10: (3) Employers must have less than 100 total LEOFF 1 members.
C12: Steps to Calculate your Reporting Results
C13: (1) Enable Macros. For Excel versions 2010 or greater, there should be a tan strip across the top of the screen when you open Excel - please allow macros to run.
C14: (2) Gather member information on the age and annual payroll (if any) of active members and retirees. Please see the Additional Disclosures tab for further guidance.
C15: (3) Group active member and retiree information by the age divisions according to the Data Inputs table below.
C16: (4) Calculate the average age for each age division.
C17: (5) Copy your data into the Data Inputs table below. There has been an effort by OSA to screen unreasonable inputs into the Tool. However, the ultimate responsibility of the accuracy of the inputs, and in effect the results, falls on the user of the Tool.
C18: (6) Enter your ending Total OPEB Liability from the prior year reporting (if available). This will serve as the beginning Total OPEB Liability for this year. The tool will estimate a beginning OPEB liability if you did not report OPEB liabilities last year.
C19: (7) Press the Calculate button. Please print the entire workbook for your records (5 pages).
C22: Data Inputs
C23: LEOFF 1 Members (Actives and Retirees)
C24: Age Divisions | D24: 55-64 | E24: 65-69 | F24: 70-74 | G24: 75+
C25: Number of Members | D25: 0 | E25: 0 | F25: 0 | G25: 0
C26: Average Age | D26: 64 | E26: 68 | F26: 73 | G26: 81
C27: Annual Covered Employee Payroll* = | E27: 0
C28: Beginning Total OPEB Liability** = | E28: 0
C29: *Will be $0 if your data does not include any currently active LEOFF 1 members.
C30: **Enter $0 if you did not report OPEB liabilities last year; the Tool will estimate a beginning Total OPEB Liability for you.
I43: Page 1 of 5

Sheet GASB Results
B1: LEOFF 1 - GASB 75 Reporting Results and Required Disclosures
C3: Schedule of Changes in Total OPEB Liability and Related Ratios
C4: ="Measurement Date of June 30, "&Lookups!L17 -> Measurement Date of June 30, 2021
C5: Total OPEB Liability (TOL) | F5: What's New in this FY21 Tool?
C6: Service Cost1 | E6: =IF('Intro and Data Inputs'!E28>0, ROUND(Log!L5,0) * 'Intro and Data Inputs'!E28/Log!L6, ROUND(Log!L5,0)) -> 0 | F6: And how do these changes impact my resulting OPEB liabilities? ↑or↓
C7: Interest Cost | E7: =ROUND(((E6+E14)*Lookups!L1+E10*((1+Lookups!L1)^0.5-1)),0) -> 0
C8: Changes in Experience Data and Assumptions | E8: =E12-E6-E7-E10 -> 0 | F8: - New discount rate as of June 30th, 2021. ↑
C9: Changes in Benefit Terms | E9: 0
C10: Estimated Benefit Payments | E10: =IF('Intro and Data Inputs'!E28>0,-ROUND(SUM(Log!G7:J7)/AVERAGE(Trends!D4:H4) * 'Intro and Data Inputs'!E28/Log!L6,0), -ROUND(SUM(Log!G7:J7)/AVERAGE(Trends!D4:H4),0)) -> 0 | F10: - Updated demographic assumptions (mortality rates) consistent with our 2013-18 Demographic Experience Study. ↑
C11: Other | E11: 0
C12: Net Change in Total OPEB Liability | E12: =E15-E14 -> 0
C14: Total OPEB Liability - Beginning | E14: =IF('Intro and Data Inputs'!E28>0,'Intro and Data Inputs'!E28,ROUND((Log!L6-E6-E10)/(1+Lookups!L1),0)) -> 0 | F14: - Rolled-forward expected costs to align with new measurement date. ↑
C15: Total OPEB Liability - Ending | E15: =ROUND(Log!L11,0) -> 0
C17: Covered Employee Payroll | E17: ='Intro and Data Inputs'!E27 -> 0
C18: TOL as a Percentage of Covered Payroll | E18: =IFERROR(E15/E17, "N/A") -> N/A
C20: ="OPEB Expense for Fiscal Year Ending June 30, " & Lookups!L17 -> OPEB Expense for Fiscal Year Ending June 30, 2021
D21: Service Cost1 | E21: ='GASB Results'!E6 -> 0
D22: Interest Cost | E22: ='GASB Results'!E7 -> 0
D23: Changes in Experience Data and Assumptions | E23: ='GASB Results'!E8 -> 0
D24: Changes in Benefit Terms | E24: =E9 -> 0
D25: Other Changes in Fiduciary Net Position | E25: 0
D26: Total OPEB Expense | E26: =SUM(E21:E25) -> 0
D28: Transactions Subsequent to Measurement Date | E28: N/A1
C30: Sensitivity Analysis
C31: Total OPEB Liability | E31: 1% Decrease | F31: Current | G31: 1% Increase
C32: Discount Rate | E32: =ROUND(Log!L26,0) -> 0 | F32: ='GASB Results'!E15 -> 0 | G32: =ROUND(Log!L31,0) -> 0
C33: Healthcare Trend | E33: =ROUND(Log!L16,0) -> 0 | F33: ='GASB Results'!E15 -> 0 | G33: =ROUND(Log!L21,0) -> 0
C35: Methodology
C36: Actuarial Valuation Date | E36: ="6/30/"&Lookups!L17 -> 6/30/2021
C37: Actuarial Measurement Date | E37: =E36 -> 6/30/2021
C38: Actuarial Cost Method | E38: Entry Age1
C39: Amortization Method | E39: Recognized Immediately
C40: Asset Valuation Method | E40: N/A (No Assets)
C41: Assumptions
C42: Discount Rate2
C43: Beginning of Measurement Year | E43: =Lookups!L1 -> 0.0221
C44: End of Measurement Year | E44: =Lookups!L2 -> 0.0216
C45: Healthcare Trend Rates3
D46: Medical Costs | E46: Initial rate is about 5.3%, trends down to about 5.0% in the 2020's.
D47: Long-Term Care | E47: 0.045
D48: Medicare Part B Premiums | E48: Approximately 5.0%, varies by year.
C49: Mortality Rates (Assume 100% Male Population)1
C50: Base Mortality Table | D50: Base Mortality Table | E50: PubS.H-2010 (Public Safety) Blended 50%/50% Healthy/Disabled
C51: Age Setback | D51: Age Setback | E51: -1 year Healthy / 0 years Disabled
C52: Mortality Improvements | D52: Mortality Improvements | E52: MP-2017 Long-Term Rates
C53: Projection Period | D53: Projection Period | E53: Generational
C54: Medicare Participation Rate | E54: 1
C55: 1See the Additional Disclosures tab for more details and guidance.
C56: 2Source: Bond Buyer General Obligation 20-Bond Municipal Index.
C57: 3For additional detail on the healthcare trend rates, please see OSA's 2020 LEOFF 1 OPEB Actuarial Valuation Report.
H59: Page 2 of 5

Sheet Additional Disclosures
B1: LEOFF 1 - AMM Online Tool Additional Disclosures
C3: This tab is intended to:
C4: (1) Provide guidance on concepts that require users to apply their judgment and/or consult with their auditor.
C5: (2) Document the assumptions and methods we employed for purposes of this AMM Online Tool that vary from the underlying actuarial valuation we performed at the plan-level.
C7: Data Inputs:
C9: We assume the inputs you provide are as of the measurement date of 6/30/2021. If you are not able to determine the counts and average ages as of that time, utilizing your current data or as of your reporting date may be reasonable. Please consult with your auditor for further guidance.
C11: Transactions Subsequent to Measurement Date (for GASB 75 Reporting):
C13: ="If your reporting date is after the 6/30/"&ToolYear&" measurement date, you will include the dollar amount of benefits paid between measurement and reporting date in your accounting results."&" You may use your actual benefit payments for this period (if known), or our estimate as provided below. Please see the BARS Manual from the State Auditor's Office for more information on how to incorporate this into your financial statements." -> If your reporting date is after the 6/30/2021 measurement date, you will include the dollar amount of benefits paid between measurement and reporting date in your accounting results. You may use your actual benefit payments for this period (if known), or our estimate as provided below. Please see the BARS Manual from the State Auditor's Office for more information on how to incorporate this into your financial statements.
C15: ="Based upon your data inputs, we estimate your first-year projected monthly benefits are "&TEXT(ROUND(Log!L12/12,0),"$#,##")&". If your reporting date is after the measurement date, multiply this amount by the number of months between your FYE and the measurement date. We believe this approach will serve as a reasonable estimate under this AMM Online Tool." -> Based upon your data inputs, we estimate your first-year projected monthly benefits are $. If your reporting date is after the measurement date, multiply this amount by the number of months between your FYE and the measurement date. We believe this approach will serve as a reasonable estimate under this AMM Online Tool.
C17: ="In other words, if you have a 12/31/"&ToolYear&" reporting date, your estimated transactions subsequent to the measurement date would be "&TEXT(ROUND(Log!L12/12,0),"$#,##")&" x 6 = "&TEXT(ROUND(Log!L12/2,0),"$#,##")&". Additionally, based upon guidance from the State Auditor's Office, the estimated current portion due of the Total OPEB Liability for the financial statement reporting would be "&TEXT(ROUND(Log!L12/12,0),"$#,##")&" x 12 = "&TEXT(ROUND(Log!L12,0),"$#,##")&". Other methods of determining these liabilities may also be reasonable." -> In other words, if you have a 12/31/2021 reporting date, your estimated transactions subsequent to the measurement date would be $ x 6 = $. Additionally, based upon guidance from the State Auditor's Office, the estimated current portion due of the Total OPEB Liability for the financial statement reporting would be $ x 12 = $. Other methods of determining these liabilities may also be reasonable.
C19: OSA actuarial reports relied upon for purposes of this AMM Online Tool:
C20: 2020 LEOFF 1 OPEB Actuarial Valuation Report (AVR)
C22: Specific assumptions we made when developing this AMM Online Tool:
C24: ◊ For consistency with the 2020 LEOFF 1 OPEB AVR, we assumed any remaining active members will retire immediately following the measurement date.
C25: ▪ This approach inherently assumes that all liabilities are fully earned and the Service Cost equals zero. In other words, the Entry Age Normal Total OPEB Liability is by definition equal to the Present Value of Future Benefits. Further, we implicitly do not need to make an assumption with respect to Projected Salary Changes.
C27: ◊ Each cohort is assumed to be 100 percent male.
C28: ▪ As of the measurement date, greater than 98 percent of the eligible LEOFF 1 population is male. For purposes of this AMM Online Tool, we believe this simplification is reasonable and note that it only impacts the mortality assumptions selected (since the medical assumptions are already blended based upon the actual gender distribution within the eligible population). We will continue to monitor this assumption for future versions of the Tool.
C30: ◊ We selected the four age-based cohorts for this AMM Online Tool based upon the overall distribution of the LEOFF 1 eligible population. We believe this grouping approach is reasonable for purposes of the AMM.
C32: ="◊ Medical and long-term care costs were projected from June 30, 2020, to the measurement date of June 30, "&ToolYear&", using the healthcare trend rates detailed in the 2020 LEOFF 1 OPEB AVR." -> ◊ Medical and long-term care costs were projected from June 30, 2020, to the measurement date of June 30, 2021, using the healthcare trend rates detailed in the 2020 LEOFF 1 OPEB AVR.
C34: We believe these approaches and simplifying assumptions are reasonable for purposes of this AMM.
C36: We would like to hear your feedback if you used this Tool. Please send us an email at:
C37: State.Actuary@leg.wa.gov
C39: Glossary - Link to the OSA website that includes definitions for frequently used actuarial and OPEB terms.
D40: Page 3 of 5

Sheet Certification Letter
B1: LEOFF 1 - GASB 75 AMM Online Tool Actuarial Certification
D59: Page 4 of 5
B61: LEOFF 1 - GASB 75 AMM Online Tool Actuarial Certification (Continued)
D119: Page 5 of 5

Sheet Inactive (hidden)
A1: Inactives | B1: 0 | D1: Medical | E1: Medicare | G1: LTC - Inst. | H1: LTC - Non Inst. | J1: Medical - Age<65 | L1: Medical - Age>=65 | N1: Medicare | Q1: LTC - Inst. | T1: LTC - Non Inst. | X1: Medical | Y1: Medicare | AB1: LTC - Inst. | AC1: LTC - Non Inst. | AI1: Pct Male | AJ1: 1 | AP1: PV of
A2: Year | D2: Cost | E2: Cost | G2: Cost | H2: Cost | J2: Trend | K2: Rel Trend | L2: Trend | M2: Rel Trend | N2: Trend | O2: Rel Trend | Q2: Rate | R2: Trend | S2: Rel Trend | T2: Rate | U2: Trend | V2: Rel Trend | X2: Net Cost | Y2: Net Cost | Z2: Total | AB2: Net Cost | AC2: Net Cost | AD2: Total | AF2: Grand Total | AH2: Mort - M | AI2: Mort - F | AJ2: Mortality | AK2: Survive | AL2: Interest | AM2: Pay Timing | AP2: Benefits
A3: =ToolYear -> 2021 | B3: 81 | D3: =VLOOKUP(B3,Lookups!A:B,2) -> 16340.26657 | E3: =VLOOKUP(B3,Lookups!A:C,3) -> 1816.919755 | G3: =VLOOKUP(B3,Lookups!A:D,4) -> 212294.2268 | H3: =VLOOKUP(B3,Lookups!A:E,5) -> 163734.842 | J3: =VLOOKUP(A3,Trends!$A$3:$H$94,IF(ExFlg=0,4,2))+Sens -> 1.051 | K3: 1 | L3: =VLOOKUP(A3,Trends!$A$3:$H$94,IF(ExFlg=0,5,3))+Sens -> 1.051 | M3: 1 | N3: =VLOOKUP(A3,Trends!$A$3:$H$94,6)+Sens -> 1.049 | O3: 1 | Q3: =IF(B3<=120,VLOOKUP(B3,Lookups!$A$3:$I$103,8,FALSE),"") -> 0.02628 | R3: =VLOOKUP(A3,Trends!$A$3:$H$94,7)+Sens -> 1.045 | S3: 1 | T3: =IF(B3<=120,VLOOKUP(B3,Lookups!$A$3:$I$103,9,FALSE),"") -> 0.03588 | U3: =VLOOKUP(A3,Trends!$A$3:$H$94,8)+Sens -> 1.045 | V3: 1 | X3: =IF(B3<=120,IF(B3<65,D3*K3,D3*M3),"") -> 16340.26657 | Y3: =IF(B3<=120,E3*O3,"") -> 1816.919755 | Z3: =IF(B3<=120,X3+Y3,"") -> 18157.18632 | AB3: =IF(B3<=120,G3*Q3*S3,"") -> 5579.09228 | AC3: =IF(B3<=120,H3*T3*V3,"") -> 5874.806131 | AD3: =IF(B3<=120,AB3+AC3,"") -> 11453.89841 | AF3: =IF(B3<=120,Z3+AD3, "") -> 29611.08473 | AH3: =IF($B3<121,VLOOKUP($B3,Lookups!A:F,6)*(1-VLOOKUP($B3,Lookups!$N$3:$P$103,2))^($A3-$A$3),"") -> 0.05541696125 | AI3: =IF($B3<121,VLOOKUP($B3,Lookups!A:G,7)*(1-VLOOKUP($B3,Lookups!$N$3:$P$103,3))^($A3-$A$3),"") -> 0.04610992009 | AJ3: =IF(B3<121,(PCTMALE*AH3+(1-PCTMALE)*AI3),"") -> 0.05541696125 | AK3: 1 | AL3: 1 | AM3: =IF(AJ3="","",ROUND((13/24)+(11/24)*(1/(1+IntRt))*(1-AJ3),6)) -> 0.96524 | AP3: =IF(B3<=120,AF3*AK3*AL3*AM3,"") -> 28581.80343
A4: =1+A3 -> 2022 | B4: =1+B3 -> 82 | D4: =VLOOKUP(B4,Lookups!A:B,2) -> 16372.51542 | E4: =VLOOKUP(B4,Lookups!A:C,3) -> 1816.919755 | G4: =VLOOKUP(B4,Lookups!A:D,4) -> 213105.5845 | H4: =VLOOKUP(B4,Lookups!A:E,5) -> 164136.9593 | J4: =VLOOKUP(A4,Trends!$A$3:$H$94,IF(ExFlg=0,4,2))+Sens -> 1.051 | K4: =K3*J3 -> 1.051 | L4: =VLOOKUP(A4,Trends!$A$3:$H$94,IF(ExFlg=0,5,3))+Sens -> 1.051 | M4: =M3*L3 -> 1.051 | N4: =VLOOKUP(A4,Trends!$A$3:$H$94,6)+Sens -> 1.059 | O4: =O3*N3 -> 1.049 | Q4: =IF(B4<=120,VLOOKUP(B4,Lookups!$A$3:$I$103,8,FALSE),"") -> 0.0294 | R4: =VLOOKUP(A4,Trends!$A$3:$H$94,7)+Sens -> 1.045 | S4: =S3*R3 -> 1.045 | T4: =IF(B4<=120,VLOOKUP(B4,Lookups!$A$3:$I$103,9,FALSE),"") -> 0.0386 | U4: =VLOOKUP(A4,Trends!$A$3:$H$94,8)+Sens -> 1.045 | V4: =V3*U3 -> 1.045 | X4: =IF(B4<=120,IF(B4<65,D4*K4,D4*M4),"") -> 17207.51371 | Y4: =IF(B4<=120,E4*O4,"") -> 1905.948823 | Z4: =IF(B4<=120,X4+Y4,"") -> 19113.46253 | AB4: =IF(B4<=120,G4*Q4*S4,"") -> 6547.242873 | AC4: =IF(B4<=120,H4*T4*V4,"") -> 6620.792526 | AD4: =IF(B4<=120,AB4+AC4,"") -> 13168.0354 | AF4: =IF(B4<=120,Z4+AD4, "") -> 32281.49793 | AH4: =IF($B4<121,VLOOKUP($B4,Lookups!A:F,6)*(1-VLOOKUP($B4,Lookups!$N$3:$P$103,2))^($A4-$A$3),"") -> 0.06128465003 | AI4: =IF($B4<121,VLOOKUP($B4,Lookups!A:G,7)*(1-VLOOKUP($B4,Lookups!$N$3:$P$103,3))^($A4-$A$3),"") -> 0.05009404103 | AJ4: =IF(B4<121,(PCTMALE*AH4+(1-PCTMALE)*AI4),"") -> 0.06128465003 | AK4: =IF(B4<121,AK3*(1-AJ3),"") -> 0.9445830388 | AL4: =IF(B4<121,AL3/(1+IntRt),"") -> 0.9783778495 | AM4: =IF(AJ4="","",ROUND((13/24)+(11/24)*(1/(1+IntRt))*(1-AJ4),6)) -> 0.962608 | AP4: =IF(B4<=120,AF4*AK4*AL4*AM4,"") -> 28717.71625
A5: 2023 | B5: 83 | D5: =VLOOKUP(B5,Lookups!A:B,2) -> 16232.20463 | E5: =VLOOKUP(B5,Lookups!A:C,3) -> 1816.919755 | G5: =VLOOKUP(B5,Lookups!A:D,4) -> 211267.6109 | H5: =VLOOKUP(B5,Lookups!A:E,5) -> 163052.4612 | J5: =VLOOKUP(A5,Trends!$A$3:$H$94,IF(ExFlg=0,4,2))+Sens -> 1.051 | K5: =K4*J4 -> 1.104601 | L5: =VLOOKUP(A5,Trends!$A$3:$H$94,IF(ExFlg=0,5,3))+Sens -> 1.051 | M5: =M4*L4 -> 1.104601 | N5: =VLOOKUP(A5,Trends!$A$3:$H$94,6)+Sens -> 1.057 | O5: =O4*N4 -> 1.110891 | Q5: =IF(B5<=120,VLOOKUP(B5,Lookups!$A$3:$I$103,8,FALSE),"") -> 0.03498 | R5: =VLOOKUP(A5,Trends!$A$3:$H$94,7)+Sens -> 1.045 | S5: =S4*R4 -> 1.092025 | T5: =IF(B5<=120,VLOOKUP(B5,Lookups!$A$3:$I$103,9,FALSE),"") -> 0.04324 | U5: =VLOOKUP(A5,Trends!$A$3:$H$94,8)+Sens -> 1.045 | V5: =V4*U4 -> 1.092025 | X5: 17930.10947 | Y5: 2018.399803 | Z5: 19948.50927 | AB5: 8070.218758 | AC5: 7699.200415 | AD5: 15769.41917 | AF5: 35717.92844 | AH5: =IF($B5<121,VLOOKUP($B5,Lookups!A:F,6)*(1-VLOOKUP($B5,Lookups!$N$3:$P$103,2))^($A5-$A$3),"") -> 0.06815705786 | AI5: =IF($B5<121,VLOOKUP($B5,Lookups!A:G,7)*(1-VLOOKUP($B5,Lookups!$N$3:$P$103,3))^($A5-$A$3),"") -> 0.05439314061 | AJ5: 0.06815705786 | AK5: =IF(B5<121,AK4*(1-AJ4),"") -> 0.8866945978 | AL5: 0.9572232164 | AM5: 0.959527 | AP5: 29089.13108
A6: 2024 | B6: 84 | D6: =VLOOKUP(B6,Lookups!A:B,2) -> 16093.02538 | E6: =VLOOKUP(B6,Lookups!A:C,3) -> 1816.919755 | G6: =VLOOKUP(B6,Lookups!A:D,4) -> 209429.6374 | H6: =VLOOKUP(B6,Lookups!A:E,5) -> 161967.9631 | J6: =VLOOKUP(A6,Trends!$A$3:$H$94,IF(ExFlg=0,4,2))+Sens -> 1.051 | K6: =K5*J5 -> 1.160935651 | L6: =VLOOKUP(A6,Trends!$A$3:$H$94,IF(ExFlg=0,5,3))+Sens -> 1.051 | M6: 1.160935651 | N6: =VLOOKUP(A6,Trends!$A$3:$H$94,6)+Sens -> 1.05 | O6: 1.174211787 | Q6: =IF(B6<=120,VLOOKUP(B6,Lookups!$A$3:$I$103,8,FALSE),"") -> 0.04056 | R6: =VLOOKUP(A6,Trends!$A$3:$H$94,7)+Sens -> 1.045 | S6: =S5*R5 -> 1.141166125 | T6: =IF(B6<=120,VLOOKUP(B6,Lookups!$A$3:$I$103,9,FALSE),"") -> 0.04788 | U6: =VLOOKUP(A6,Trends!$A$3:$H$94,8)+Sens -> 1.045 | V6: 1.141166125 | X6: 18682.96689 | Y6: 2133.448592 | Z6: 20816.41548 | AB6: 9693.596953 | AC6: 8849.773051 | AD6: 18543.37 | AF6: 39359.78549 | AH6: =IF($B6<121,VLOOKUP($B6,Lookups!A:F,6)*(1-VLOOKUP($B6,Lookups!$N$3:$P$103,2))^($A6-$A$3),"") -> 0.07590232166 | AI6: =IF($B6<121,VLOOKUP($B6,Lookups!A:G,7)*(1-VLOOKUP($B6,Lookups!$N$3:$P$103,3))^($A6-$A$3),"") -> 0.0591398712 | AJ6: 0.07590232166 | AK6: 0.8262601028 | AL6: 0.936525992 | AM6: 0.956053 | AP6: 29118.65489
A7: 2025 | B7: 85 | D7: =VLOOKUP(B7,Lookups!A:B,2) -> 15955.11911 | E7: =VLOOKUP(B7,Lookups!A:C,3) -> 1816.919755 | G7: =VLOOKUP(B7,Lookups!A:D,4) -> 207591.6638 | H7: =VLOOKUP(B7,Lookups!A:E,5) -> 160883.465 | J7: =VLOOKUP(A7,Trends!$A$3:$H$94,IF(ExFlg=0,4,2))+Sens -> 1.051 | K7: 1.220143369 | L7: =VLOOKUP(A7,Trends!$A$3:$H$94,IF(ExFlg=0,5,3))+Sens -> 1.051 | M7: 1.220143369 | N7: =VLOOKUP(A7,Trends!$A$3:$H$94,6)+Sens -> 1.054 | O7: =O6*N6 -> 1.232922376 | Q7: =IF(B7<=120,VLOOKUP(B7,Lookups!$A$3:$I$103,8,FALSE),"") -> 0.04614 | R7: =VLOOKUP(A7,Trends!$A$3:$H$94,7)+Sens -> 1.045 | S7: 1.192518601 | T7: =IF(B7<=120,VLOOKUP(B7,Lookups!$A$3:$I$103,9,FALSE),"") -> 0.05252 | U7: =VLOOKUP(A7,Trends!$A$3:$H$94,8)+Sens -> 1.045 | V7: 1.192518601 | X7: 19467.53278 | Y7: 2240.121022 | Z7: 21707.6538 | AB7: 11422.27631 | AC7: 10076.30467 | AD7: 21498.58097 | AF7: 43206.23478 | AH7: =IF($B7<121,VLOOKUP($B7,Lookups!A:F,6)*(1-VLOOKUP($B7,Lookups!$N$3:$P$103,2))^($A7-$A$3),"") -> 0.08408790533 | AI7: =IF($B7<121,VLOOKUP($B7,Lookups!A:G,7)*(1-VLOOKUP($B7,Lookups!$N$3:$P$103,3))^($A7-$A$3),"") -> 0.06442267105 | AJ7: 0.08408790533 | AK7: 0.7635450427 | AL7: 0.9162762861 | AM7: 0.952383 | AP7: 28788.50846
A8: 2026 | B8: 86 | D8: =VLOOKUP(B8,Lookups!A:B,2) -> 15818.34437 | E8: =VLOOKUP(B8,Lookups!A:C,3) -> 1816.919755 | G8: =VLOOKUP(B8,Lookups!A:D,4) -> 205753.6902 | H8: =VLOOKUP(B8,Lookups!A:E,5) -> 159798.9669 | J8: =VLOOKUP(A8,Trends!$A$3:$H$94,IF(ExFlg=0,4,2))+Sens -> 1.051 | K8: 1.282370681 | L8: =VLOOKUP(A8,Trends!$A$3:$H$94,IF(ExFlg=0,5,3))+Sens -> 1.051 | M8: 1.282370681 | N8: =VLOOKUP(A8,Trends!$A$3:$H$94,6)+Sens -> 1.059 | O8: 1.299500185 | Q8: =IF(B8<=120,VLOOKUP(B8,Lookups!$A$3:$I$103,8,FALSE),"") -> 0.05172 | R8: =VLOOKUP(A8,Trends!$A$3:$H$94,7)+Sens -> 1.045 | S8: 1.246181938 | T8: =IF(B8<=120,VLOOKUP(B8,Lookups!$A$3:$I$103,9,FALSE),"") -> 0.05716 | U8: =VLOOKUP(A8,Trends!$A$3:$H$94,8)+Sens -> 1.045 | V8: 1.246181938 | X8: 20284.98105 | Y8: 2361.087557 | Z8: 22646.0686 | AB8: 13261.34585 | AC8: 11382.76159 | AD8: 24644.10744 | AF8: 47290.17604 | AH8: =IF($B8<121,VLOOKUP($B8,Lookups!A:F,6)*(1-VLOOKUP($B8,Lookups!$N$3:$P$103,2))^($A8-$A$3),"") -> 0.09280549463 | AI8: =IF($B8<121,VLOOKUP($B8,Lookups!A:G,7)*(1-VLOOKUP($B8,Lookups!$N$3:$P$103,3))^($A8-$A$3),"") -> 0.07033329482 | AJ8: 0.09280549463 | AK8: 0.6993401394 | AL8: 0.8964644224 | AM8: 0.948474 | AP8: 28120.16569
A9: 2027 | B9: 87 | D9: =VLOOKUP(B9,Lookups!A:B,2) -> 15682.84262 | E9: =VLOOKUP(B9,Lookups!A:C,3) -> 1816.919755 | G9: =VLOOKUP(B9,Lookups!A:D,4) -> 203915.7166 | H9: =VLOOKUP(B9,Lookups!A:E,5) -> 158714.4688 | J9: =VLOOKUP(A9,Trends!$A$3:$H$94,IF(ExFlg=0,4,2))+Sens -> 1.051 | K9: 1.347771586 | L9: =VLOOKUP(A9,Trends!$A$3:$H$94,IF(ExFlg=0,5,3))+Sens -> 1.051 | M9: 1.347771586 | N9: =VLOOKUP(A9,Trends!$A$3:$H$94,6)+Sens -> 1.056 | O9: 1.376170696 | Q9: =IF(B9<=120,VLOOKUP(B9,Lookups!$A$3:$I$103,8,FALSE),"") -> 0.0573 | R9: =VLOOKUP(A9,Trends!$A$3:$H$94,7)+Sens -> 1.045 | S9: 1.302260125 | T9: =IF(B9<=120,VLOOKUP(B9,Lookups!$A$3:$I$103,9,FALSE),"") -> 0.0618 | U9: =VLOOKUP(A9,Trends!$A$3:$H$94,8)+Sens -> 1.045 | V9: 1.302260125 | X9: 21136.88967 | Y9: 2500.391723 | Z9: 23637.28139 | AB9: 15216.08987 | AC9: 12773.28898 | AD9: 27989.37885 | AF9: 51626.66024 | AH9: =IF($B9<121,VLOOKUP($B9,Lookups!A:F,6)*(1-VLOOKUP($B9,Lookups!$N$3:$P$103,2))^($A9-$A$3),"") -> 0.1021669723 | AI9: =IF($B9<121,VLOOKUP($B9,Lookups!A:G,7)*(1-VLOOKUP($B9,Lookups!$N$3:$P$103,3))^($A9-$A$3),"") -> 0.07699380307 | AJ9: 0.1021669723 | AK9: 0.6344375319 | AL9: 0.8770809337 | AM9: 0.944276 | AP9: 27126.98455
A10: 2028 | B10: 88 | D10: =VLOOKUP(B10,Lookups!A:B,2) -> 15548.47241 | E10: =VLOOKUP(B10,Lookups!A:C,3) -> 1816.919755 | G10: =VLOOKUP(B10,Lookups!A:D,4) -> 199229.7119 | H10: =VLOOKUP(B10,Lookups!A:E,5) -> 154303.3642 | J10: =VLOOKUP(A10,Trends!$A$3:$H$94,IF(ExFlg=0,4,2))+Sens -> 1.051 | K10: 1.416507937 | L10: =VLOOKUP(A10,Trends!$A$3:$H$94,IF(ExFlg=0,5,3))+Sens -> 1.051 | M10: 1.416507937 | N10: =VLOOKUP(A10,Trends!$A$3:$H$94,6)+Sens -> 1.056 | O10: 1.453236255 | Q10: =IF(B10<=120,VLOOKUP(B10,Lookups!$A$3:$I$103,8,FALSE),"") -> 0.06718 | R10: =VLOOKUP(A10,Trends!$A$3:$H$94,7)+Sens -> 1.045 | S10: 1.36086183 | T10: =IF(B10<=120,VLOOKUP(B10,Lookups!$A$3:$I$103,9,FALSE),"") -> 0.06622 | U10: =VLOOKUP(A10,Trends!$A$3:$H$94,8)+Sens -> 1.045 | V10: 1.36086183 | X10: 22024.53457 | Y10: 2640.413659 | Z10: 24664.94823 | AB10: 18214.11774 | AC10: 13905.24369 | AD10: 32119.36143 | AF10: 56784.30966 | AH10: =IF($B10<121,VLOOKUP($B10,Lookups!A:F,6)*(1-VLOOKUP($B10,Lookups!$N$3:$P$103,2))^($A10-$A$3),"") -> 0.1119306045 | AI10: =IF($B10<121,VLOOKUP($B10,Lookups!A:G,7)*(1-VLOOKUP($B10,Lookups!$N$3:$P$103,3))^($A10-$A$3),"") -> 0.08422850488 | AJ10: 0.1119306045 | AK10: 0.5696189701 | AL10: 0.8581165578 | AM10: 0.939898 | AP10: 26087.94091
A11: 2029 | B11: 89 | D11: =VLOOKUP(B11,Lookups!A:B,2) -> 15415.23373 | E11: =VLOOKUP(B11,Lookups!A:C,3) -> 1816.919755 | G11: =VLOOKUP(B11,Lookups!A:D,4) -> 194543.7072 | H11: =VLOOKUP(B11,Lookups!A:E,5) -> 149892.2595 | J11: =VLOOKUP(A11,Trends!$A$3:$H$94,IF(ExFlg=0,4,2))+Sens -> 1.051 | K11: 1.488749841 | L11: =VLOOKUP(A11,Trends!$A$3:$H$94,IF(ExFlg=0,5,3))+Sens -> 1.051 | M11: 1.488749841 | N11: =VLOOKUP(A11,Trends!$A$3:$H$94,6)+Sens -> 1.053 | O11: 1.534617485 | Q11: =IF(B11<=120,VLOOKUP(B11,Lookups!$A$3:$I$103,8,FALSE),"") -> 0.07706 | R11: =VLOOKUP(A11,Trends!$A$3:$H$94,7)+Sens -> 1.045 | S11: 1.422100613 | T11: =IF(B11<=120,VLOOKUP(B11,Lookups!$A$3:$I$103,9,FALSE),"") -> 0.07064 | U11: =VLOOKUP(A11,Trends!$A$3:$H$94,8)+Sens -> 1.045 | V11: 1.422100613 | X11: 22949.42678 | Y11: 2788.276824 | Z11: 25737.7036 | AB11: 21319.47549 | AC11: 15057.75479 | AD11: 36377.23028 | AF11: 62114.93388 | AH11: =IF($B11<121,VLOOKUP($B11,Lookups!A:F,6)*(1-VLOOKUP($B11,Lookups!$N$3:$P$103,2))^($A11-$A$3),"") -> 0.1225896639 | AI11: =IF($B11<121,VLOOKUP($B11,Lookups!A:G,7)*(1-VLOOKUP($B11,Lookups!$N$3:$P$103,3))^($A11-$A$3),"") -> 0.09240712507 | AJ11: 0.1225896639 | AK11: 0.5058611745 | AL11: 0.8395622325 | AM11: 0.935118 | AP11: 24668.72399
A12: 2030 | B12: 90 | D12: =VLOOKUP(B12,Lookups!A:B,2) -> 15415.23373 | E12: =VLOOKUP(B12,Lookups!A:C,3) -> 1816.919755 | G12: =VLOOKUP(B12,Lookups!A:D,4) -> 189857.7026 | H12: =VLOOKUP(B12,Lookups!A:E,5) -> 145481.1549 | J12: =VLOOKUP(A12,Trends!$A$3:$H$94,IF(ExFlg=0,4,2))+Sens -> 1.051 | K12: 1.564676083 | L12: =VLOOKUP(A12,Trends!$A$3:$H$94,IF(ExFlg=0,5,3))+Sens -> 1.051 | M12: 1.564676083 | N12: =VLOOKUP(A12,Trends!$A$3:$H$94,6)+Sens -> 1.051 | O12: 1.615952211 | Q12: =IF(B12<=120,VLOOKUP(B12,Lookups!$A$3:$I$103,8,FALSE),"") -> 0.08694 | R12: =VLOOKUP(A12,Trends!$A$3:$H$94,7)+Sens -> 1.045 | S12: 1.48609514 | T12: =IF(B12<=120,VLOOKUP(B12,Lookups!$A$3:$I$103,9,FALSE),"") -> 0.07506 | U12: =VLOOKUP(A12,Trends!$A$3:$H$94,8)+Sens -> 1.045 | V12: 1.48609514 | X12: 24119.84754 | Y12: 2936.055496 | Z12: 27055.90304 | AB12: 24529.8262 | AC12: 16227.88473 | AD12: 40757.71093 | AF12: 67813.61397 | AH12: =IF($B12<121,VLOOKUP($B12,Lookups!A:F,6)*(1-VLOOKUP($B12,Lookups!$N$3:$P$103,2))^($A12-$A$3),"") -> 0.1338688446 | AI12: =IF($B12<121,VLOOKUP($B12,Lookups!A:G,7)*(1-VLOOKUP($B12,Lookups!$N$3:$P$103,3))^($A12-$A$3),"") -> 0.1012757732 | AJ12: 0.1338688446 | AK12: 0.4438478231 | AL12: 0.8214090915 | AM12: 0.93006 | AP12: 22994.36686
A13: 2031 | B13: 91 | D13: =VLOOKUP(B13,Lookups!A:B,2) -> 15415.23373 | E13: =VLOOKUP(B13,Lookups!A:C,3) -> 1816.919755 | G13: =VLOOKUP(B13,Lookups!A:D,4) -> 185171.6979 | H13: =VLOOKUP(B13,Lookups!A:E,5) -> 141070.0503 | J13: =VLOOKUP(A13,Trends!$A$3:$H$94,IF(ExFlg=0,4,2))+Sens -> 1.051 | K13: 1.644474564 | L13: =VLOOKUP(A13,Trends!$A$3:$H$94,IF(ExFlg=0,5,3))+Sens -> 1.052 | M13: 1.644474564 | N13: =VLOOKUP(A13,Trends!$A$3:$H$94,6)+Sens -> 1.051 | O13: 1.698365774 | Q13: =IF(B13<=120,VLOOKUP(B13,Lookups!$A$3:$I$103,8,FALSE),"") -> 0.09682 | R13: =VLOOKUP(A13,Trends!$A$3:$H$94,7)+Sens -> 1.045 | S13: 1.552969422 | T13: =IF(B13<=120,VLOOKUP(B13,Lookups!$A$3:$I$103,9,FALSE),"") -> 0.07948 | U13: =VLOOKUP(A13,Trends!$A$3:$H$94,8)+Sens -> 1.045 | V13: 1.552969422 | X13: 25349.95977 | Y13: 3085.794326 | Z13: 28435.75409 | AB13: 27842.13862 | AC13: 17412.27767 | AD13: 45254.41629 | AF13: 73690.17038 | AH13: =IF($B13<121,VLOOKUP($B13,Lookups!A:F,6)*(1-VLOOKUP($B13,Lookups!$N$3:$P$103,2))^($A13-$A$3),"") -> 0.1460293483 | AI13: =IF($B13<121,VLOOKUP($B13,Lookups!A:G,7)*(1-VLOOKUP($B13,Lookups!$N$3:$P$103,3))^($A13-$A$3),"") -> 0.1110602156 | AJ13: 0.1460293483 | AK13: 0.3844304278 | AL13: 0.8036484606 | AM13: 0.924607 | AP13: 21049.92776
A14: 2032 | B14: 92 | D14: =VLOOKUP(B14,Lookups!A:B,2) -> 15415.23373 | E14: =VLOOKUP(B14,Lookups!A:C,3) -> 1816.919755 | G14: =VLOOKUP(B14,Lookups!A:D,4) -> 180485.6932 | H14: =VLOOKUP(B14,Lookups!A:E,5) -> 136658.9457 | J14: =VLOOKUP(A14,Trends!$A$3:$H$94,IF(ExFlg=0,4,2))+Sens -> 1.051 | K14: 1.728342766 | L14: =VLOOKUP(A14,Trends!$A$3:$H$94,IF(ExFlg=0,5,3))+Sens -> 1.052 | M14: 1.729987241 | N14: =VLOOKUP(A14,Trends!$A$3:$H$94,6)+Sens -> 1.051 | O14: 1.784982429 | Q14: =IF(B14<=120,VLOOKUP(B14,Lookups!$A$3:$I$103,8,FALSE),"") -> 0.1067 | R14: =VLOOKUP(A14,Trends!$A$3:$H$94,7)+Sens -> 1.045 | S14: 1.622853046 | T14: =IF(B14<=120,VLOOKUP(B14,Lookups!$A$3:$I$103,9,FALSE),"") -> 0.0839 | U14: =VLOOKUP(A14,Trends!$A$3:$H$94,8)+Sens -> 1.045 | V14: 1.622853046 | X14: 26668.15767 | Y14: 3243.169837 | Z14: 29911.32751 | AB14: 31252.61746 | AC14: 18607.1227 | AD14: 49859.74016 | AF14: 79771.06767 | AH14: =IF($B14<121,VLOOKUP($B14,Lookups!A:F,6)*(1-VLOOKUP($B14,Lookups!$N$3:$P$103,2))^($A14-$A$3),"") -> 0.1579723166 | AI14: =IF($B14<121,VLOOKUP($B14,Lookups!A:G,7)*(1-VLOOKUP($B14,Lookups!$N$3:$P$103,3))^($A14-$A$3),"") -> 0.1212485786 | AJ14: 0.1579723166 | AK14: 0.328292303 | AL14: 0.7862718526 | AM14: 0.919251 | AP14: 18928.35817
A15: 2033 | B15: 93 | D15: =VLOOKUP(B15,Lookups!A:B,2) -> 15415.23373 | E15: =VLOOKUP(B15,Lookups!A:C,3) -> 1816.919755 | G15: =VLOOKUP(B15,Lookups!A:D,4) -> 175021.4474 | H15: =VLOOKUP(B15,Lookups!A:E,5) -> 134319.3543 | J15: =VLOOKUP(A15,Trends!$A$3:$H$94,IF(ExFlg=0,4,2))+Sens -> 1.051 | K15: 1.816488247 | L15: =VLOOKUP(A15,Trends!$A$3:$H$94,IF(ExFlg=0,5,3))+Sens -> 1.052 | M15: 1.819946577 | N15: =VLOOKUP(A15,Trends!$A$3:$H$94,6)+Sens -> 1.051 | O15: 1.876016533 | Q15: =IF(B15<=120,VLOOKUP(B15,Lookups!$A$3:$I$103,8,FALSE),"") -> 0.11538 | R15: =VLOOKUP(A15,Trends!$A$3:$H$94,7)+Sens -> 1.045 | S15: 1.695881433 | T15: =IF(B15<=120,VLOOKUP(B15,Lookups!$A$3:$I$103,9,FALSE),"") -> 0.08394 | U15: =VLOOKUP(A15,Trends!$A$3:$H$94,8)+Sens -> 1.045 | V15: 1.695881433 | X15: 28054.90187 | Y15: 3408.571498 | Z15: 31463.47337 | AB15: 34246.58658 | AC15: 19120.66733 | AD15: 53367.25391 | AF15: 84830.72728 | AH15: =IF($B15<121,VLOOKUP($B15,Lookups!A:F,6)*(1-VLOOKUP($B15,Lookups!$N$3:$P$103,2))^($A15-$A$3),"") -> 0.170119193 | AI15: =IF($B15<121,VLOOKUP($B15,Lookups!A:G,7)*(1-VLOOKUP($B15,Lookups!$N$3:$P$103,3))^($A15-$A$3),"") -> 0.1323244483 | AJ15: 0.170119193 | AK15: 0.2764312074 | AL15: 0.7692709643 | AM15: 0.913804 | AP15: 16484.38148
A16: 2034 | B16: 94 | D16: =VLOOKUP(B16,Lookups!A:B,2) -> 15415.23373 | E16: =VLOOKUP(B16,Lookups!A:C,3) -> 1816.919755 | G16: =VLOOKUP(B16,Lookups!A:D,4) -> 169557.2017 | H16: =VLOOKUP(B16,Lookups!A:E,5) -> 131979.7629 | J16: =VLOOKUP(A16,Trends!$A$3:$H$94,IF(ExFlg=0,4,2))+Sens -> 1.051 | K16: 1.909129148 | L16: =VLOOKUP(A16,Trends!$A$3:$H$94,IF(ExFlg=0,5,3))+Sens -> 1.052 | M16: 1.914583799 | N16: =VLOOKUP(A16,Trends!$A$3:$H$94,6)+Sens -> 1.051 | O16: 1.971693376 | Q16: =IF(B16<=120,VLOOKUP(B16,Lookups!$A$3:$I$103,8,FALSE),"") -> 0.12406 | R16: =VLOOKUP(A16,Trends!$A$3:$H$94,7)+Sens -> 1.045 | S16: 1.772196097 | T16: =IF(B16<=120,VLOOKUP(B16,Lookups!$A$3:$I$103,9,FALSE),"") -> 0.08398 | U16: =VLOOKUP(A16,Trends!$A$3:$H$94,8)+Sens -> 1.045 | V16: 1.772196097 | X16: 29513.75677 | Y16: 3582.408645 | Z16: 33096.16542 | AB16: 37278.61708 | AC16: 19642.41985 | AD16: 56921.03694 | AF16: 90017.20235 | AH16: =IF($B16<121,VLOOKUP($B16,Lookups!A:F,6)*(1-VLOOKUP($B16,Lookups!$N$3:$P$103,2))^($A16-$A$3),"") -> 0.1816877489 | AI16: =IF($B16<121,VLOOKUP($B16,Lookups!A:G,7)*(1-VLOOKUP($B16,Lookups!$N$3:$P$103,3))^($A16-$A$3),"") -> 0.1437293771 | AJ16: 0.1816877489 | AK16: 0.2294049535 | AL16: 0.7526376718 | AM16: 0.908617 | AP16: 14121.96442
A17: 2035 | B17: 95 | D17: =VLOOKUP(B17,Lookups!A:B,2) -> 15415.23373 | E17: =VLOOKUP(B17,Lookups!A:C,3) -> 1816.919755 | G17: =VLOOKUP(B17,Lookups!A:D,4) -> 164092.9559 | H17: =VLOOKUP(B17,Lookups!A:E,5) -> 129640.1715 | J17: =VLOOKUP(A17,Trends!$A$3:$H$94,IF(ExFlg=0,4,2))+Sens -> 1.051 | K17: 2.006494735 | L17: =VLOOKUP(A17,Trends!$A$3:$H$94,IF(ExFlg=0,5,3))+Sens -> 1.052 | M17: 2.014142157 | N17: =VLOOKUP(A17,Trends!$A$3:$H$94,6)+Sens -> 1.051 | O17: 2.072249738 | Q17: =IF(B17<=120,VLOOKUP(B17,Lookups!$A$3:$I$103,8,FALSE),"") -> 0.13274 | R17: =VLOOKUP(A17,Trends!$A$3:$H$94,7)+Sens -> 1.045 | S17: 1.851944922 | T17: =IF(B17<=120,VLOOKUP(B17,Lookups!$A$3:$I$103,9,FALSE),"") -> 0.08402 | U17: =VLOOKUP(A17,Trends!$A$3:$H$94,8)+Sens -> 1.045 | V17: 1.851944922 | X17: 31048.47212 | Y17: 3765.111486 | Z17: 34813.58361 | AB17: 40338.50678 | AC17: 20172.06413 | AD17: 60510.57092 | AF17: 95324.15452 | AH17: =IF($B17<121,VLOOKUP($B17,Lookups!A:F,6)*(1-VLOOKUP($B17,Lookups!$N$3:$P$103,2))^($A17-$A$3),"") -> 0.1936359531 | AI17: =IF($B17<121,VLOOKUP($B17,Lookups!A:G,7)*(1-VLOOKUP($B17,Lookups!$N$3:$P$103,3))^($A17-$A$3),"") -> 0.1567788803 | AJ17: 0.1936359531 | AK17: 0.1877248839 | AL17: 0.7363640268 | AM17: 0.903259 | AP17: 11902.26644
A18: 2036 | B18: 96 | D18: =VLOOKUP(B18,Lookups!A:B,2) -> 15415.23373 | E18: =VLOOKUP(B18,Lookups!A:C,3) -> 1816.919755 | G18: =VLOOKUP(B18,Lookups!A:D,4) -> 158628.7101 | H18: =VLOOKUP(B18,Lookups!A:E,5) -> 127300.5801 | J18: =VLOOKUP(A18,Trends!$A$3:$H$94,IF(ExFlg=0,4,2))+Sens -> 1.051 | K18: 2.108825966 | L18: =VLOOKUP(A18,Trends!$A$3:$H$94,IF(ExFlg=0,5,3))+Sens -> 1.052 | M18: 2.118877549 | N18: =VLOOKUP(A18,Trends!$A$3:$H$94,6)+Sens -> 1.051 | O18: 2.177934475 | Q18: =IF(B18<=120,VLOOKUP(B18,Lookups!$A$3:$I$103,8,FALSE),"") -> 0.14142 | R18: =VLOOKUP(A18,Trends!$A$3:$H$94,7)+Sens -> 1.045 | S18: 1.935282443 | T18: =IF(B18<=120,VLOOKUP(B18,Lookups!$A$3:$I$103,9,FALSE),"") -> 0.08406 | U18: =VLOOKUP(A18,Trends!$A$3:$H$94,8)+Sens -> 1.045 | V18: 1.935282443 | X18: 32662.99267 | Y18: 3957.132172 | Z18: 36620.12484 | AB18: 43414.71781 | AC18: 20709.23827 | AD18: 64123.95608 | AF18: 100744.0809 | AH18: =IF($B18<121,VLOOKUP($B18,Lookups!A:F,6)*(1-VLOOKUP($B18,Lookups!$N$3:$P$103,2))^($A18-$A$3),"") -> 0.2068552382 | AI18: =IF($B18<121,VLOOKUP($B18,Lookups!A:G,7)*(1-VLOOKUP($B18,Lookups!$N$3:$P$103,3))^($A18-$A$3),"") -> 0.1721520577 | AJ18: 0.2068552382 | AK18: 0.1513745971 | AL18: 0.720442253 | AM18: 0.897331 | AP18: 9858.807495
A19: 2037 | B19: 97 | D19: =VLOOKUP(B19,Lookups!A:B,2) -> 15415.23373 | E19: =VLOOKUP(B19,Lookups!A:C,3) -> 1816.919755 | G19: =VLOOKUP(B19,Lookups!A:D,4) -> 153164.4644 | H19: =VLOOKUP(B19,Lookups!A:E,5) -> 124960.9887 | J19: =VLOOKUP(A19,Trends!$A$3:$H$94,IF(ExFlg=0,4,2))+Sens -> 1.051 | K19: 2.21637609 | L19: =VLOOKUP(A19,Trends!$A$3:$H$94,IF(ExFlg=0,5,3))+Sens -> 1.052 | M19: 2.229059182 | N19: =VLOOKUP(A19,Trends!$A$3:$H$94,6)+Sens -> 1.051 | O19: 2.289009133 | Q19: =IF(B19<=120,VLOOKUP(B19,Lookups!$A$3:$I$103,8,FALSE),"") -> 0.1501 | R19: =VLOOKUP(A19,Trends!$A$3:$H$94,7)+Sens -> 1.045 | S19: 2.022370153 | T19: =IF(B19<=120,VLOOKUP(B19,Lookups!$A$3:$I$103,9,FALSE),"") -> 0.0841 | U19: =VLOOKUP(A19,Trends!$A$3:$H$94,8)+Sens -> 1.045 | V19: 2.022370153 | X19: 34361.46829 | Y19: 4158.945912 | Z19: 38520.4142 | AB19: 46494.26171 | AC19: 21253.53113 | AD19: 67747.79285 | AF19: 106268.2071 | AH19: =IF($B19<121,VLOOKUP($B19,Lookups!A:F,6)*(1-VLOOKUP($B19,Lookups!$N$3:$P$103,2))^($A19-$A$3),"") -> 0.2207281963 | AI19: =IF($B19<121,VLOOKUP($B19,Lookups!A:G,7)*(1-VLOOKUP($B19,Lookups!$N$3:$P$103,3))^($A19-$A$3),"") -> 0.1884778796 | AJ19: 0.2207281963 | AK19: 0.1200619687 | AL19: 0.7048647422 | AM19: 0.89111 | AP19: 8013.936898
A20: 2038 | B20: 98 | D20: =VLOOKUP(B20,Lookups!A:B,2) -> 15415.23373 | E20: =VLOOKUP(B20,Lookups!A:C,3) -> 1816.919755 | G20: =VLOOKUP(B20,Lookups!A:D,4) -> 153164.4644 | H20: =VLOOKUP(B20,Lookups!A:E,5) -> 124960.9887 | J20: =VLOOKUP(A20,Trends!$A$3:$H$94,IF(ExFlg=0,4,2))+Sens -> 1.051 | K20: 2.329411271 | L20: =VLOOKUP(A20,Trends!$A$3:$H$94,IF(ExFlg=0,5,3))+Sens -> 1.052 | M20: 2.344970259 | N20: =VLOOKUP(A20,Trends!$A$3:$H$94,6)+Sens -> 1.051 | O20: 2.405748599 | Q20: =IF(B20<=120,VLOOKUP(B20,Lookups!$A$3:$I$103,8,FALSE),"") -> 0.1501 | R20: =VLOOKUP(A20,Trends!$A$3:$H$94,7)+Sens -> 1.045 | S20: 2.11337681 | T20: =IF(B20<=120,VLOOKUP(B20,Lookups!$A$3:$I$103,9,FALSE),"") -> 0.0841 | U20: =VLOOKUP(A20,Trends!$A$3:$H$94,8)+Sens -> 1.045 | V20: 2.11337681 | X20: 36148.26464 | Y20: 4371.052154 | Z20: 40519.3168 | AB20: 48586.50349 | AC20: 22209.94003 | AD20: 70796.44353 | AF20: 111315.7603 | AH20: =IF($B20<121,VLOOKUP($B20,Lookups!A:F,6)*(1-VLOOKUP($B20,Lookups!$N$3:$P$103,2))^($A20-$A$3),"") -> 0.236164798 | AI20: =IF($B20<121,VLOOKUP($B20,Lookups!A:G,7)*(1-VLOOKUP($B20,Lookups!$N$3:$P$103,3))^($A20-$A$3),"") -> 0.2062281275 | AJ20: 0.236164798 | AK20: 0.09356090692 | AL20: 0.6896240507 | AM20: 0.884188 | AP20: 6350.502562
A21: 2039 | B21: 99 | D21: =VLOOKUP(B21,Lookups!A:B,2) -> 15415.23373 | E21: =VLOOKUP(B21,Lookups!A:C,3) -> 1816.919755 | G21: =VLOOKUP(B21,Lookups!A:D,4) -> 153164.4644 | H21: =VLOOKUP(B21,Lookups!A:E,5) -> 124960.9887 | J21: =VLOOKUP(A21,Trends!$A$3:$H$94,IF(ExFlg=0,4,2))+Sens -> 1.051 | K21: 2.448211246 | L21: =VLOOKUP(A21,Trends!$A$3:$H$94,IF(ExFlg=0,5,3))+Sens -> 1.052 | M21: 2.466908713 | N21: =VLOOKUP(A21,Trends!$A$3:$H$94,6)+Sens -> 1.048 | O21: 2.528441777 | Q21: =IF(B21<=120,VLOOKUP(B21,Lookups!$A$3:$I$103,8,FALSE),"") -> 0.1501 | R21: =VLOOKUP(A21,Trends!$A$3:$H$94,7)+Sens -> 1.045 | S21: 2.208478766 | T21: =IF(B21<=120,VLOOKUP(B21,Lookups!$A$3:$I$103,9,FALSE),"") -> 0.0841 | U21: =VLOOKUP(A21,Trends!$A$3:$H$94,8)+Sens -> 1.045 | V21: 2.208478766 | X21: 38027.97441 | Y21: 4593.975814 | Z21: 42621.95022 | AB21: 50772.89615 | AC21: 23209.38734 | AD21: 73982.28348 | AF21: 116604.2337 | AH21: =IF($B21<121,VLOOKUP($B21,Lookups!A:F,6)*(1-VLOOKUP($B21,Lookups!$N$3:$P$103,2))^($A21-$A$3),"") -> 0.2520617994 | AI21: =IF($B21<121,VLOOKUP($B21,Lookups!A:G,7)*(1-VLOOKUP($B21,Lookups!$N$3:$P$103,3))^($A21-$A$3),"") -> 0.2241944133 | AJ21: 0.2520617994 | AK21: 0.07146511424 | AL21: 0.6747128957 | AM21: 0.877059 | AP21: 4931.241044
A22: 2040 | B22: 100 | D22: =VLOOKUP(B22,Lookups!A:B,2) -> 15415.23373 | E22: =VLOOKUP(B22,Lookups!A:C,3) -> 1816.919755 | G22: =VLOOKUP(B22,Lookups!A:D,4) -> 153164.4644 | H22: =VLOOKUP(B22,Lookups!A:E,5) -> 124960.9887 | J22: =VLOOKUP(A22,Trends!$A$3:$H$94,IF(ExFlg=0,4,2))+Sens -> 1.051 | K22: 2.573070019 | L22: =VLOOKUP(A22,Trends!$A$3:$H$94,IF(ExFlg=0,5,3))+Sens -> 1.053 | M22: 2.595187966 | N22: =VLOOKUP(A22,Trends!$A$3:$H$94,6)+Sens -> 1.045 | O22: 2.649806982 | Q22: =IF(B22<=120,VLOOKUP(B22,Lookups!$A$3:$I$103,8,FALSE),"") -> 0.1501 | R22: =VLOOKUP(A22,Trends!$A$3:$H$94,7)+Sens -> 1.045 | S22: 2.307860311 | T22: =IF(B22<=120,VLOOKUP(B22,Lookups!$A$3:$I$103,9,FALSE),"") -> 0.0841 | U22: =VLOOKUP(A22,Trends!$A$3:$H$94,8)+Sens -> 1.045 | V22: 2.307860311 | X22: 40005.42907 | Y22: 4814.486653 | Z22: 44819.91573 | AB22: 53057.67648 | AC22: 24253.80977 | AD22: 77311.48624 | AF22: 122131.402 | AH22: =IF($B22<121,VLOOKUP($B22,Lookups!A:F,6)*(1-VLOOKUP($B22,Lookups!$N$3:$P$103,2))^($A22-$A$3),"") -> 0.2690531608 | AI22: =IF($B22<121,VLOOKUP($B22,Lookups!A:G,7)*(1-VLOOKUP($B22,Lookups!$N$3:$P$103,3))^($A22-$A$3),"") -> 0.2427874754 | AJ22: 0.2690531608 | AK22: 0.05345148895 | AL22: 0.6601241519 | AM22: 0.86944 | AP22: 3746.729926
A23: 2041 | B23: 101 | D23: =VLOOKUP(B23,Lookups!A:B,2) -> 15415.23373 | E23: =VLOOKUP(B23,Lookups!A:C,3) -> 1816.919755 | G23: =VLOOKUP(B23,Lookups!A:D,4) -> 153164.4644 | H23: =VLOOKUP(B23,Lookups!A:E,5) -> 124960.9887 | J23: =VLOOKUP(A23,Trends!$A$3:$H$94,IF(ExFlg=0,4,2))+Sens -> 1.051 | K23: 2.70429659 | L23: =VLOOKUP(A23,Trends!$A$3:$H$94,IF(ExFlg=0,5,3))+Sens -> 1.053 | M23: 2.732732928 | N23: =VLOOKUP(A23,Trends!$A$3:$H$94,6)+Sens -> 1.045 | O23: 2.769048297 | Q23: =IF(B23<=120,VLOOKUP(B23,Lookups!$A$3:$I$103,8,FALSE),"") -> 0.1501 | R23: =VLOOKUP(A23,Trends!$A$3:$H$94,7)+Sens -> 1.045 | S23: 2.411714025 | T23: =IF(B23<=120,VLOOKUP(B23,Lookups!$A$3:$I$103,9,FALSE),"") -> 0.0841 | U23: =VLOOKUP(A23,Trends!$A$3:$H$94,8)+Sens -> 1.045 | V23: 2.411714025 | X23: 42125.71682 | Y23: 5031.138552 | Z23: 47156.85537 | AB23: 55445.27192 | AC23: 25345.2312 | AD23: 80790.50312 | AF23: 127947.3585 | AH23: =IF($B23<121,VLOOKUP($B23,Lookups!A:F,6)*(1-VLOOKUP($B23,Lookups!$N$3:$P$103,2))^($A23-$A$3),"") -> 0.2869809962 | AI23: =IF($B23<121,VLOOKUP($B23,Lookups!A:G,7)*(1-VLOOKUP($B23,Lookups!$N$3:$P$103,3))^($A23-$A$3),"") -> 0.2619041812 | AJ23: 0.2869809962 | AK23: 0.0390701969 | AL23: 0.6458508482 | AM23: 0.861401 | AP23: 2781.086711
A24: 2042 | B24: 102 | D24: =VLOOKUP(B24,Lookups!A:B,2) -> 15415.23373 | E24: =VLOOKUP(B24,Lookups!A:C,3) -> 1816.919755 | G24: =VLOOKUP(B24,Lookups!A:D,4) -> 153164.4644 | H24: =VLOOKUP(B24,Lookups!A:E,5) -> 124960.9887 | J24: =VLOOKUP(A24,Trends!$A$3:$H$94,IF(ExFlg=0,4,2))+Sens -> 1.051 | K24: 2.842215716 | L24: =VLOOKUP(A24,Trends!$A$3:$H$94,IF(ExFlg=0,5,3))+Sens -> 1.053 | M24: 2.877567773 | N24: =VLOOKUP(A24,Trends!$A$3:$H$94,6)+Sens -> 1.045 | O24: 2.89365547 | Q24: =IF(B24<=120,VLOOKUP(B24,Lookups!$A$3:$I$103,8,FALSE),"") -> 0.1501 | R24: =VLOOKUP(A24,Trends!$A$3:$H$94,7)+Sens -> 1.045 | S24: 2.520241156 | T24: =IF(B24<=120,VLOOKUP(B24,Lookups!$A$3:$I$103,9,FALSE),"") -> 0.0841 | U24: =VLOOKUP(A24,Trends!$A$3:$H$94,8)+Sens -> 1.045 | V24: 2.520241156 | X24: 44358.37981 | Y24: 5257.539787 | Z24: 49615.91959 | AB24: 57940.30915 | AC24: 26485.76661 | AD24: 84426.07576 | AF24: 134041.9954 | AH24: =IF($B24<121,VLOOKUP($B24,Lookups!A:F,6)*(1-VLOOKUP($B24,Lookups!$N$3:$P$103,2))^($A24-$A$3),"") -> 0.3063995381 | AI24: =IF($B24<121,VLOOKUP($B24,Lookups!A:G,7)*(1-VLOOKUP($B24,Lookups!$N$3:$P$103,3))^($A24-$A$3),"") -> 0.2823931837 | AJ24: 0.3063995381 | AK24: 0.02785779287 | AL24: 0.6318861639 | AM24: 0.852693 | AP24: 2011.95903
A25: 2043 | B25: 103 | D25: =VLOOKUP(B25,Lookups!A:B,2) -> 15415.23373 | E25: =VLOOKUP(B25,Lookups!A:C,3) -> 1816.919755 | G25: =VLOOKUP(B25,Lookups!A:D,4) -> 153164.4644 | H25: =VLOOKUP(B25,Lookups!A:E,5) -> 124960.9887 | J25: =VLOOKUP(A25,Trends!$A$3:$H$94,IF(ExFlg=0,4,2))+Sens -> 1.051 | K25: 2.987168718 | L25: =VLOOKUP(A25,Trends!$A$3:$H$94,IF(ExFlg=0,5,3))+Sens -> 1.053 | M25: 3.030078865 | N25: =VLOOKUP(A25,Trends!$A$3:$H$94,6)+Sens -> 1.045 | O25: 3.023869966 | Q25: =IF(B25<=120,VLOOKUP(B25,Lookups!$A$3:$I$103,8,FALSE),"") -> 0.1501 | R25: =VLOOKUP(A25,Trends!$A$3:$H$94,7)+Sens -> 1.045 | S25: 2.633652008 | T25: =IF(B25<=120,VLOOKUP(B25,Lookups!$A$3:$I$103,9,FALSE),"") -> 0.0841 | U25: =VLOOKUP(A25,Trends!$A$3:$H$94,8)+Sens -> 1.045 | V25: 2.633652008 | X25: 46709.37394 | Y25: 5494.129077 | Z25: 52203.50301 | AB25: 60547.62307 | AC25: 27677.62611 | AD25: 88225.24917 | AF25: 140428.7522 | AH25: =IF($B25<121,VLOOKUP($B25,Lookups!A:F,6)*(1-VLOOKUP($B25,Lookups!$N$3:$P$103,2))^($A25-$A$3),"") -> 0.3251010348 | AI25: =IF($B25<121,VLOOKUP($B25,Lookups!A:G,7)*(1-VLOOKUP($B25,Lookups!$N$3:$P$103,3))^($A25-$A$3),"") -> 0.3024156382 | AJ25: 0.3251010348 | AK25: 0.019322178 | AL25: 0.6182234262 | AM25: 0.844307 | AP25: 1416.308831
A26: 2044 | B26: 104 | D26: =VLOOKUP(B26,Lookups!A:B,2) -> 15415.23373 | E26: =VLOOKUP(B26,Lookups!A:C,3) -> 1816.919755 | G26: =VLOOKUP(B26,Lookups!A:D,4) -> 153164.4644 | H26: =VLOOKUP(B26,Lookups!A:E,5) -> 124960.9887 | J26: =VLOOKUP(A26,Trends!$A$3:$H$94,IF(ExFlg=0,4,2))+Sens -> 1.051 | K26: 3.139514322 | L26: =VLOOKUP(A26,Trends!$A$3:$H$94,IF(ExFlg=0,5,3))+Sens -> 1.053 | M26: 3.190673045 | N26: =VLOOKUP(A26,Trends!$A$3:$H$94,6)+Sens -> 1.045 | O26: 3.159944115 | Q26: =IF(B26<=120,VLOOKUP(B26,Lookups!$A$3:$I$103,8,FALSE),"") -> 0.1501 | R26: =VLOOKUP(A26,Trends!$A$3:$H$94,7)+Sens -> 1.045 | S26: 2.752166348 | T26: =IF(B26<=120,VLOOKUP(B26,Lookups!$A$3:$I$103,9,FALSE),"") -> 0.0841 | U26: =VLOOKUP(A26,Trends!$A$3:$H$94,8)+Sens -> 1.045 | V26: 2.752166348 | X26: 49184.97075 | Y26: 5741.364886 | Z26: 54926.33564 | AB26: 63272.2661 | AC26: 28923.11928 | AD26: 92195.38538 | AF26: 147121.721 | AH26: =IF($B26<121,VLOOKUP($B26,Lookups!A:F,6)*(1-VLOOKUP($B26,Lookups!$N$3:$P$103,2))^($A26-$A$3),"") -> 0.3439070629 | AI26: =IF($B26<121,VLOOKUP($B26,Lookups!A:G,7)*(1-VLOOKUP($B26,Lookups!$N$3:$P$103,3))^($A26-$A$3),"") -> 0.3226753919 | AJ26: 0.3439070629 | AK26: 0.01304051794 | AL26: 0.6048561063 | AM26: 0.835874 | AP26: 969.983895
A27: 2045 | B27: 105 | D27: =VLOOKUP(B27,Lookups!A:B,2) -> 15415.23373 | E27: =VLOOKUP(B27,Lookups!A:C,3) -> 1816.919755 | G27: =VLOOKUP(B27,Lookups!A:D,4) -> 153164.4644 | H27: =VLOOKUP(B27,Lookups!A:E,5) -> 124960.9887 | J27: =VLOOKUP(A27,Trends!$A$3:$H$94,IF(ExFlg=0,4,2))+Sens -> 1.051 | K27: 3.299629553 | L27: =VLOOKUP(A27,Trends!$A$3:$H$94,IF(ExFlg=0,5,3))+Sens -> 1.052 | M27: 3.359778716 | N27: =VLOOKUP(A27,Trends!$A$3:$H$94,6)+Sens -> 1.045 | O27: 3.3021416 | Q27: =IF(B27<=120,VLOOKUP(B27,Lookups!$A$3:$I$103,8,FALSE),"") -> 0.1501 | R27: =VLOOKUP(A27,Trends!$A$3:$H$94,7)+Sens -> 1.045 | S27: 2.876013834 | T27: =IF(B27<=120,VLOOKUP(B27,Lookups!$A$3:$I$103,9,FALSE),"") -> 0.0841 | U27: =VLOOKUP(A27,Trends!$A$3:$H$94,8)+Sens -> 1.045 | V27: 2.876013834 | X27: 51791.7742 | Y27: 5999.726306 | Z27: 57791.50051 | AB27: 66119.51808 | AC27: 30224.65965 | AD27: 96344.17773 | AF27: 154135.6782 | AH27: =IF($B27<121,VLOOKUP($B27,Lookups!A:F,6)*(1-VLOOKUP($B27,Lookups!$N$3:$P$103,2))^($A27-$A$3),"") -> 0.3627431139 | AI27: =IF($B27<121,VLOOKUP($B27,Lookups!A:G,7)*(1-VLOOKUP($B27,Lookups!$N$3:$P$103,3))^($A27-$A$3),"") -> 0.3430706456 | AJ27: 0.3627431139 | AK27: 0.008555791716 | AL27: 0.5917778165 | AM27: 0.827427 | AP27: 645.73117
A28: 2046 | B28: 106 | D28: =VLOOKUP(B28,Lookups!A:B,2) -> 15415.23373 | E28: =VLOOKUP(B28,Lookups!A:C,3) -> 1816.919755 | G28: =VLOOKUP(B28,Lookups!A:D,4) -> 153164.4644 | H28: =VLOOKUP(B28,Lookups!A:E,5) -> 124960.9887 | J28: =VLOOKUP(A28,Trends!$A$3:$H$94,IF(ExFlg=0,4,2))+Sens -> 1.051 | K28: 3.46791066 | L28: =VLOOKUP(A28,Trends!$A$3:$H$94,IF(ExFlg=0,5,3))+Sens -> 1.052 | M28: 3.534487209 | N28: =VLOOKUP(A28,Trends!$A$3:$H$94,6)+Sens -> 1.045 | O28: 3.450737972 | Q28: =IF(B28<=120,VLOOKUP(B28,Lookups!$A$3:$I$103,8,FALSE),"") -> 0.1501 | R28: =VLOOKUP(A28,Trends!$A$3:$H$94,7)+Sens -> 1.045 | S28: 3.005434457 | T28: =IF(B28<=120,VLOOKUP(B28,Lookups!$A$3:$I$103,9,FALSE),"") -> 0.0841 | U28: =VLOOKUP(A28,Trends!$A$3:$H$94,8)+Sens -> 1.045 | V28: 3.005434457 | X28: 54484.94646 | Y28: 6269.713989 | Z28: 60754.66045 | AB28: 69094.89639 | AC28: 31584.76933 | AD28: 100679.6657 | AF28: 161434.3262 | AH28: =IF($B28<121,VLOOKUP($B28,Lookups!A:F,6)*(1-VLOOKUP($B28,Lookups!$N$3:$P$103,2))^($A28-$A$3),"") -> 0.3829330448 | AI28: =IF($B28<121,VLOOKUP($B28,Lookups!A:G,7)*(1-VLOOKUP($B28,Lookups!$N$3:$P$103,3))^($A28-$A$3),"") -> 0.3648189608 | AJ28: 0.3829330448 | AK28: 0.005452237187 | AL28: 0.5789823075 | AM28: 0.818374 | AP28: 417.0496316
A29: 2047 | B29: 107 | D29: =VLOOKUP(B29,Lookups!A:B,2) -> 15415.23373 | E29: =VLOOKUP(B29,Lookups!A:C,3) -> 1816.919755 | G29: =VLOOKUP(B29,Lookups!A:D,4) -> 153164.4644 | H29: =VLOOKUP(B29,Lookups!A:E,5) -> 124960.9887 | J29: =VLOOKUP(A29,Trends!$A$3:$H$94,IF(ExFlg=0,4,2))+Sens -> 1.051 | K29: 3.644774104 | L29: =VLOOKUP(A29,Trends!$A$3:$H$94,IF(ExFlg=0,5,3))+Sens -> 1.051 | M29: 3.718280544 | N29: =VLOOKUP(A29,Trends!$A$3:$H$94,6)+Sens -> 1.045 | O29: 3.60602118 | Q29: =IF(B29<=120,VLOOKUP(B29,Lookups!$A$3:$I$103,8,FALSE),"") -> 0.1501 | R29: =VLOOKUP(A29,Trends!$A$3:$H$94,7)+Sens -> 1.045 | S29: 3.140679007 | T29: =IF(B29<=120,VLOOKUP(B29,Lookups!$A$3:$I$103,9,FALSE),"") -> 0.0841 | U29: =VLOOKUP(A29,Trends!$A$3:$H$94,8)+Sens -> 1.045 | V29: 3.140679007 | X29: 57318.16368 | Y29: 6551.851119 | Z29: 63870.0148 | AB29: 72204.16673 | AC29: 33006.08395 | AD29: 105210.2507 | AF29: 169080.2655 | AH29: =IF($B29<121,VLOOKUP($B29,Lookups!A:F,6)*(1-VLOOKUP($B29,Lookups!$N$3:$P$103,2))^($A29-$A$3),"") -> 0.4017769783 | AI29: =IF($B29<121,VLOOKUP($B29,Lookups!A:G,7)*(1-VLOOKUP($B29,Lookups!$N$3:$P$103,3))^($A29-$A$3),"") -> 0.3853130572 | AJ29: 0.4017769783 | AK29: 0.0033643954 | AL29: 0.566463465 | AM29: 0.809924 | AP29: 260.9853469
A30: 2048 | B30: 108 | D30: =VLOOKUP(B30,Lookups!A:B,2) -> 15415.23373 | E30: =VLOOKUP(B30,Lookups!A:C,3) -> 1816.919755 | G30: =VLOOKUP(B30,Lookups!A:D,4) -> 153164.4644 | H30: =VLOOKUP(B30,Lookups!A:E,5) -> 124960.9887 | J30: =VLOOKUP(A30,Trends!$A$3:$H$94,IF(ExFlg=0,4,2))+Sens -> 1.051 | K30: 3.830657583 | L30: =VLOOKUP(A30,Trends!$A$3:$H$94,IF(ExFlg=0,5,3))+Sens -> 1.051 | M30: 3.907912852 | N30: =VLOOKUP(A30,Trends!$A$3:$H$94,6)+Sens -> 1.045 | O30: 3.768292134 | Q30: =IF(B30<=120,VLOOKUP(B30,Lookups!$A$3:$I$103,8,FALSE),"") -> 0.1501 | R30: =VLOOKUP(A30,Trends!$A$3:$H$94,7)+Sens -> 1.045 | S30: 3.282009562 | T30: =IF(B30<=120,VLOOKUP(B30,Lookups!$A$3:$I$103,9,FALSE),"") -> 0.0841 | U30: =VLOOKUP(A30,Trends!$A$3:$H$94,8)+Sens -> 1.045 | V30: 3.282009562 | X30: 60241.39003 | Y30: 6846.684419 | Z30: 67088.07445 | AB30: 75453.35423 | AC30: 34491.35773 | AD30: 109944.712 | AF30: 177032.7864 | AH30: =IF($B30<121,VLOOKUP($B30,Lookups!A:F,6)*(1-VLOOKUP($B30,Lookups!$N$3:$P$103,2))^($A30-$A$3),"") -> 0.4205160354 | AI30: =IF($B30<121,VLOOKUP($B30,Lookups!A:G,7)*(1-VLOOKUP($B30,Lookups!$N$3:$P$103,3))^($A30-$A$3),"") -> 0.4057026304 | AJ30: 0.4205160354 | AK30: 0.002012658782 | AL30: 0.5542153067 | AM30: 0.801521 | AP30: 158.2768066
A31: 2049 | B31: 109 | D31: =VLOOKUP(B31,Lookups!A:B,2) -> 15415.23373 | E31: =VLOOKUP(B31,Lookups!A:C,3) -> 1816.919755 | G31: =VLOOKUP(B31,Lookups!A:D,4) -> 153164.4644 | H31: =VLOOKUP(B31,Lookups!A:E,5) -> 124960.9887 | J31: =VLOOKUP(A31,Trends!$A$3:$H$94,IF(ExFlg=0,4,2))+Sens -> 1.051 | K31: 4.02602112 | L31: =VLOOKUP(A31,Trends!$A$3:$H$94,IF(ExFlg=0,5,3))+Sens -> 1.051 | M31: 4.107216408 | N31: =VLOOKUP(A31,Trends!$A$3:$H$94,6)+Sens -> 1.045 | O31: 3.93786528 | Q31: =IF(B31<=120,VLOOKUP(B31,Lookups!$A$3:$I$103,8,FALSE),"") -> 0.1501 | R31: =VLOOKUP(A31,Trends!$A$3:$H$94,7)+Sens -> 1.045 | S31: 3.429699993 | T31: =IF(B31<=120,VLOOKUP(B31,Lookups!$A$3:$I$103,9,FALSE),"") -> 0.0841 | U31: =VLOOKUP(A31,Trends!$A$3:$H$94,8)+Sens -> 1.045 | V31: 3.429699993 | X31: 63313.70092 | Y31: 7154.785218 | Z31: 70468.48614 | AB31: 78848.75517 | AC31: 36043.46883 | AD31: 114892.224 | AF31: 185360.7101 | AH31: =IF($B31<121,VLOOKUP($B31,Lookups!A:F,6)*(1-VLOOKUP($B31,Lookups!$N$3:$P$103,2))^($A31-$A$3),"") -> 0.4391365054 | AI31: =IF($B31<121,VLOOKUP($B31,Lookups!A:G,7)*(1-VLOOKUP($B31,Lookups!$N$3:$P$103,3))^($A31-$A$3),"") -> 0.4259325511 | AJ31: 0.4391365054 | AK31: 0.001166303491 | AL31: 0.5422319799 | AM31: 0.793171 | AP31: 92.97821731
A32: 2050 | B32: 110 | D32: =VLOOKUP(B32,Lookups!A:B,2) -> 15415.23373 | E32: =VLOOKUP(B32,Lookups!A:C,3) -> 1816.919755 | G32: =VLOOKUP(B32,Lookups!A:D,4) -> 153164.4644 | H32: =VLOOKUP(B32,Lookups!A:E,5) -> 124960.9887 | J32: =VLOOKUP(A32,Trends!$A$3:$H$94,IF(ExFlg=0,4,2))+Sens -> 1.051 | K32: 4.231348197 | L32: =VLOOKUP(A32,Trends!$A$3:$H$94,IF(ExFlg=0,5,3))+Sens -> 1.051 | M32: 4.316684444 | N32: =VLOOKUP(A32,Trends!$A$3:$H$94,6)+Sens -> 1.044 | O32: 4.115069217 | Q32: =IF(B32<=120,VLOOKUP(B32,Lookups!$A$3:$I$103,8,FALSE),"") -> 0.1501 | R32: =VLOOKUP(A32,Trends!$A$3:$H$94,7)+Sens -> 1.045 | S32: 3.584036492 | T32: =IF(B32<=120,VLOOKUP(B32,Lookups!$A$3:$I$103,9,FALSE),"") -> 0.0841 | U32: =VLOOKUP(A32,Trends!$A$3:$H$94,8)+Sens -> 1.045 | V32: 3.584036492 | X32: 66542.69967 | Y32: 7476.750553 | Z32: 74019.45022 | AB32: 82396.94916 | AC32: 37665.42493 | AD32: 120062.3741 | AF32: 194081.8243 | AH32: =IF($B32<121,VLOOKUP($B32,Lookups!A:F,6)*(1-VLOOKUP($B32,Lookups!$N$3:$P$103,2))^($A32-$A$3),"") -> 0.4565354456 | AI32: =IF($B32<121,VLOOKUP($B32,Lookups!A:G,7)*(1-VLOOKUP($B32,Lookups!$N$3:$P$103,3))^($A32-$A$3),"") -> 0.4477694429 | AJ32: 0.4565354456 | AK32: 0.0006541370516 | AL32: 0.5305077585 | AM32: 0.785369 | AP32: 52.89554661
A33: 2051 | B33: 111 | D33: =VLOOKUP(B33,Lookups!A:B,2) -> 15415.23373 | E33: =VLOOKUP(B33,Lookups!A:C,3) -> 1816.919755 | G33: =VLOOKUP(B33,Lookups!A:D,4) -> 153164.4644 | H33: =VLOOKUP(B33,Lookups!A:E,5) -> 124960.9887 | J33: =VLOOKUP(A33,Trends!$A$3:$H$94,IF(ExFlg=0,4,2))+Sens -> 1.051 | K33: 4.447146955 | L33: =VLOOKUP(A33,Trends!$A$3:$H$94,IF(ExFlg=0,5,3))+Sens -> 1.051 | M33: 4.536835351 | N33: =VLOOKUP(A33,Trends!$A$3:$H$94,6)+Sens -> 1.044 | O33: 4.296132263 | Q33: =IF(B33<=120,VLOOKUP(B33,Lookups!$A$3:$I$103,8,FALSE),"") -> 0.1501 | R33: =VLOOKUP(A33,Trends!$A$3:$H$94,7)+Sens -> 1.045 | S33: 3.745318135 | T33: =IF(B33<=120,VLOOKUP(B33,Lookups!$A$3:$I$103,9,FALSE),"") -> 0.0841 | U33: =VLOOKUP(A33,Trends!$A$3:$H$94,8)+Sens -> 1.045 | V33: 3.745318135 | X33: 69936.37735 | Y33: 7805.727577 | Z33: 77742.10493 | AB33: 86104.81187 | AC33: 39360.36905 | AD33: 125465.1809 | AF33: 203207.2858 | AH33: =IF($B33<121,VLOOKUP($B33,Lookups!A:F,6)*(1-VLOOKUP($B33,Lookups!$N$3:$P$103,2))^($A33-$A$3),"") -> 0.4663091314 | AI33: =IF($B33<121,VLOOKUP($B33,Lookups!A:G,7)*(1-VLOOKUP($B33,Lookups!$N$3:$P$103,3))^($A33-$A$3),"") -> 0.4663091314 | AJ33: 0.4663091314 | AK33: 0.0003555003012 | AL33: 0.5190370399 | AM33: 0.780986 | AP33: 29.28335607
A34: 2052 | B34: 112 | D34: =VLOOKUP(B34,Lookups!A:B,2) -> 15415.23373 | E34: =VLOOKUP(B34,Lookups!A:C,3) -> 1816.919755 | G34: =VLOOKUP(B34,Lookups!A:D,4) -> 153164.4644 | H34: =VLOOKUP(B34,Lookups!A:E,5) -> 124960.9887 | J34: =VLOOKUP(A34,Trends!$A$3:$H$94,IF(ExFlg=0,4,2))+Sens -> 1.051 | K34: 4.67395145 | L34: =VLOOKUP(A34,Trends!$A$3:$H$94,IF(ExFlg=0,5,3))+Sens -> 1.05 | M34: 4.768213954 | N34: =VLOOKUP(A34,Trends!$A$3:$H$94,6)+Sens -> 1.044 | O34: 4.485162082 | Q34: =IF(B34<=120,VLOOKUP(B34,Lookups!$A$3:$I$103,8,FALSE),"") -> 0.1501 | R34: =VLOOKUP(A34,Trends!$A$3:$H$94,7)+Sens -> 1.045 | S34: 3.913857451 | T34: =IF(B34<=120,VLOOKUP(B34,Lookups!$A$3:$I$103,9,FALSE),"") -> 0.0841 | U34: =VLOOKUP(A34,Trends!$A$3:$H$94,8)+Sens -> 1.045 | V34: 3.913857451 | X34: 73503.13259 | Y34: 8149.179591 | Z34: 81652.31218 | AB34: 89979.5284 | AC34: 41131.58565 | AD34: 131111.1141 | AF34: 212763.4262 | AH34: =IF($B34<121,VLOOKUP($B34,Lookups!A:F,6)*(1-VLOOKUP($B34,Lookups!$N$3:$P$103,2))^($A34-$A$3),"") -> 0.4734150925 | AI34: =IF($B34<121,VLOOKUP($B34,Lookups!A:G,7)*(1-VLOOKUP($B34,Lookups!$N$3:$P$103,3))^($A34-$A$3),"") -> 0.4734150925 | AJ34: 0.4734150925 | AK34: 0.0001897272646 | AL34: 0.5078143429 | AM34: 0.7778 | AP34: 15.94408579
A35: 2053 | B35: 113 | D35: =VLOOKUP(B35,Lookups!A:B,2) -> 15415.23373 | E35: =VLOOKUP(B35,Lookups!A:C,3) -> 1816.919755 | G35: =VLOOKUP(B35,Lookups!A:D,4) -> 153164.4644 | H35: =VLOOKUP(B35,Lookups!A:E,5) -> 124960.9887 | J35: =VLOOKUP(A35,Trends!$A$3:$H$94,IF(ExFlg=0,4,2))+Sens -> 1.051 | K35: 4.912322974 | L35: =VLOOKUP(A35,Trends!$A$3:$H$94,IF(ExFlg=0,5,3))+Sens -> 1.05 | M35: 5.006624652 | N35: =VLOOKUP(A35,Trends!$A$3:$H$94,6)+Sens -> 1.044 | O35: 4.682509214 | Q35: =IF(B35<=120,VLOOKUP(B35,Lookups!$A$3:$I$103,8,FALSE),"") -> 0.1501 | R35: =VLOOKUP(A35,Trends!$A$3:$H$94,7)+Sens -> 1.045 | S35: 4.089981036 | T35: =IF(B35<=120,VLOOKUP(B35,Lookups!$A$3:$I$103,9,FALSE),"") -> 0.0841 | U35: =VLOOKUP(A35,Trends!$A$3:$H$94,8)+Sens -> 1.045 | V35: 4.089981036 | X35: 77178.28922 | Y35: 8507.743493 | Z35: 85686.03272 | AB35: 94028.60718 | AC35: 42982.50701 | AD35: 137011.1142 | AF35: 222697.1469 | AH35: =IF($B35<121,VLOOKUP($B35,Lookups!A:F,6)*(1-VLOOKUP($B35,Lookups!$N$3:$P$103,2))^($A35-$A$3),"") -> 0.4810112569 | AI35: =IF($B35<121,VLOOKUP($B35,Lookups!A:G,7)*(1-VLOOKUP($B35,Lookups!$N$3:$P$103,3))^($A35-$A$3),"") -> 0.4810112569 | AJ35: =IF(B35<121,(PCTMALE*AH35+(1-PCTMALE)*AI35),"") -> 0.4810112569 | AK35: 9.990751406e-05 | AL35: 0.4968343048 | AM35: =IF(AJ35="","",ROUND((13/24)+(11/24)*(1/(1+IntRt))*(1-AJ35),6)) -> 0.774393 | AP35: 8.560237207
A36: =1+A35 -> 2054 | B36: =1+B35 -> 114 | D36: =VLOOKUP(B36,Lookups!A:B,2) -> 15415.23373 | E36: =VLOOKUP(B36,Lookups!A:C,3) -> 1816.919755 | G36: =VLOOKUP(B36,Lookups!A:D,4) -> 153164.4644 | H36: =VLOOKUP(B36,Lookups!A:E,5) -> 124960.9887 | J36: =VLOOKUP(A36,Trends!$A$3:$H$94,IF(ExFlg=0,4,2))+Sens -> 1.051 | K36: 5.162851445 | L36: =VLOOKUP(A36,Trends!$A$3:$H$94,IF(ExFlg=0,5,3))+Sens -> 1.05 | M36: 5.256955884 | N36: =VLOOKUP(A36,Trends!$A$3:$H$94,6)+Sens -> 1.044 | O36: 4.888539619 | Q36: =IF(B36<=120,VLOOKUP(B36,Lookups!$A$3:$I$103,8,FALSE),"") -> 0.1501 | R36: =VLOOKUP(A36,Trends!$A$3:$H$94,7)+Sens -> 1.045 | S36: 4.274030182 | T36: =IF(B36<=120,VLOOKUP(B36,Lookups!$A$3:$I$103,9,FALSE),"") -> 0.0841 | U36: =VLOOKUP(A36,Trends!$A$3:$H$94,8)+Sens -> 1.045 | V36: 4.274030182 | X36: 81037.20368 | Y36: 8882.084206 | Z36: 89919.28789 | AB36: 98259.8945 | AC36: 44916.71982 | AD36: 143176.6143 | AF36: 233095.9022 | AH36: =IF($B36<121,VLOOKUP($B36,Lookups!A:F,6)*(1-VLOOKUP($B36,Lookups!$N$3:$P$103,2))^($A36-$A$3),"") -> 0.4912752579 | AI36: =IF($B36<121,VLOOKUP($B36,Lookups!A:G,7)*(1-VLOOKUP($B36,Lookups!$N$3:$P$103,3))^($A36-$A$3),"") -> 0.4912752579 | AJ36: 0.4912752579 | AK36: 5.185087515e-05 | AL36: =IF(B36<121,AL35/(1+IntRt),"") -> 0.4860916787 | AM36: 0.769791 | AP36: 4.522533009
A37: 2055 | B37: 115 | D37: =VLOOKUP(B37,Lookups!A:B,2) -> 15415.23373 | E37: =VLOOKUP(B37,Lookups!A:C,3) -> 1816.919755 | G37: =VLOOKUP(B37,Lookups!A:D,4) -> 153164.4644 | H37: =VLOOKUP(B37,Lookups!A:E,5) -> 124960.9887 | J37: =VLOOKUP(A37,Trends!$A$3:$H$94,IF(ExFlg=0,4,2))+Sens -> 1.051 | K37: 5.426156869 | L37: =VLOOKUP(A37,Trends!$A$3:$H$94,IF(ExFlg=0,5,3))+Sens -> 1.05 | M37: 5.519803678 | N37: =VLOOKUP(A37,Trends!$A$3:$H$94,6)+Sens -> 1.044 | O37: 5.103635362 | Q37: =IF(B37<=120,VLOOKUP(B37,Lookups!$A$3:$I$103,8,FALSE),"") -> 0.1501 | R37: =VLOOKUP(A37,Trends!$A$3:$H$94,7)+Sens -> 1.045 | S37: 4.466361541 | T37: =IF(B37<=120,VLOOKUP(B37,Lookups!$A$3:$I$103,9,FALSE),"") -> 0.0841 | U37: =VLOOKUP(A37,Trends!$A$3:$H$94,8)+Sens -> 1.045 | V37: 4.466361541 | X37: 85089.06387 | Y37: 9272.895911 | Z37: 94361.95978 | AB37: 102681.5898 | AC37: 46937.97222 | AD37: 149619.562 | AF37: 243981.5218 | AH37: =IF($B37<121,VLOOKUP($B37,Lookups!A:F,6)*(1-VLOOKUP($B37,Lookups!$N$3:$P$103,2))^($A37-$A$3),"") -> 0.5 | AI37: =IF($B37<121,VLOOKUP($B37,Lookups!A:G,7)*(1-VLOOKUP($B37,Lookups!$N$3:$P$103,3))^($A37-$A$3),"") -> 0.5 | AJ37: 0.5 | AK37: 2.637782309e-05 | AL37: 0.4755813312 | AM37: 0.765878 | AP37: 2.344122371
A38: 2056 | B38: 116 | D38: =VLOOKUP(B38,Lookups!A:B,2) -> 15415.23373 | E38: =VLOOKUP(B38,Lookups!A:C,3) -> 1816.919755 | G38: =VLOOKUP(B38,Lookups!A:D,4) -> 153164.4644 | H38: =VLOOKUP(B38,Lookups!A:E,5) -> 124960.9887 | J38: =VLOOKUP(A38,Trends!$A$3:$H$94,IF(ExFlg=0,4,2))+Sens -> 1.051 | K38: 5.702890869 | L38: =VLOOKUP(A38,Trends!$A$3:$H$94,IF(ExFlg=0,5,3))+Sens -> 1.05 | M38: 5.795793862 | N38: =VLOOKUP(A38,Trends!$A$3:$H$94,6)+Sens -> 1.044 | O38: 5.328195318 | Q38: =IF(B38<=120,VLOOKUP(B38,Lookups!$A$3:$I$103,8,FALSE),"") -> 0.1501 | R38: =VLOOKUP(A38,Trends!$A$3:$H$94,7)+Sens -> 1.045 | S38: 4.66734781 | T38: =IF(B38<=120,VLOOKUP(B38,Lookups!$A$3:$I$103,9,FALSE),"") -> 0.0841 | U38: =VLOOKUP(A38,Trends!$A$3:$H$94,8)+Sens -> 1.045 | V38: 4.66734781 | X38: 89343.51706 | Y38: 9680.903332 | Z38: 99024.42039 | AB38: 107302.2613 | AC38: 49050.18097 | AD38: 156352.4423 | AF38: 255376.8627 | AH38: =IF($B38<121,VLOOKUP($B38,Lookups!A:F,6)*(1-VLOOKUP($B38,Lookups!$N$3:$P$103,2))^($A38-$A$3),"") -> 0.5 | AI38: =IF($B38<121,VLOOKUP($B38,Lookups!A:G,7)*(1-VLOOKUP($B38,Lookups!$N$3:$P$103,3))^($A38-$A$3),"") -> 0.5 | AJ38: 0.5 | AK38: 1.318891154e-05 | AL38: 0.4652982401 | AM38: 0.765878 | AP38: 1.200277064
A39: 2057 | B39: 117 | D39: =VLOOKUP(B39,Lookups!A:B,2) -> 15415.23373 | E39: =VLOOKUP(B39,Lookups!A:C,3) -> 1816.919755 | G39: =VLOOKUP(B39,Lookups!A:D,4) -> 153164.4644 | H39: =VLOOKUP(B39,Lookups!A:E,5) -> 124960.9887 | J39: =VLOOKUP(A39,Trends!$A$3:$H$94,IF(ExFlg=0,4,2))+Sens -> 1.051 | K39: 5.993738304 | L39: =VLOOKUP(A39,Trends!$A$3:$H$94,IF(ExFlg=0,5,3))+Sens -> 1.05 | M39: 6.085583556 | N39: =VLOOKUP(A39,Trends!$A$3:$H$94,6)+Sens -> 1.044 | O39: 5.562635912 | Q39: =IF(B39<=120,VLOOKUP(B39,Lookups!$A$3:$I$103,8,FALSE),"") -> 0.1501 | R39: =VLOOKUP(A39,Trends!$A$3:$H$94,7)+Sens -> 1.045 | S39: 4.877378461 | T39: =IF(B39<=120,VLOOKUP(B39,Lookups!$A$3:$I$103,9,FALSE),"") -> 0.0841 | U39: =VLOOKUP(A39,Trends!$A$3:$H$94,8)+Sens -> 1.045 | V39: 4.877378461 | X39: 93810.69291 | Y39: 10106.86308 | Z39: 103917.556 | AB39: 112130.8631 | AC39: 51257.43911 | AD39: 163388.3022 | AF39: 267305.8582 | AH39: =IF($B39<121,VLOOKUP($B39,Lookups!A:F,6)*(1-VLOOKUP($B39,Lookups!$N$3:$P$103,2))^($A39-$A$3),"") -> 0.5 | AI39: =IF($B39<121,VLOOKUP($B39,Lookups!A:G,7)*(1-VLOOKUP($B39,Lookups!$N$3:$P$103,3))^($A39-$A$3),"") -> 0.5 | AJ39: 0.5 | AK39: 6.594455771e-06 | AL39: 0.4552374916 | AM39: 0.765878 | AP39: 0.6145893817
A40: 2058 | B40: 118 | D40: =VLOOKUP(B40,Lookups!A:B,2) -> 15415.23373 | E40: =VLOOKUP(B40,Lookups!A:C,3) -> 1816.919755 | G40: =VLOOKUP(B40,Lookups!A:D,4) -> 153164.4644 | H40: =VLOOKUP(B40,Lookups!A:E,5) -> 124960.9887 | J40: =VLOOKUP(A40,Trends!$A$3:$H$94,IF(ExFlg=0,4,2))+Sens -> 1.051 | K40: 6.299418957 | L40: =VLOOKUP(A40,Trends!$A$3:$H$94,IF(ExFlg=0,5,3))+Sens -> 1.05 | M40: 6.389862733 | N40: =VLOOKUP(A40,Trends!$A$3:$H$94,6)+Sens -> 1.044 | O40: 5.807391893 | Q40: =IF(B40<=120,VLOOKUP(B40,Lookups!$A$3:$I$103,8,FALSE),"") -> 0.1501 | R40: =VLOOKUP(A40,Trends!$A$3:$H$94,7)+Sens -> 1.045 | S40: 5.096860492 | T40: =IF(B40<=120,VLOOKUP(B40,Lookups!$A$3:$I$103,9,FALSE),"") -> 0.0841 | U40: =VLOOKUP(A40,Trends!$A$3:$H$94,8)+Sens -> 1.045 | V40: 5.096860492 | X40: 98501.22756 | Y40: 10551.56505 | Z40: 109052.7926 | AB40: 117176.7519 | AC40: 53564.02387 | AD40: 170740.7758 | AF40: 279793.5684 | AH40: =IF($B40<121,VLOOKUP($B40,Lookups!A:F,6)*(1-VLOOKUP($B40,Lookups!$N$3:$P$103,2))^($A40-$A$3),"") -> 0.5 | AI40: =IF($B40<121,VLOOKUP($B40,Lookups!A:G,7)*(1-VLOOKUP($B40,Lookups!$N$3:$P$103,3))^($A40-$A$3),"") -> 0.5 | AJ40: 0.5 | AK40: 3.297227886e-06 | AL40: 0.445394278 | AM40: 0.765878 | AP40: 0.31469578
A41: 2059 | B41: 119 | D41: =VLOOKUP(B41,Lookups!A:B,2) -> 15415.23373 | E41: =VLOOKUP(B41,Lookups!A:C,3) -> 1816.919755 | G41: =VLOOKUP(B41,Lookups!A:D,4) -> 153164.4644 | H41: =VLOOKUP(B41,Lookups!A:E,5) -> 124960.9887 | J41: =VLOOKUP(A41,Trends!$A$3:$H$94,IF(ExFlg=0,4,2))+Sens -> 1.051 | K41: 6.620689324 | L41: =VLOOKUP(A41,Trends!$A$3:$H$94,IF(ExFlg=0,5,3))+Sens -> 1.05 | M41: 6.70935587 | N41: =VLOOKUP(A41,Trends!$A$3:$H$94,6)+Sens -> 1.044 | O41: 6.062917136 | Q41: =IF(B41<=120,VLOOKUP(B41,Lookups!$A$3:$I$103,8,FALSE),"") -> 0.1501 | R41: =VLOOKUP(A41,Trends!$A$3:$H$94,7)+Sens -> 1.045 | S41: 5.326219214 | T41: =IF(B41<=120,VLOOKUP(B41,Lookups!$A$3:$I$103,9,FALSE),"") -> 0.0841 | U41: =VLOOKUP(A41,Trends!$A$3:$H$94,8)+Sens -> 1.045 | V41: 5.326219214 | X41: 103426.2889 | Y41: 11015.83392 | Z41: 114442.1229 | AB41: 122449.7057 | AC41: 55974.40494 | AD41: 178424.1107 | AF41: 292866.2335 | AH41: =IF($B41<121,VLOOKUP($B41,Lookups!A:F,6)*(1-VLOOKUP($B41,Lookups!$N$3:$P$103,2))^($A41-$A$3),"") -> 0.5 | AI41: =IF($B41<121,VLOOKUP($B41,Lookups!A:G,7)*(1-VLOOKUP($B41,Lookups!$N$3:$P$103,3))^($A41-$A$3),"") -> 0.5 | AJ41: 0.5 | AK41: 1.648613943e-06 | AL41: 0.4357638959 | AM41: 0.765878 | AP41: 0.1611384233
A42: 2060 | B42: 120 | D42: =VLOOKUP(B42,Lookups!A:B,2) -> 15415.23373 | E42: =VLOOKUP(B42,Lookups!A:C,3) -> 1816.919755 | G42: =VLOOKUP(B42,Lookups!A:D,4) -> 153164.4644 | H42: =VLOOKUP(B42,Lookups!A:E,5) -> 124960.9887 | J42: =VLOOKUP(A42,Trends!$A$3:$H$94,IF(ExFlg=0,4,2))+Sens -> 1.051 | K42: 6.958344479 | L42: =VLOOKUP(A42,Trends!$A$3:$H$94,IF(ExFlg=0,5,3))+Sens -> 1.05 | M42: 7.044823663 | N42: =VLOOKUP(A42,Trends!$A$3:$H$94,6)+Sens -> 1.044 | O42: 6.32968549 | Q42: =IF(B42<=120,VLOOKUP(B42,Lookups!$A$3:$I$103,8,FALSE),"") -> 0.1501 | R42: =VLOOKUP(A42,Trends!$A$3:$H$94,7)+Sens -> 1.045 | S42: 5.565899079 | T42: =IF(B42<=120,VLOOKUP(B42,Lookups!$A$3:$I$103,9,FALSE),"") -> 0.0841 | U42: =VLOOKUP(A42,Trends!$A$3:$H$94,8)+Sens -> 1.045 | V42: 5.565899079 | X42: 108597.6034 | Y42: 11500.53061 | Z42: 120098.134 | AB42: 127959.9425 | AC42: 58493.25317 | AD42: 186453.1956 | AF42: 306551.3296 | AH42: =IF($B42<121,VLOOKUP($B42,Lookups!A:F,6)*(1-VLOOKUP($B42,Lookups!$N$3:$P$103,2))^($A42-$A$3),"") -> 1 | AI42: =IF($B42<121,VLOOKUP($B42,Lookups!A:G,7)*(1-VLOOKUP($B42,Lookups!$N$3:$P$103,3))^($A42-$A$3),"") -> 1 | AJ42: 1 | AK42: 8.243069714e-07 | AL42: 0.4263417434 | AM42: 0.541667 | AP42: 0.05835558292
A43: 2061 | B43: 121 | D43: =VLOOKUP(B43,Lookups!A:B,2) -> 15415.23373 | E43: =VLOOKUP(B43,Lookups!A:C,3) -> 1816.919755 | G43: =VLOOKUP(B43,Lookups!A:D,4) -> 153164.4644 | H43: =VLOOKUP(B43,Lookups!A:E,5) -> 124960.9887 | J43: =VLOOKUP(A43,Trends!$A$3:$H$94,IF(ExFlg=0,4,2))+Sens -> 1.051 | K43: 7.313220048 | L43: =VLOOKUP(A43,Trends!$A$3:$H$94,IF(ExFlg=0,5,3))+Sens -> 1.05 | M43: 7.397064847 | N43: =VLOOKUP(A43,Trends!$A$3:$H$94,6)+Sens -> 1.044 | O43: 6.608191651 | Q43: =IF(B43<=120,VLOOKUP(B43,Lookups!$A$3:$I$103,8,FALSE),"") ->  | R43: =VLOOKUP(A43,Trends!$A$3:$H$94,7)+Sens -> 1.045 | S43: 5.816364538 | T43: =IF(B43<=120,VLOOKUP(B43,Lookups!$A$3:$I$103,9,FALSE),"") ->  | U43: =VLOOKUP(A43,Trends!$A$3:$H$94,8)+Sens -> 1.045 | V43: 5.816364538 | AH43: =IF($B43<121,VLOOKUP($B43,Lookups!A:F,6)*(1-VLOOKUP($B43,Lookups!$N$3:$P$103,2))^($A43-$A$3),"") ->  | AI43: =IF($B43<121,VLOOKUP($B43,Lookups!A:G,7)*(1-VLOOKUP($B43,Lookups!$N$3:$P$103,3))^($A43-$A$3),"") -> 
A44: 2062 | B44: 122 | D44: =VLOOKUP(B44,Lookups!A:B,2) -> 15415.23373 | E44: =VLOOKUP(B44,Lookups!A:C,3) -> 1816.919755 | G44: =VLOOKUP(B44,Lookups!A:D,4) -> 153164.4644 | H44: =VLOOKUP(B44,Lookups!A:E,5) -> 124960.9887 | J44: =VLOOKUP(A44,Trends!$A$3:$H$94,IF(ExFlg=0,4,2))+Sens -> 1.051 | K44: 7.68619427 | L44: =VLOOKUP(A44,Trends!$A$3:$H$94,IF(ExFlg=0,5,3))+Sens -> 1.05 | M44: 7.766918089 | N44: =VLOOKUP(A44,Trends!$A$3:$H$94,6)+Sens -> 1.044 | O44: 6.898952084 | Q44: =IF(B44<=120,VLOOKUP(B44,Lookups!$A$3:$I$103,8,FALSE),"") ->  | R44: =VLOOKUP(A44,Trends!$A$3:$H$94,7)+Sens -> 1.045 | S44: 6.078100942 | T44: =IF(B44<=120,VLOOKUP(B44,Lookups!$A$3:$I$103,9,FALSE),"") ->  | U44: =VLOOKUP(A44,Trends!$A$3:$H$94,8)+Sens -> 1.045 | V44: 6.078100942 | AH44: =IF($B44<121,VLOOKUP($B44,Lookups!A:F,6)*(1-VLOOKUP($B44,Lookups!$N$3:$P$103,2))^($A44-$A$3),"") ->  | AI44: =IF($B44<121,VLOOKUP($B44,Lookups!A:G,7)*(1-VLOOKUP($B44,Lookups!$N$3:$P$103,3))^($A44-$A$3),"") -> 
A45: 2063 | B45: 123 | D45: =VLOOKUP(B45,Lookups!A:B,2) -> 15415.23373 | E45: =VLOOKUP(B45,Lookups!A:C,3) -> 1816.919755 | G45: =VLOOKUP(B45,Lookups!A:D,4) -> 153164.4644 | H45: =VLOOKUP(B45,Lookups!A:E,5) -> 124960.9887 | J45: =VLOOKUP(A45,Trends!$A$3:$H$94,IF(ExFlg=0,4,2))+Sens -> 1.051 | K45: 8.078190178 | L45: =VLOOKUP(A45,Trends!$A$3:$H$94,IF(ExFlg=0,5,3))+Sens -> 1.05 | M45: 8.155263993 | N45: =VLOOKUP(A45,Trends!$A$3:$H$94,6)+Sens -> 1.044 | O45: 7.202505976 | Q45: =IF(B45<=120,VLOOKUP(B45,Lookups!$A$3:$I$103,8,FALSE),"") ->  | R45: =VLOOKUP(A45,Trends!$A$3:$H$94,7)+Sens -> 1.045 | S45: 6.351615484 | T45: =IF(B45<=120,VLOOKUP(B45,Lookups!$A$3:$I$103,9,FALSE),"") ->  | U45: =VLOOKUP(A45,Trends!$A$3:$H$94,8)+Sens -> 1.045 | V45: 6.351615484 | AH45: =IF($B45<121,VLOOKUP($B45,Lookups!A:F,6)*(1-VLOOKUP($B45,Lookups!$N$3:$P$103,2))^($A45-$A$3),"") ->  | AI45: =IF($B45<121,VLOOKUP($B45,Lookups!A:G,7)*(1-VLOOKUP($B45,Lookups!$N$3:$P$103,3))^($A45-$A$3),"") -> 
A46: 2064 | B46: 124 | D46: =VLOOKUP(B46,Lookups!A:B,2) -> 15415.23373 | E46: =VLOOKUP(B46,Lookups!A:C,3) -> 1816.919755 | G46: =VLOOKUP(B46,Lookups!A:D,4) -> 153164.4644 | H46: =VLOOKUP(B46,Lookups!A:E,5) -> 124960.9887 | J46: =VLOOKUP(A46,Trends!$A$3:$H$94,IF(ExFlg=0,4,2))+Sens -> 1.051 | K46: 8.490177877 | L46: =VLOOKUP(A46,Trends!$A$3:$H$94,IF(ExFlg=0,5,3))+Sens -> 1.049 | M46: 8.563027193 | N46: =VLOOKUP(A46,Trends!$A$3:$H$94,6)+Sens -> 1.044 | O46: 7.519416239 | Q46: =IF(B46<=120,VLOOKUP(B46,Lookups!$A$3:$I$103,8,FALSE),"") ->  | R46: =VLOOKUP(A46,Trends!$A$3:$H$94,7)+Sens -> 1.045 | S46: 6.637438181 | T46: =IF(B46<=120,VLOOKUP(B46,Lookups!$A$3:$I$103,9,FALSE),"") ->  | U46: =VLOOKUP(A46,Trends!$A$3:$H$94,8)+Sens -> 1.045 | V46: 6.637438181 | AH46: =IF($B46<121,VLOOKUP($B46,Lookups!A:F,6)*(1-VLOOKUP($B46,Lookups!$N$3:$P$103,2))^($A46-$A$3),"") ->  | AI46: =IF($B46<121,VLOOKUP($B46,Lookups!A:G,7)*(1-VLOOKUP($B46,Lookups!$N$3:$P$103,3))^($A46-$A$3),"") -> 
A47: 2065 | B47: 125 | D47: =VLOOKUP(B47,Lookups!A:B,2) -> 15415.23373 | E47: =VLOOKUP(B47,Lookups!A:C,3) -> 1816.919755 | G47: =VLOOKUP(B47,Lookups!A:D,4) -> 153164.4644 | H47: =VLOOKUP(B47,Lookups!A:E,5) -> 124960.9887 | J47: =VLOOKUP(A47,Trends!$A$3:$H$94,IF(ExFlg=0,4,2))+Sens -> 1.051 | K47: 8.923176949 | L47: =VLOOKUP(A47,Trends!$A$3:$H$94,IF(ExFlg=0,5,3))+Sens -> 1.048 | M47: 8.982615526 | N47: =VLOOKUP(A47,Trends!$A$3:$H$94,6)+Sens -> 1.044 | O47: 7.850270553 | Q47: =IF(B47<=120,VLOOKUP(B47,Lookups!$A$3:$I$103,8,FALSE),"") ->  | R47: =VLOOKUP(A47,Trends!$A$3:$H$94,7)+Sens -> 1.045 | S47: 6.936122899 | T47: =IF(B47<=120,VLOOKUP(B47,Lookups!$A$3:$I$103,9,FALSE),"") ->  | U47: =VLOOKUP(A47,Trends!$A$3:$H$94,8)+Sens -> 1.045 | V47: 6.936122899 | AH47: =IF($B47<121,VLOOKUP($B47,Lookups!A:F,6)*(1-VLOOKUP($B47,Lookups!$N$3:$P$103,2))^($A47-$A$3),"") ->  | AI47: =IF($B47<121,VLOOKUP($B47,Lookups!A:G,7)*(1-VLOOKUP($B47,Lookups!$N$3:$P$103,3))^($A47-$A$3),"") -> 
A48: 2066 | B48: 126 | D48: =VLOOKUP(B48,Lookups!A:B,2) -> 15415.23373 | E48: =VLOOKUP(B48,Lookups!A:C,3) -> 1816.919755 | G48: =VLOOKUP(B48,Lookups!A:D,4) -> 153164.4644 | H48: =VLOOKUP(B48,Lookups!A:E,5) -> 124960.9887 | J48: =VLOOKUP(A48,Trends!$A$3:$H$94,IF(ExFlg=0,4,2))+Sens -> 1.051 | K48: 9.378258973 | L48: =VLOOKUP(A48,Trends!$A$3:$H$94,IF(ExFlg=0,5,3))+Sens -> 1.048 | M48: 9.413781071 | N48: =VLOOKUP(A48,Trends!$A$3:$H$94,6)+Sens -> 1.044 | O48: 8.195682458 | Q48: =IF(B48<=120,VLOOKUP(B48,Lookups!$A$3:$I$103,8,FALSE),"") ->  | R48: =VLOOKUP(A48,Trends!$A$3:$H$94,7)+Sens -> 1.045 | S48: 7.24824843 | T48: =IF(B48<=120,VLOOKUP(B48,Lookups!$A$3:$I$103,9,FALSE),"") ->  | U48: =VLOOKUP(A48,Trends!$A$3:$H$94,8)+Sens -> 1.045 | V48: 7.24824843 | AH48: =IF($B48<121,VLOOKUP($B48,Lookups!A:F,6)*(1-VLOOKUP($B48,Lookups!$N$3:$P$103,2))^($A48-$A$3),"") ->  | AI48: =IF($B48<121,VLOOKUP($B48,Lookups!A:G,7)*(1-VLOOKUP($B48,Lookups!$N$3:$P$103,3))^($A48-$A$3),"") -> 
A49: 2067 | B49: 127 | D49: =VLOOKUP(B49,Lookups!A:B,2) -> 15415.23373 | E49: =VLOOKUP(B49,Lookups!A:C,3) -> 1816.919755 | G49: =VLOOKUP(B49,Lookups!A:D,4) -> 153164.4644 | H49: =VLOOKUP(B49,Lookups!A:E,5) -> 124960.9887 | J49: =VLOOKUP(A49,Trends!$A$3:$H$94,IF(ExFlg=0,4,2))+Sens -> 1.051 | K49: 9.856550181 | L49: =VLOOKUP(A49,Trends!$A$3:$H$94,IF(ExFlg=0,5,3))+Sens -> 1.047 | M49: 9.865642562 | N49: =VLOOKUP(A49,Trends!$A$3:$H$94,6)+Sens -> 1.044 | O49: 8.556292486 | Q49: =IF(B49<=120,VLOOKUP(B49,Lookups!$A$3:$I$103,8,FALSE),"") ->  | R49: =VLOOKUP(A49,Trends!$A$3:$H$94,7)+Sens -> 1.045 | S49: 7.574419609 | T49: =IF(B49<=120,VLOOKUP(B49,Lookups!$A$3:$I$103,9,FALSE),"") ->  | U49: =VLOOKUP(A49,Trends!$A$3:$H$94,8)+Sens -> 1.045 | V49: 7.574419609 | AH49: =IF($B49<121,VLOOKUP($B49,Lookups!A:F,6)*(1-VLOOKUP($B49,Lookups!$N$3:$P$103,2))^($A49-$A$3),"") ->  | AI49: =IF($B49<121,VLOOKUP($B49,Lookups!A:G,7)*(1-VLOOKUP($B49,Lookups!$N$3:$P$103,3))^($A49-$A$3),"") -> 
A50: 2068 | B50: 128 | D50: =VLOOKUP(B50,Lookups!A:B,2) -> 15415.23373 | E50: =VLOOKUP(B50,Lookups!A:C,3) -> 1816.919755 | G50: =VLOOKUP(B50,Lookups!A:D,4) -> 153164.4644 | H50: =VLOOKUP(B50,Lookups!A:E,5) -> 124960.9887 | J50: =VLOOKUP(A50,Trends!$A$3:$H$94,IF(ExFlg=0,4,2))+Sens -> 1.051 | K50: 10.35923424 | L50: =VLOOKUP(A50,Trends!$A$3:$H$94,IF(ExFlg=0,5,3))+Sens -> 1.046 | M50: 10.32932776 | N50: =VLOOKUP(A50,Trends!$A$3:$H$94,6)+Sens -> 1.044 | O50: 8.932769355 | Q50: =IF(B50<=120,VLOOKUP(B50,Lookups!$A$3:$I$103,8,FALSE),"") ->  | R50: =VLOOKUP(A50,Trends!$A$3:$H$94,7)+Sens -> 1.045 | S50: 7.915268491 | T50: =IF(B50<=120,VLOOKUP(B50,Lookups!$A$3:$I$103,9,FALSE),"") ->  | U50: =VLOOKUP(A50,Trends!$A$3:$H$94,8)+Sens -> 1.045 | V50: 7.915268491 | AH50: =IF($B50<121,VLOOKUP($B50,Lookups!A:F,6)*(1-VLOOKUP($B50,Lookups!$N$3:$P$103,2))^($A50-$A$3),"") ->  | AI50: =IF($B50<121,VLOOKUP($B50,Lookups!A:G,7)*(1-VLOOKUP($B50,Lookups!$N$3:$P$103,3))^($A50-$A$3),"") -> 
A51: 2069 | B51: 129 | D51: =VLOOKUP(B51,Lookups!A:B,2) -> 15415.23373 | E51: =VLOOKUP(B51,Lookups!A:C,3) -> 1816.919755 | G51: =VLOOKUP(B51,Lookups!A:D,4) -> 153164.4644 | H51: =VLOOKUP(B51,Lookups!A:E,5) -> 124960.9887 | J51: =VLOOKUP(A51,Trends!$A$3:$H$94,IF(ExFlg=0,4,2))+Sens -> 1.051 | K51: 10.88755519 | L51: =VLOOKUP(A51,Trends!$A$3:$H$94,IF(ExFlg=0,5,3))+Sens -> 1.046 | M51: 10.80447684 | N51: =VLOOKUP(A51,Trends!$A$3:$H$94,6)+Sens -> 1.044 | O51: 9.325811207 | Q51: =IF(B51<=120,VLOOKUP(B51,Lookups!$A$3:$I$103,8,FALSE),"") ->  | R51: =VLOOKUP(A51,Trends!$A$3:$H$94,7)+Sens -> 1.045 | S51: 8.271455573 | T51: =IF(B51<=120,VLOOKUP(B51,Lookups!$A$3:$I$103,9,FALSE),"") ->  | U51: =VLOOKUP(A51,Trends!$A$3:$H$94,8)+Sens -> 1.045 | V51: 8.271455573 | AH51: =IF($B51<121,VLOOKUP($B51,Lookups!A:F,6)*(1-VLOOKUP($B51,Lookups!$N$3:$P$103,2))^($A51-$A$3),"") ->  | AI51: =IF($B51<121,VLOOKUP($B51,Lookups!A:G,7)*(1-VLOOKUP($B51,Lookups!$N$3:$P$103,3))^($A51-$A$3),"") -> 
A52: 2070 | B52: 130 | D52: =VLOOKUP(B52,Lookups!A:B,2) -> 15415.23373 | E52: =VLOOKUP(B52,Lookups!A:C,3) -> 1816.919755 | G52: =VLOOKUP(B52,Lookups!A:D,4) -> 153164.4644 | H52: =VLOOKUP(B52,Lookups!A:E,5) -> 124960.9887 | J52: =VLOOKUP(A52,Trends!$A$3:$H$94,IF(ExFlg=0,4,2))+Sens -> 1.051 | K52: 11.4428205 | L52: =VLOOKUP(A52,Trends!$A$3:$H$94,IF(ExFlg=0,5,3))+Sens -> 1.045 | M52: 11.30148277 | N52: =VLOOKUP(A52,Trends!$A$3:$H$94,6)+Sens -> 1.044 | O52: 9.7361469 | Q52: =IF(B52<=120,VLOOKUP(B52,Lookups!$A$3:$I$103,8,FALSE),"") ->  | R52: =VLOOKUP(A52,Trends!$A$3:$H$94,7)+Sens -> 1.045 | S52: 8.643671074 | T52: =IF(B52<=120,VLOOKUP(B52,Lookups!$A$3:$I$103,9,FALSE),"") ->  | U52: =VLOOKUP(A52,Trends!$A$3:$H$94,8)+Sens -> 1.045 | V52: 8.643671074 | AH52: =IF($B52<121,VLOOKUP($B52,Lookups!A:F,6)*(1-VLOOKUP($B52,Lookups!$N$3:$P$103,2))^($A52-$A$3),"") ->  | AI52: =IF($B52<121,VLOOKUP($B52,Lookups!A:G,7)*(1-VLOOKUP($B52,Lookups!$N$3:$P$103,3))^($A52-$A$3),"") -> 
A53: 2071 | B53: 131 | D53: =VLOOKUP(B53,Lookups!A:B,2) -> 15415.23373 | E53: =VLOOKUP(B53,Lookups!A:C,3) -> 1816.919755 | G53: =VLOOKUP(B53,Lookups!A:D,4) -> 153164.4644 | H53: =VLOOKUP(B53,Lookups!A:E,5) -> 124960.9887 | J53: =VLOOKUP(A53,Trends!$A$3:$H$94,IF(ExFlg=0,4,2))+Sens -> 1.051 | K53: 12.02640435 | L53: =VLOOKUP(A53,Trends!$A$3:$H$94,IF(ExFlg=0,5,3))+Sens -> 1.044 | M53: 11.8100495 | N53: =VLOOKUP(A53,Trends!$A$3:$H$94,6)+Sens -> 1.044 | O53: 10.16453736 | Q53: =IF(B53<=120,VLOOKUP(B53,Lookups!$A$3:$I$103,8,FALSE),"") ->  | R53: =VLOOKUP(A53,Trends!$A$3:$H$94,7)+Sens -> 1.045 | S53: 9.032636273 | T53: =IF(B53<=120,VLOOKUP(B53,Lookups!$A$3:$I$103,9,FALSE),"") ->  | U53: =VLOOKUP(A53,Trends!$A$3:$H$94,8)+Sens -> 1.045 | V53: 9.032636273 | AH53: =IF($B53<121,VLOOKUP($B53,Lookups!A:F,6)*(1-VLOOKUP($B53,Lookups!$N$3:$P$103,2))^($A53-$A$3),"") ->  | AI53: =IF($B53<121,VLOOKUP($B53,Lookups!A:G,7)*(1-VLOOKUP($B53,Lookups!$N$3:$P$103,3))^($A53-$A$3),"") -> 
A54: 2072 | B54: 132 | D54: =VLOOKUP(B54,Lookups!A:B,2) -> 15415.23373 | E54: =VLOOKUP(B54,Lookups!A:C,3) -> 1816.919755 | G54: =VLOOKUP(B54,Lookups!A:D,4) -> 153164.4644 | H54: =VLOOKUP(B54,Lookups!A:E,5) -> 124960.9887 | J54: =VLOOKUP(A54,Trends!$A$3:$H$94,IF(ExFlg=0,4,2))+Sens -> 1.051 | K54: 12.63975097 | L54: =VLOOKUP(A54,Trends!$A$3:$H$94,IF(ExFlg=0,5,3))+Sens -> 1.044 | M54: 12.32969168 | N54: =VLOOKUP(A54,Trends!$A$3:$H$94,6)+Sens -> 1.044 | O54: 10.61177701 | Q54: =IF(B54<=120,VLOOKUP(B54,Lookups!$A$3:$I$103,8,FALSE),"") ->  | R54: =VLOOKUP(A54,Trends!$A$3:$H$94,7)+Sens -> 1.045 | S54: 9.439104905 | T54: =IF(B54<=120,VLOOKUP(B54,Lookups!$A$3:$I$103,9,FALSE),"") ->  | U54: =VLOOKUP(A54,Trends!$A$3:$H$94,8)+Sens -> 1.045 | V54: 9.439104905 | AH54: =IF($B54<121,VLOOKUP($B54,Lookups!A:F,6)*(1-VLOOKUP($B54,Lookups!$N$3:$P$103,2))^($A54-$A$3),"") ->  | AI54: =IF($B54<121,VLOOKUP($B54,Lookups!A:G,7)*(1-VLOOKUP($B54,Lookups!$N$3:$P$103,3))^($A54-$A$3),"") -> 
A55: 2073 | B55: 133 | D55: =VLOOKUP(B55,Lookups!A:B,2) -> 15415.23373 | E55: =VLOOKUP(B55,Lookups!A:C,3) -> 1816.919755 | G55: =VLOOKUP(B55,Lookups!A:D,4) -> 153164.4644 | H55: =VLOOKUP(B55,Lookups!A:E,5) -> 124960.9887 | J55: =VLOOKUP(A55,Trends!$A$3:$H$94,IF(ExFlg=0,4,2))+Sens -> 1.051 | K55: 13.28437827 | L55: =VLOOKUP(A55,Trends!$A$3:$H$94,IF(ExFlg=0,5,3))+Sens -> 1.043 | M55: 12.87219811 | N55: =VLOOKUP(A55,Trends!$A$3:$H$94,6)+Sens -> 1.044 | O55: 11.0786952 | Q55: =IF(B55<=120,VLOOKUP(B55,Lookups!$A$3:$I$103,8,FALSE),"") ->  | R55: =VLOOKUP(A55,Trends!$A$3:$H$94,7)+Sens -> 1.045 | S55: 9.863864626 | T55: =IF(B55<=120,VLOOKUP(B55,Lookups!$A$3:$I$103,9,FALSE),"") ->  | U55: =VLOOKUP(A55,Trends!$A$3:$H$94,8)+Sens -> 1.045 | V55: 9.863864626 | AH55: =IF($B55<121,VLOOKUP($B55,Lookups!A:F,6)*(1-VLOOKUP($B55,Lookups!$N$3:$P$103,2))^($A55-$A$3),"") ->  | AI55: =IF($B55<121,VLOOKUP($B55,Lookups!A:G,7)*(1-VLOOKUP($B55,Lookups!$N$3:$P$103,3))^($A55-$A$3),"") -> 
A56: 2074 | B56: 134 | D56: =VLOOKUP(B56,Lookups!A:B,2) -> 15415.23373 | E56: =VLOOKUP(B56,Lookups!A:C,3) -> 1816.919755 | G56: =VLOOKUP(B56,Lookups!A:D,4) -> 153164.4644 | H56: =VLOOKUP(B56,Lookups!A:E,5) -> 124960.9887 | J56: =VLOOKUP(A56,Trends!$A$3:$H$94,IF(ExFlg=0,4,2))+Sens -> 1.051 | K56: 13.96188156 | L56: =VLOOKUP(A56,Trends!$A$3:$H$94,IF(ExFlg=0,5,3))+Sens -> 1.043 | M56: 13.42570263 | N56: =VLOOKUP(A56,Trends!$A$3:$H$94,6)+Sens -> 1.044 | O56: 11.56615778 | Q56: =IF(B56<=120,VLOOKUP(B56,Lookups!$A$3:$I$103,8,FALSE),"") ->  | R56: =VLOOKUP(A56,Trends!$A$3:$H$94,7)+Sens -> 1.045 | S56: 10.30773853 | T56: =IF(B56<=120,VLOOKUP(B56,Lookups!$A$3:$I$103,9,FALSE),"") ->  | U56: =VLOOKUP(A56,Trends!$A$3:$H$94,8)+Sens -> 1.045 | V56: 10.30773853 | AH56: =IF($B56<121,VLOOKUP($B56,Lookups!A:F,6)*(1-VLOOKUP($B56,Lookups!$N$3:$P$103,2))^($A56-$A$3),"") ->  | AI56: =IF($B56<121,VLOOKUP($B56,Lookups!A:G,7)*(1-VLOOKUP($B56,Lookups!$N$3:$P$103,3))^($A56-$A$3),"") -> 
A57: 2075 | B57: 135 | D57: =VLOOKUP(B57,Lookups!A:B,2) -> 15415.23373 | E57: =VLOOKUP(B57,Lookups!A:C,3) -> 1816.919755 | G57: =VLOOKUP(B57,Lookups!A:D,4) -> 153164.4644 | H57: =VLOOKUP(B57,Lookups!A:E,5) -> 124960.9887 | J57: =VLOOKUP(A57,Trends!$A$3:$H$94,IF(ExFlg=0,4,2))+Sens -> 1.051 | K57: 14.67393752 | L57: =VLOOKUP(A57,Trends!$A$3:$H$94,IF(ExFlg=0,5,3))+Sens -> 1.043 | M57: 14.00300784 | N57: =VLOOKUP(A57,Trends!$A$3:$H$94,6)+Sens -> 1.044 | O57: 12.07506873 | Q57: =IF(B57<=120,VLOOKUP(B57,Lookups!$A$3:$I$103,8,FALSE),"") ->  | R57: =VLOOKUP(A57,Trends!$A$3:$H$94,7)+Sens -> 1.045 | S57: 10.77158677 | T57: =IF(B57<=120,VLOOKUP(B57,Lookups!$A$3:$I$103,9,FALSE),"") ->  | U57: =VLOOKUP(A57,Trends!$A$3:$H$94,8)+Sens -> 1.045 | V57: 10.77158677 | AH57: =IF($B57<121,VLOOKUP($B57,Lookups!A:F,6)*(1-VLOOKUP($B57,Lookups!$N$3:$P$103,2))^($A57-$A$3),"") ->  | AI57: =IF($B57<121,VLOOKUP($B57,Lookups!A:G,7)*(1-VLOOKUP($B57,Lookups!$N$3:$P$103,3))^($A57-$A$3),"") -> 
A58: 2076 | B58: 136 | D58: =VLOOKUP(B58,Lookups!A:B,2) -> 15415.23373 | E58: =VLOOKUP(B58,Lookups!A:C,3) -> 1816.919755 | G58: =VLOOKUP(B58,Lookups!A:D,4) -> 153164.4644 | H58: =VLOOKUP(B58,Lookups!A:E,5) -> 124960.9887 | J58: =VLOOKUP(A58,Trends!$A$3:$H$94,IF(ExFlg=0,4,2))+Sens -> 1.051 | K58: 15.42230833 | L58: =VLOOKUP(A58,Trends!$A$3:$H$94,IF(ExFlg=0,5,3))+Sens -> 1.043 | M58: 14.60513718 | N58: =VLOOKUP(A58,Trends!$A$3:$H$94,6)+Sens -> 1.044 | O58: 12.60637175 | Q58: =IF(B58<=120,VLOOKUP(B58,Lookups!$A$3:$I$103,8,FALSE),"") ->  | R58: =VLOOKUP(A58,Trends!$A$3:$H$94,7)+Sens -> 1.045 | S58: 11.25630817 | T58: =IF(B58<=120,VLOOKUP(B58,Lookups!$A$3:$I$103,9,FALSE),"") ->  | U58: =VLOOKUP(A58,Trends!$A$3:$H$94,8)+Sens -> 1.045 | V58: 11.25630817 | AH58: =IF($B58<121,VLOOKUP($B58,Lookups!A:F,6)*(1-VLOOKUP($B58,Lookups!$N$3:$P$103,2))^($A58-$A$3),"") ->  | AI58: =IF($B58<121,VLOOKUP($B58,Lookups!A:G,7)*(1-VLOOKUP($B58,Lookups!$N$3:$P$103,3))^($A58-$A$3),"") -> 
A59: 2077 | B59: 137 | D59: =VLOOKUP(B59,Lookups!A:B,2) -> 15415.23373 | E59: =VLOOKUP(B59,Lookups!A:C,3) -> 1816.919755 | G59: =VLOOKUP(B59,Lookups!A:D,4) -> 153164.4644 | H59: =VLOOKUP(B59,Lookups!A:E,5) -> 124960.9887 | J59: =VLOOKUP(A59,Trends!$A$3:$H$94,IF(ExFlg=0,4,2))+Sens -> 1.051 | K59: 16.20884606 | L59: =VLOOKUP(A59,Trends!$A$3:$H$94,IF(ExFlg=0,5,3))+Sens -> 1.043 | M59: 15.23315808 | N59: =VLOOKUP(A59,Trends!$A$3:$H$94,6)+Sens -> 1.044 | O59: 13.16105211 | Q59: =IF(B59<=120,VLOOKUP(B59,Lookups!$A$3:$I$103,8,FALSE),"") ->  | R59: =VLOOKUP(A59,Trends!$A$3:$H$94,7)+Sens -> 1.045 | S59: 11.76284204 | T59: =IF(B59<=120,VLOOKUP(B59,Lookups!$A$3:$I$103,9,FALSE),"") ->  | U59: =VLOOKUP(A59,Trends!$A$3:$H$94,8)+Sens -> 1.045 | V59: 11.76284204 | AH59: =IF($B59<121,VLOOKUP($B59,Lookups!A:F,6)*(1-VLOOKUP($B59,Lookups!$N$3:$P$103,2))^($A59-$A$3),"") ->  | AI59: =IF($B59<121,VLOOKUP($B59,Lookups!A:G,7)*(1-VLOOKUP($B59,Lookups!$N$3:$P$103,3))^($A59-$A$3),"") -> 
A60: 2078 | B60: 138 | D60: =VLOOKUP(B60,Lookups!A:B,2) -> 15415.23373 | E60: =VLOOKUP(B60,Lookups!A:C,3) -> 1816.919755 | G60: =VLOOKUP(B60,Lookups!A:D,4) -> 153164.4644 | H60: =VLOOKUP(B60,Lookups!A:E,5) -> 124960.9887 | J60: =VLOOKUP(A60,Trends!$A$3:$H$94,IF(ExFlg=0,4,2))+Sens -> 1.051 | K60: 17.03549721 | L60: =VLOOKUP(A60,Trends!$A$3:$H$94,IF(ExFlg=0,5,3))+Sens -> 1.043 | M60: 15.88818388 | N60: =VLOOKUP(A60,Trends!$A$3:$H$94,6)+Sens -> 1.044 | O60: 13.7401384 | Q60: =IF(B60<=120,VLOOKUP(B60,Lookups!$A$3:$I$103,8,FALSE),"") ->  | R60: =VLOOKUP(A60,Trends!$A$3:$H$94,7)+Sens -> 1.045 | S60: 12.29216993 | T60: =IF(B60<=120,VLOOKUP(B60,Lookups!$A$3:$I$103,9,FALSE),"") ->  | U60: =VLOOKUP(A60,Trends!$A$3:$H$94,8)+Sens -> 1.045 | V60: 12.29216993 | AH60: =IF($B60<121,VLOOKUP($B60,Lookups!A:F,6)*(1-VLOOKUP($B60,Lookups!$N$3:$P$103,2))^($A60-$A$3),"") ->  | AI60: =IF($B60<121,VLOOKUP($B60,Lookups!A:G,7)*(1-VLOOKUP($B60,Lookups!$N$3:$P$103,3))^($A60-$A$3),"") -> 
A61: 2079 | B61: 139 | D61: =VLOOKUP(B61,Lookups!A:B,2) -> 15415.23373 | E61: =VLOOKUP(B61,Lookups!A:C,3) -> 1816.919755 | G61: =VLOOKUP(B61,Lookups!A:D,4) -> 153164.4644 | H61: =VLOOKUP(B61,Lookups!A:E,5) -> 124960.9887 | J61: =VLOOKUP(A61,Trends!$A$3:$H$94,IF(ExFlg=0,4,2))+Sens -> 1.051 | K61: 17.90430756 | L61: =VLOOKUP(A61,Trends!$A$3:$H$94,IF(ExFlg=0,5,3))+Sens -> 1.043 | M61: 16.57137578 | N61: =VLOOKUP(A61,Trends!$A$3:$H$94,6)+Sens -> 1.043 | O61: 14.34470449 | Q61: =IF(B61<=120,VLOOKUP(B61,Lookups!$A$3:$I$103,8,FALSE),"") ->  | R61: =VLOOKUP(A61,Trends!$A$3:$H$94,7)+Sens -> 1.045 | S61: 12.84531758 | T61: =IF(B61<=120,VLOOKUP(B61,Lookups!$A$3:$I$103,9,FALSE),"") ->  | U61: =VLOOKUP(A61,Trends!$A$3:$H$94,8)+Sens -> 1.045 | V61: 12.84531758 | AH61: =IF($B61<121,VLOOKUP($B61,Lookups!A:F,6)*(1-VLOOKUP($B61,Lookups!$N$3:$P$103,2))^($A61-$A$3),"") ->  | AI61: =IF($B61<121,VLOOKUP($B61,Lookups!A:G,7)*(1-VLOOKUP($B61,Lookups!$N$3:$P$103,3))^($A61-$A$3),"") -> 
A62: 2080 | B62: 140 | D62: =VLOOKUP(B62,Lookups!A:B,2) -> 15415.23373 | E62: =VLOOKUP(B62,Lookups!A:C,3) -> 1816.919755 | G62: =VLOOKUP(B62,Lookups!A:D,4) -> 153164.4644 | H62: =VLOOKUP(B62,Lookups!A:E,5) -> 124960.9887 | J62: =VLOOKUP(A62,Trends!$A$3:$H$94,IF(ExFlg=0,4,2))+Sens -> 1.051 | K62: 18.81742725 | L62: =VLOOKUP(A62,Trends!$A$3:$H$94,IF(ExFlg=0,5,3))+Sens -> 1.043 | M62: 17.28394494 | N62: =VLOOKUP(A62,Trends!$A$3:$H$94,6)+Sens -> 1.043 | O62: 14.96152678 | Q62: =IF(B62<=120,VLOOKUP(B62,Lookups!$A$3:$I$103,8,FALSE),"") ->  | R62: =VLOOKUP(A62,Trends!$A$3:$H$94,7)+Sens -> 1.045 | S62: 13.42335687 | T62: =IF(B62<=120,VLOOKUP(B62,Lookups!$A$3:$I$103,9,FALSE),"") ->  | U62: =VLOOKUP(A62,Trends!$A$3:$H$94,8)+Sens -> 1.045 | V62: 13.42335687 | AH62: =IF($B62<121,VLOOKUP($B62,Lookups!A:F,6)*(1-VLOOKUP($B62,Lookups!$N$3:$P$103,2))^($A62-$A$3),"") ->  | AI62: =IF($B62<121,VLOOKUP($B62,Lookups!A:G,7)*(1-VLOOKUP($B62,Lookups!$N$3:$P$103,3))^($A62-$A$3),"") -> 
A63: 2081 | B63: 141 | D63: =VLOOKUP(B63,Lookups!A:B,2) -> 15415.23373 | E63: =VLOOKUP(B63,Lookups!A:C,3) -> 1816.919755 | G63: =VLOOKUP(B63,Lookups!A:D,4) -> 153164.4644 | H63: =VLOOKUP(B63,Lookups!A:E,5) -> 124960.9887 | J63: =VLOOKUP(A63,Trends!$A$3:$H$94,IF(ExFlg=0,4,2))+Sens -> 1.051 | K63: 19.77711604 | L63: =VLOOKUP(A63,Trends!$A$3:$H$94,IF(ExFlg=0,5,3))+Sens -> 1.043 | M63: 18.02715457 | N63: =VLOOKUP(A63,Trends!$A$3:$H$94,6)+Sens -> 1.043 | O63: 15.60487243 | Q63: =IF(B63<=120,VLOOKUP(B63,Lookups!$A$3:$I$103,8,FALSE),"") ->  | R63: =VLOOKUP(A63,Trends!$A$3:$H$94,7)+Sens -> 1.045 | S63: 14.02740793 | T63: =IF(B63<=120,VLOOKUP(B63,Lookups!$A$3:$I$103,9,FALSE),"") ->  | U63: =VLOOKUP(A63,Trends!$A$3:$H$94,8)+Sens -> 1.045 | V63: 14.02740793 | AH63: =IF($B63<121,VLOOKUP($B63,Lookups!A:F,6)*(1-VLOOKUP($B63,Lookups!$N$3:$P$103,2))^($A63-$A$3),"") ->  | AI63: =IF($B63<121,VLOOKUP($B63,Lookups!A:G,7)*(1-VLOOKUP($B63,Lookups!$N$3:$P$103,3))^($A63-$A$3),"") -> 
A64: 2082 | B64: 142 | D64: =VLOOKUP(B64,Lookups!A:B,2) -> 15415.23373 | E64: =VLOOKUP(B64,Lookups!A:C,3) -> 1816.919755 | G64: =VLOOKUP(B64,Lookups!A:D,4) -> 153164.4644 | H64: =VLOOKUP(B64,Lookups!A:E,5) -> 124960.9887 | J64: =VLOOKUP(A64,Trends!$A$3:$H$94,IF(ExFlg=0,4,2))+Sens -> 1.051 | K64: 20.78574896 | L64: =VLOOKUP(A64,Trends!$A$3:$H$94,IF(ExFlg=0,5,3))+Sens -> 1.043 | M64: 18.80232222 | N64: =VLOOKUP(A64,Trends!$A$3:$H$94,6)+Sens -> 1.043 | O64: 16.27588195 | Q64: =IF(B64<=120,VLOOKUP(B64,Lookups!$A$3:$I$103,8,FALSE),"") ->  | R64: =VLOOKUP(A64,Trends!$A$3:$H$94,7)+Sens -> 1.045 | S64: 14.65864129 | T64: =IF(B64<=120,VLOOKUP(B64,Lookups!$A$3:$I$103,9,FALSE),"") ->  | U64: =VLOOKUP(A64,Trends!$A$3:$H$94,8)+Sens -> 1.045 | V64: 14.65864129 | AH64: =IF($B64<121,VLOOKUP($B64,Lookups!A:F,6)*(1-VLOOKUP($B64,Lookups!$N$3:$P$103,2))^($A64-$A$3),"") ->  | AI64: =IF($B64<121,VLOOKUP($B64,Lookups!A:G,7)*(1-VLOOKUP($B64,Lookups!$N$3:$P$103,3))^($A64-$A$3),"") -> 
A65: 2083 | B65: 143 | D65: =VLOOKUP(B65,Lookups!A:B,2) -> 15415.23373 | E65: =VLOOKUP(B65,Lookups!A:C,3) -> 1816.919755 | G65: =VLOOKUP(B65,Lookups!A:D,4) -> 153164.4644 | H65: =VLOOKUP(B65,Lookups!A:E,5) -> 124960.9887 | J65: =VLOOKUP(A65,Trends!$A$3:$H$94,IF(ExFlg=0,4,2))+Sens -> 1.051 | K65: 21.84582215 | L65: =VLOOKUP(A65,Trends!$A$3:$H$94,IF(ExFlg=0,5,3))+Sens -> 1.043 | M65: 19.61082208 | N65: =VLOOKUP(A65,Trends!$A$3:$H$94,6)+Sens -> 1.043 | O65: 16.97574487 | Q65: =IF(B65<=120,VLOOKUP(B65,Lookups!$A$3:$I$103,8,FALSE),"") ->  | R65: =VLOOKUP(A65,Trends!$A$3:$H$94,7)+Sens -> 1.045 | S65: 15.31828014 | T65: =IF(B65<=120,VLOOKUP(B65,Lookups!$A$3:$I$103,9,FALSE),"") ->  | U65: =VLOOKUP(A65,Trends!$A$3:$H$94,8)+Sens -> 1.045 | V65: 15.31828014 | AH65: =IF($B65<121,VLOOKUP($B65,Lookups!A:F,6)*(1-VLOOKUP($B65,Lookups!$N$3:$P$103,2))^($A65-$A$3),"") ->  | AI65: =IF($B65<121,VLOOKUP($B65,Lookups!A:G,7)*(1-VLOOKUP($B65,Lookups!$N$3:$P$103,3))^($A65-$A$3),"") -> 
A66: 2084 | B66: 144 | D66: =VLOOKUP(B66,Lookups!A:B,2) -> 15415.23373 | E66: =VLOOKUP(B66,Lookups!A:C,3) -> 1816.919755 | G66: =VLOOKUP(B66,Lookups!A:D,4) -> 153164.4644 | H66: =VLOOKUP(B66,Lookups!A:E,5) -> 124960.9887 | J66: =VLOOKUP(A66,Trends!$A$3:$H$94,IF(ExFlg=0,4,2))+Sens -> 1.051 | K66: 22.95995908 | L66: =VLOOKUP(A66,Trends!$A$3:$H$94,IF(ExFlg=0,5,3))+Sens -> 1.043 | M66: 20.45408743 | N66: =VLOOKUP(A66,Trends!$A$3:$H$94,6)+Sens -> 1.043 | O66: 17.7057019 | Q66: =IF(B66<=120,VLOOKUP(B66,Lookups!$A$3:$I$103,8,FALSE),"") ->  | R66: =VLOOKUP(A66,Trends!$A$3:$H$94,7)+Sens -> 1.045 | S66: 16.00760275 | T66: =IF(B66<=120,VLOOKUP(B66,Lookups!$A$3:$I$103,9,FALSE),"") ->  | U66: =VLOOKUP(A66,Trends!$A$3:$H$94,8)+Sens -> 1.045 | V66: 16.00760275 | AH66: =IF($B66<121,VLOOKUP($B66,Lookups!A:F,6)*(1-VLOOKUP($B66,Lookups!$N$3:$P$103,2))^($A66-$A$3),"") ->  | AI66: =IF($B66<121,VLOOKUP($B66,Lookups!A:G,7)*(1-VLOOKUP($B66,Lookups!$N$3:$P$103,3))^($A66-$A$3),"") -> 
A67: 2085 | B67: 145 | D67: =VLOOKUP(B67,Lookups!A:B,2) -> 15415.23373 | E67: =VLOOKUP(B67,Lookups!A:C,3) -> 1816.919755 | G67: =VLOOKUP(B67,Lookups!A:D,4) -> 153164.4644 | H67: =VLOOKUP(B67,Lookups!A:E,5) -> 124960.9887 | J67: =VLOOKUP(A67,Trends!$A$3:$H$94,IF(ExFlg=0,4,2))+Sens -> 1.051 | K67: 24.130917 | L67: =VLOOKUP(A67,Trends!$A$3:$H$94,IF(ExFlg=0,5,3))+Sens -> 1.043 | M67: 21.33361318 | N67: =VLOOKUP(A67,Trends!$A$3:$H$94,6)+Sens -> 1.043 | O67: 18.46704708 | Q67: =IF(B67<=120,VLOOKUP(B67,Lookups!$A$3:$I$103,8,FALSE),"") ->  | R67: =VLOOKUP(A67,Trends!$A$3:$H$94,7)+Sens -> 1.045 | S67: 16.72794487 | T67: =IF(B67<=120,VLOOKUP(B67,Lookups!$A$3:$I$103,9,FALSE),"") ->  | U67: =VLOOKUP(A67,Trends!$A$3:$H$94,8)+Sens -> 1.045 | V67: 16.72794487 | AH67: =IF($B67<121,VLOOKUP($B67,Lookups!A:F,6)*(1-VLOOKUP($B67,Lookups!$N$3:$P$103,2))^($A67-$A$3),"") ->  | AI67: =IF($B67<121,VLOOKUP($B67,Lookups!A:G,7)*(1-VLOOKUP($B67,Lookups!$N$3:$P$103,3))^($A67-$A$3),"") ->  | AJ67: =IF(B67<121,(PCTMALE*AH67+(1-PCTMALE)*AI67),"") ->  | AM67: =IF(AJ67="","",ROUND((13/24)+(11/24)*(1/(1+IntRt))*(1-AJ67),6)) -> 
A68: =1+A67 -> 2086 | B68: =1+B67 -> 146 | D68: =VLOOKUP(B68,Lookups!A:B,2) -> 15415.23373 | E68: =VLOOKUP(B68,Lookups!A:C,3) -> 1816.919755 | G68: =VLOOKUP(B68,Lookups!A:D,4) -> 153164.4644 | H68: =VLOOKUP(B68,Lookups!A:E,5) -> 124960.9887 | J68: =VLOOKUP(A68,Trends!$A$3:$H$94,IF(ExFlg=0,4,2))+Sens -> 1.051 | K68: 25.36159376 | L68: =VLOOKUP(A68,Trends!$A$3:$H$94,IF(ExFlg=0,5,3))+Sens -> 1.043 | M68: 22.25095855 | N68: =VLOOKUP(A68,Trends!$A$3:$H$94,6)+Sens -> 1.043 | O68: 19.26113011 | Q68: =IF(B68<=120,VLOOKUP(B68,Lookups!$A$3:$I$103,8,FALSE),"") ->  | R68: =VLOOKUP(A68,Trends!$A$3:$H$94,7)+Sens -> 1.045 | S68: 17.48070239 | T68: =IF(B68<=120,VLOOKUP(B68,Lookups!$A$3:$I$103,9,FALSE),"") ->  | U68: =VLOOKUP(A68,Trends!$A$3:$H$94,8)+Sens -> 1.045 | V68: 17.48070239 | X68: =IF(B68<=120,IF(B68<65,D68*K68,D68*M68),"") ->  | Y68: =IF(B68<=120,E68*O68,"") ->  | Z68: =IF(B68<=120,X68+Y68,"") ->  | AB68: =IF(B68<=120,G68*Q68*S68,"") ->  | AC68: =IF(B68<=120,H68*T68*V68,"") ->  | AD68: =IF(B68<=120,AB68+AC68,"") ->  | AF68: =IF(B68<=120,Z68+AD68, "") ->  | AH68: =IF($B68<121,VLOOKUP($B68,Lookups!A:F,6)*(1-VLOOKUP($B68,Lookups!$N$3:$P$103,2))^($A68-$A$3),"") ->  | AI68: =IF($B68<121,VLOOKUP($B68,Lookups!A:G,7)*(1-VLOOKUP($B68,Lookups!$N$3:$P$103,3))^($A68-$A$3),"") ->  | AL68: =IF(B68<121,AL67/(1+IntRt),"") ->  | AP68: =IF(B68<=120,AF68*AK68*AL68*AM68,"") -> 
A69: 2087 | B69: 147 | D69: =VLOOKUP(B69,Lookups!A:B,2) -> 15415.23373 | E69: =VLOOKUP(B69,Lookups!A:C,3) -> 1816.919755 | G69: =VLOOKUP(B69,Lookups!A:D,4) -> 153164.4644 | H69: =VLOOKUP(B69,Lookups!A:E,5) -> 124960.9887 | J69: =VLOOKUP(A69,Trends!$A$3:$H$94,IF(ExFlg=0,4,2))+Sens -> 1.051 | K69: =K68*J68 -> 26.65503505 | L69: =VLOOKUP(A69,Trends!$A$3:$H$94,IF(ExFlg=0,5,3))+Sens -> 1.043 | M69: 23.20774977 | N69: =VLOOKUP(A69,Trends!$A$3:$H$94,6)+Sens -> 1.043 | O69: =O68*N68 -> 20.0893587 | Q69: =IF(B69<=120,VLOOKUP(B69,Lookups!$A$3:$I$103,8,FALSE),"") ->  | R69: =VLOOKUP(A69,Trends!$A$3:$H$94,7)+Sens -> 1.045 | S69: =S68*R68 -> 18.267334 | T69: =IF(B69<=120,VLOOKUP(B69,Lookups!$A$3:$I$103,9,FALSE),"") ->  | U69: =VLOOKUP(A69,Trends!$A$3:$H$94,8)+Sens -> 1.045 | V69: =V68*U68 -> 18.267334 | AH69: =IF($B69<121,VLOOKUP($B69,Lookups!A:F,6)*(1-VLOOKUP($B69,Lookups!$N$3:$P$103,2))^($A69-$A$3),"") ->  | AI69: =IF($B69<121,VLOOKUP($B69,Lookups!A:G,7)*(1-VLOOKUP($B69,Lookups!$N$3:$P$103,3))^($A69-$A$3),"") ->  | AK69: =IF(B69<121,AK68*(1-AJ68),"") -> 
A70: 2088 | B70: 148 | D70: =VLOOKUP(B70,Lookups!A:B,2) -> 15415.23373 | E70: =VLOOKUP(B70,Lookups!A:C,3) -> 1816.919755 | G70: =VLOOKUP(B70,Lookups!A:D,4) -> 153164.4644 | H70: =VLOOKUP(B70,Lookups!A:E,5) -> 124960.9887 | J70: =VLOOKUP(A70,Trends!$A$3:$H$94,IF(ExFlg=0,4,2))+Sens -> 1.051 | K70: 28.01444183 | L70: =VLOOKUP(A70,Trends!$A$3:$H$94,IF(ExFlg=0,5,3))+Sens -> 1.043 | M70: 24.20568301 | N70: =VLOOKUP(A70,Trends!$A$3:$H$94,6)+Sens -> 1.043 | O70: 20.95320113 | Q70: =IF(B70<=120,VLOOKUP(B70,Lookups!$A$3:$I$103,8,FALSE),"") ->  | R70: =VLOOKUP(A70,Trends!$A$3:$H$94,7)+Sens -> 1.045 | S70: 19.08936403 | T70: =IF(B70<=120,VLOOKUP(B70,Lookups!$A$3:$I$103,9,FALSE),"") ->  | U70: =VLOOKUP(A70,Trends!$A$3:$H$94,8)+Sens -> 1.045 | V70: 19.08936403 | AH70: =IF($B70<121,VLOOKUP($B70,Lookups!A:F,6)*(1-VLOOKUP($B70,Lookups!$N$3:$P$103,2))^($A70-$A$3),"") ->  | AI70: =IF($B70<121,VLOOKUP($B70,Lookups!A:G,7)*(1-VLOOKUP($B70,Lookups!$N$3:$P$103,3))^($A70-$A$3),"") -> 
A71: 2089 | B71: 149 | D71: =VLOOKUP(B71,Lookups!A:B,2) -> 15415.23373 | E71: =VLOOKUP(B71,Lookups!A:C,3) -> 1816.919755 | G71: =VLOOKUP(B71,Lookups!A:D,4) -> 153164.4644 | H71: =VLOOKUP(B71,Lookups!A:E,5) -> 124960.9887 | J71: =VLOOKUP(A71,Trends!$A$3:$H$94,IF(ExFlg=0,4,2))+Sens -> 1.051 | K71: 29.44317837 | L71: =VLOOKUP(A71,Trends!$A$3:$H$94,IF(ExFlg=0,5,3))+Sens -> 1.043 | M71: 25.24652738 | N71: =VLOOKUP(A71,Trends!$A$3:$H$94,6)+Sens -> 1.043 | O71: 21.85418878 | Q71: =IF(B71<=120,VLOOKUP(B71,Lookups!$A$3:$I$103,8,FALSE),"") ->  | R71: =VLOOKUP(A71,Trends!$A$3:$H$94,7)+Sens -> 1.045 | S71: 19.94838541 | T71: =IF(B71<=120,VLOOKUP(B71,Lookups!$A$3:$I$103,9,FALSE),"") ->  | U71: =VLOOKUP(A71,Trends!$A$3:$H$94,8)+Sens -> 1.045 | V71: 19.94838541 | AH71: =IF($B71<121,VLOOKUP($B71,Lookups!A:F,6)*(1-VLOOKUP($B71,Lookups!$N$3:$P$103,2))^($A71-$A$3),"") ->  | AI71: =IF($B71<121,VLOOKUP($B71,Lookups!A:G,7)*(1-VLOOKUP($B71,Lookups!$N$3:$P$103,3))^($A71-$A$3),"") -> 
A72: 2090 | B72: 150 | D72: =VLOOKUP(B72,Lookups!A:B,2) -> 15415.23373 | E72: =VLOOKUP(B72,Lookups!A:C,3) -> 1816.919755 | G72: =VLOOKUP(B72,Lookups!A:D,4) -> 153164.4644 | H72: =VLOOKUP(B72,Lookups!A:E,5) -> 124960.9887 | J72: =VLOOKUP(A72,Trends!$A$3:$H$94,IF(ExFlg=0,4,2))+Sens -> 1.051 | K72: 30.94478046 | L72: =VLOOKUP(A72,Trends!$A$3:$H$94,IF(ExFlg=0,5,3))+Sens -> 1.043 | M72: 26.33212806 | N72: =VLOOKUP(A72,Trends!$A$3:$H$94,6)+Sens -> 1.043 | O72: 22.79391889 | Q72: =IF(B72<=120,VLOOKUP(B72,Lookups!$A$3:$I$103,8,FALSE),"") ->  | R72: =VLOOKUP(A72,Trends!$A$3:$H$94,7)+Sens -> 1.045 | S72: 20.84606276 | T72: =IF(B72<=120,VLOOKUP(B72,Lookups!$A$3:$I$103,9,FALSE),"") ->  | U72: =VLOOKUP(A72,Trends!$A$3:$H$94,8)+Sens -> 1.045 | V72: 20.84606276 | AH72: =IF($B72<121,VLOOKUP($B72,Lookups!A:F,6)*(1-VLOOKUP($B72,Lookups!$N$3:$P$103,2))^($A72-$A$3),"") ->  | AI72: =IF($B72<121,VLOOKUP($B72,Lookups!A:G,7)*(1-VLOOKUP($B72,Lookups!$N$3:$P$103,3))^($A72-$A$3),"") -> 
A73: 2091 | B73: 151 | D73: =VLOOKUP(B73,Lookups!A:B,2) -> 15415.23373 | E73: =VLOOKUP(B73,Lookups!A:C,3) -> 1816.919755 | G73: =VLOOKUP(B73,Lookups!A:D,4) -> 153164.4644 | H73: =VLOOKUP(B73,Lookups!A:E,5) -> 124960.9887 | J73: =VLOOKUP(A73,Trends!$A$3:$H$94,IF(ExFlg=0,4,2))+Sens -> 1.051 | K73: 32.52296427 | L73: =VLOOKUP(A73,Trends!$A$3:$H$94,IF(ExFlg=0,5,3))+Sens -> 1.043 | M73: 27.46440956 | N73: =VLOOKUP(A73,Trends!$A$3:$H$94,6)+Sens -> 1.043 | O73: 23.77405741 | Q73: =IF(B73<=120,VLOOKUP(B73,Lookups!$A$3:$I$103,8,FALSE),"") ->  | R73: =VLOOKUP(A73,Trends!$A$3:$H$94,7)+Sens -> 1.045 | S73: 21.78413558 | T73: =IF(B73<=120,VLOOKUP(B73,Lookups!$A$3:$I$103,9,FALSE),"") ->  | U73: =VLOOKUP(A73,Trends!$A$3:$H$94,8)+Sens -> 1.045 | V73: 21.78413558 | AH73: =IF($B73<121,VLOOKUP($B73,Lookups!A:F,6)*(1-VLOOKUP($B73,Lookups!$N$3:$P$103,2))^($A73-$A$3),"") ->  | AI73: =IF($B73<121,VLOOKUP($B73,Lookups!A:G,7)*(1-VLOOKUP($B73,Lookups!$N$3:$P$103,3))^($A73-$A$3),"") -> 
A74: 2092 | B74: 152 | D74: =VLOOKUP(B74,Lookups!A:B,2) -> 15415.23373 | E74: =VLOOKUP(B74,Lookups!A:C,3) -> 1816.919755 | G74: =VLOOKUP(B74,Lookups!A:D,4) -> 153164.4644 | H74: =VLOOKUP(B74,Lookups!A:E,5) -> 124960.9887 | J74: =VLOOKUP(A74,Trends!$A$3:$H$94,IF(ExFlg=0,4,2))+Sens -> 1.051 | K74: 34.18163544 | L74: =VLOOKUP(A74,Trends!$A$3:$H$94,IF(ExFlg=0,5,3))+Sens -> 1.043 | M74: 28.64537917 | N74: =VLOOKUP(A74,Trends!$A$3:$H$94,6)+Sens -> 1.043 | O74: 24.79634188 | Q74: =IF(B74<=120,VLOOKUP(B74,Lookups!$A$3:$I$103,8,FALSE),"") ->  | R74: =VLOOKUP(A74,Trends!$A$3:$H$94,7)+Sens -> 1.045 | S74: 22.76442168 | T74: =IF(B74<=120,VLOOKUP(B74,Lookups!$A$3:$I$103,9,FALSE),"") ->  | U74: =VLOOKUP(A74,Trends!$A$3:$H$94,8)+Sens -> 1.045 | V74: 22.76442168 | AH74: =IF($B74<121,VLOOKUP($B74,Lookups!A:F,6)*(1-VLOOKUP($B74,Lookups!$N$3:$P$103,2))^($A74-$A$3),"") ->  | AI74: =IF($B74<121,VLOOKUP($B74,Lookups!A:G,7)*(1-VLOOKUP($B74,Lookups!$N$3:$P$103,3))^($A74-$A$3),"") -> 
A75: 2093 | B75: 153 | D75: =VLOOKUP(B75,Lookups!A:B,2) -> 15415.23373 | E75: =VLOOKUP(B75,Lookups!A:C,3) -> 1816.919755 | G75: =VLOOKUP(B75,Lookups!A:D,4) -> 153164.4644 | H75: =VLOOKUP(B75,Lookups!A:E,5) -> 124960.9887 | J75: =VLOOKUP(A75,Trends!$A$3:$H$94,IF(ExFlg=0,4,2))+Sens -> 1.051 | K75: 35.92489885 | L75: =VLOOKUP(A75,Trends!$A$3:$H$94,IF(ExFlg=0,5,3))+Sens -> 1.043 | M75: 29.87713048 | N75: =VLOOKUP(A75,Trends!$A$3:$H$94,6)+Sens -> 1.043 | O75: 25.86258458 | Q75: =IF(B75<=120,VLOOKUP(B75,Lookups!$A$3:$I$103,8,FALSE),"") ->  | R75: =VLOOKUP(A75,Trends!$A$3:$H$94,7)+Sens -> 1.045 | S75: 23.78882066 | T75: =IF(B75<=120,VLOOKUP(B75,Lookups!$A$3:$I$103,9,FALSE),"") ->  | U75: =VLOOKUP(A75,Trends!$A$3:$H$94,8)+Sens -> 1.045 | V75: 23.78882066 | AH75: =IF($B75<121,VLOOKUP($B75,Lookups!A:F,6)*(1-VLOOKUP($B75,Lookups!$N$3:$P$103,2))^($A75-$A$3),"") ->  | AI75: =IF($B75<121,VLOOKUP($B75,Lookups!A:G,7)*(1-VLOOKUP($B75,Lookups!$N$3:$P$103,3))^($A75-$A$3),"") -> 
A76: 2094 | B76: 154 | D76: =VLOOKUP(B76,Lookups!A:B,2) -> 15415.23373 | E76: =VLOOKUP(B76,Lookups!A:C,3) -> 1816.919755 | G76: =VLOOKUP(B76,Lookups!A:D,4) -> 153164.4644 | H76: =VLOOKUP(B76,Lookups!A:E,5) -> 124960.9887 | J76: =VLOOKUP(A76,Trends!$A$3:$H$94,IF(ExFlg=0,4,2))+Sens -> 1.051 | K76: 37.75706869 | L76: =VLOOKUP(A76,Trends!$A$3:$H$94,IF(ExFlg=0,5,3))+Sens -> 1.043 | M76: 31.16184709 | N76: =VLOOKUP(A76,Trends!$A$3:$H$94,6)+Sens -> 1.043 | O76: 26.97467571 | Q76: =IF(B76<=120,VLOOKUP(B76,Lookups!$A$3:$I$103,8,FALSE),"") ->  | R76: =VLOOKUP(A76,Trends!$A$3:$H$94,7)+Sens -> 1.045 | S76: 24.85931759 | T76: =IF(B76<=120,VLOOKUP(B76,Lookups!$A$3:$I$103,9,FALSE),"") ->  | U76: =VLOOKUP(A76,Trends!$A$3:$H$94,8)+Sens -> 1.045 | V76: 24.85931759 | AH76: =IF($B76<121,VLOOKUP($B76,Lookups!A:F,6)*(1-VLOOKUP($B76,Lookups!$N$3:$P$103,2))^($A76-$A$3),"") ->  | AI76: =IF($B76<121,VLOOKUP($B76,Lookups!A:G,7)*(1-VLOOKUP($B76,Lookups!$N$3:$P$103,3))^($A76-$A$3),"") -> 
A77: 2095 | B77: 155 | D77: =VLOOKUP(B77,Lookups!A:B,2) -> 15415.23373 | E77: =VLOOKUP(B77,Lookups!A:C,3) -> 1816.919755 | G77: =VLOOKUP(B77,Lookups!A:D,4) -> 153164.4644 | H77: =VLOOKUP(B77,Lookups!A:E,5) -> 124960.9887 | J77: =VLOOKUP(A77,Trends!$A$3:$H$94,IF(ExFlg=0,4,2))+Sens -> 1.051 | K77: 39.6826792 | L77: =VLOOKUP(A77,Trends!$A$3:$H$94,IF(ExFlg=0,5,3))+Sens -> 1.043 | M77: 32.50180651 | N77: =VLOOKUP(A77,Trends!$A$3:$H$94,6)+Sens -> 1.043 | O77: 28.13458677 | Q77: =IF(B77<=120,VLOOKUP(B77,Lookups!$A$3:$I$103,8,FALSE),"") ->  | R77: =VLOOKUP(A77,Trends!$A$3:$H$94,7)+Sens -> 1.045 | S77: 25.97798688 | T77: =IF(B77<=120,VLOOKUP(B77,Lookups!$A$3:$I$103,9,FALSE),"") ->  | U77: =VLOOKUP(A77,Trends!$A$3:$H$94,8)+Sens -> 1.045 | V77: 25.97798688 | AH77: =IF($B77<121,VLOOKUP($B77,Lookups!A:F,6)*(1-VLOOKUP($B77,Lookups!$N$3:$P$103,2))^($A77-$A$3),"") ->  | AI77: =IF($B77<121,VLOOKUP($B77,Lookups!A:G,7)*(1-VLOOKUP($B77,Lookups!$N$3:$P$103,3))^($A77-$A$3),"") -> 
A78: 2096 | B78: 156 | D78: =VLOOKUP(B78,Lookups!A:B,2) -> 15415.23373 | E78: =VLOOKUP(B78,Lookups!A:C,3) -> 1816.919755 | G78: =VLOOKUP(B78,Lookups!A:D,4) -> 153164.4644 | H78: =VLOOKUP(B78,Lookups!A:E,5) -> 124960.9887 | J78: =VLOOKUP(A78,Trends!$A$3:$H$94,IF(ExFlg=0,4,2))+Sens -> 1.051 | K78: 41.70649584 | L78: =VLOOKUP(A78,Trends!$A$3:$H$94,IF(ExFlg=0,5,3))+Sens -> 1.043 | M78: 33.89938419 | N78: =VLOOKUP(A78,Trends!$A$3:$H$94,6)+Sens -> 1.043 | O78: 29.344374 | Q78: =IF(B78<=120,VLOOKUP(B78,Lookups!$A$3:$I$103,8,FALSE),"") ->  | R78: =VLOOKUP(A78,Trends!$A$3:$H$94,7)+Sens -> 1.045 | S78: 27.14699629 | T78: =IF(B78<=120,VLOOKUP(B78,Lookups!$A$3:$I$103,9,FALSE),"") ->  | U78: =VLOOKUP(A78,Trends!$A$3:$H$94,8)+Sens -> 1.045 | V78: 27.14699629 | AH78: =IF($B78<121,VLOOKUP($B78,Lookups!A:F,6)*(1-VLOOKUP($B78,Lookups!$N$3:$P$103,2))^($A78-$A$3),"") ->  | AI78: =IF($B78<121,VLOOKUP($B78,Lookups!A:G,7)*(1-VLOOKUP($B78,Lookups!$N$3:$P$103,3))^($A78-$A$3),"") -> 
A79: 2097 | B79: 157 | D79: =VLOOKUP(B79,Lookups!A:B,2) -> 15415.23373 | E79: =VLOOKUP(B79,Lookups!A:C,3) -> 1816.919755 | G79: =VLOOKUP(B79,Lookups!A:D,4) -> 153164.4644 | H79: =VLOOKUP(B79,Lookups!A:E,5) -> 124960.9887 | J79: =VLOOKUP(A79,Trends!$A$3:$H$94,IF(ExFlg=0,4,2))+Sens -> 1.051 | K79: 43.83352712 | L79: =VLOOKUP(A79,Trends!$A$3:$H$94,IF(ExFlg=0,5,3))+Sens -> 1.043 | M79: 35.35705771 | N79: =VLOOKUP(A79,Trends!$A$3:$H$94,6)+Sens -> 1.043 | O79: 30.60618208 | Q79: =IF(B79<=120,VLOOKUP(B79,Lookups!$A$3:$I$103,8,FALSE),"") ->  | R79: =VLOOKUP(A79,Trends!$A$3:$H$94,7)+Sens -> 1.045 | S79: 28.36861112 | T79: =IF(B79<=120,VLOOKUP(B79,Lookups!$A$3:$I$103,9,FALSE),"") ->  | U79: =VLOOKUP(A79,Trends!$A$3:$H$94,8)+Sens -> 1.045 | V79: 28.36861112 | AH79: =IF($B79<121,VLOOKUP($B79,Lookups!A:F,6)*(1-VLOOKUP($B79,Lookups!$N$3:$P$103,2))^($A79-$A$3),"") ->  | AI79: =IF($B79<121,VLOOKUP($B79,Lookups!A:G,7)*(1-VLOOKUP($B79,Lookups!$N$3:$P$103,3))^($A79-$A$3),"") -> 
A80: 2098 | B80: 158 | D80: =VLOOKUP(B80,Lookups!A:B,2) -> 15415.23373 | E80: =VLOOKUP(B80,Lookups!A:C,3) -> 1816.919755 | G80: =VLOOKUP(B80,Lookups!A:D,4) -> 153164.4644 | H80: =VLOOKUP(B80,Lookups!A:E,5) -> 124960.9887 | J80: =VLOOKUP(A80,Trends!$A$3:$H$94,IF(ExFlg=0,4,2))+Sens -> 1.051 | K80: 46.06903701 | L80: =VLOOKUP(A80,Trends!$A$3:$H$94,IF(ExFlg=0,5,3))+Sens -> 1.043 | M80: 36.8774112 | N80: =VLOOKUP(A80,Trends!$A$3:$H$94,6)+Sens -> 1.043 | O80: 31.92224791 | Q80: =IF(B80<=120,VLOOKUP(B80,Lookups!$A$3:$I$103,8,FALSE),"") ->  | R80: =VLOOKUP(A80,Trends!$A$3:$H$94,7)+Sens -> 1.045 | S80: 29.64519862 | T80: =IF(B80<=120,VLOOKUP(B80,Lookups!$A$3:$I$103,9,FALSE),"") ->  | U80: =VLOOKUP(A80,Trends!$A$3:$H$94,8)+Sens -> 1.045 | V80: 29.64519862 | AH80: =IF($B80<121,VLOOKUP($B80,Lookups!A:F,6)*(1-VLOOKUP($B80,Lookups!$N$3:$P$103,2))^($A80-$A$3),"") ->  | AI80: =IF($B80<121,VLOOKUP($B80,Lookups!A:G,7)*(1-VLOOKUP($B80,Lookups!$N$3:$P$103,3))^($A80-$A$3),"") -> 
A81: 2099 | B81: 159 | D81: =VLOOKUP(B81,Lookups!A:B,2) -> 15415.23373 | E81: =VLOOKUP(B81,Lookups!A:C,3) -> 1816.919755 | G81: =VLOOKUP(B81,Lookups!A:D,4) -> 153164.4644 | H81: =VLOOKUP(B81,Lookups!A:E,5) -> 124960.9887 | J81: =VLOOKUP(A81,Trends!$A$3:$H$94,IF(ExFlg=0,4,2))+Sens -> 1.051 | K81: 48.41855789 | L81: =VLOOKUP(A81,Trends!$A$3:$H$94,IF(ExFlg=0,5,3))+Sens -> 1.043 | M81: 38.46313988 | N81: =VLOOKUP(A81,Trends!$A$3:$H$94,6)+Sens -> 1.043 | O81: 33.29490457 | Q81: =IF(B81<=120,VLOOKUP(B81,Lookups!$A$3:$I$103,8,FALSE),"") ->  | R81: =VLOOKUP(A81,Trends!$A$3:$H$94,7)+Sens -> 1.045 | S81: 30.97923256 | T81: =IF(B81<=120,VLOOKUP(B81,Lookups!$A$3:$I$103,9,FALSE),"") ->  | U81: =VLOOKUP(A81,Trends!$A$3:$H$94,8)+Sens -> 1.045 | V81: 30.97923256 | AH81: =IF($B81<121,VLOOKUP($B81,Lookups!A:F,6)*(1-VLOOKUP($B81,Lookups!$N$3:$P$103,2))^($A81-$A$3),"") ->  | AI81: =IF($B81<121,VLOOKUP($B81,Lookups!A:G,7)*(1-VLOOKUP($B81,Lookups!$N$3:$P$103,3))^($A81-$A$3),"") -> 
A82: 2100 | B82: 160 | D82: =VLOOKUP(B82,Lookups!A:B,2) -> 15415.23373 | E82: =VLOOKUP(B82,Lookups!A:C,3) -> 1816.919755 | G82: =VLOOKUP(B82,Lookups!A:D,4) -> 153164.4644 | H82: =VLOOKUP(B82,Lookups!A:E,5) -> 124960.9887 | J82: =VLOOKUP(A82,Trends!$A$3:$H$94,IF(ExFlg=0,4,2))+Sens -> 1.051 | K82: 50.88790435 | L82: =VLOOKUP(A82,Trends!$A$3:$H$94,IF(ExFlg=0,5,3))+Sens -> 1.043 | M82: 40.11705489 | N82: =VLOOKUP(A82,Trends!$A$3:$H$94,6)+Sens -> 1.043 | O82: 34.72658547 | Q82: =IF(B82<=120,VLOOKUP(B82,Lookups!$A$3:$I$103,8,FALSE),"") ->  | R82: =VLOOKUP(A82,Trends!$A$3:$H$94,7)+Sens -> 1.045 | S82: 32.37329802 | T82: =IF(B82<=120,VLOOKUP(B82,Lookups!$A$3:$I$103,9,FALSE),"") ->  | U82: =VLOOKUP(A82,Trends!$A$3:$H$94,8)+Sens -> 1.045 | V82: 32.37329802 | AH82: =IF($B82<121,VLOOKUP($B82,Lookups!A:F,6)*(1-VLOOKUP($B82,Lookups!$N$3:$P$103,2))^($A82-$A$3),"") ->  | AI82: =IF($B82<121,VLOOKUP($B82,Lookups!A:G,7)*(1-VLOOKUP($B82,Lookups!$N$3:$P$103,3))^($A82-$A$3),"") -> 
A83: 2101 | B83: 161 | D83: =VLOOKUP(B83,Lookups!A:B,2) -> 15415.23373 | E83: =VLOOKUP(B83,Lookups!A:C,3) -> 1816.919755 | G83: =VLOOKUP(B83,Lookups!A:D,4) -> 153164.4644 | H83: =VLOOKUP(B83,Lookups!A:E,5) -> 124960.9887 | J83: =VLOOKUP(A83,Trends!$A$3:$H$94,IF(ExFlg=0,4,2))+Sens -> 1.051 | K83: 53.48318747 | L83: =VLOOKUP(A83,Trends!$A$3:$H$94,IF(ExFlg=0,5,3))+Sens -> 1.043 | M83: 41.84208825 | N83: =VLOOKUP(A83,Trends!$A$3:$H$94,6)+Sens -> 1.043 | O83: 36.21982864 | Q83: =IF(B83<=120,VLOOKUP(B83,Lookups!$A$3:$I$103,8,FALSE),"") ->  | R83: =VLOOKUP(A83,Trends!$A$3:$H$94,7)+Sens -> 1.045 | S83: 33.83009643 | T83: =IF(B83<=120,VLOOKUP(B83,Lookups!$A$3:$I$103,9,FALSE),"") ->  | U83: =VLOOKUP(A83,Trends!$A$3:$H$94,8)+Sens -> 1.045 | V83: 33.83009643 | AH83: =IF($B83<121,VLOOKUP($B83,Lookups!A:F,6)*(1-VLOOKUP($B83,Lookups!$N$3:$P$103,2))^($A83-$A$3),"") ->  | AI83: =IF($B83<121,VLOOKUP($B83,Lookups!A:G,7)*(1-VLOOKUP($B83,Lookups!$N$3:$P$103,3))^($A83-$A$3),"") -> 
A84: 2102 | B84: 162 | D84: =VLOOKUP(B84,Lookups!A:B,2) -> 15415.23373 | E84: =VLOOKUP(B84,Lookups!A:C,3) -> 1816.919755 | G84: =VLOOKUP(B84,Lookups!A:D,4) -> 153164.4644 | H84: =VLOOKUP(B84,Lookups!A:E,5) -> 124960.9887 | J84: =VLOOKUP(A84,Trends!$A$3:$H$94,IF(ExFlg=0,4,2))+Sens -> 1.051 | K84: 56.21083003 | L84: =VLOOKUP(A84,Trends!$A$3:$H$94,IF(ExFlg=0,5,3))+Sens -> 1.043 | M84: 43.64129805 | N84: =VLOOKUP(A84,Trends!$A$3:$H$94,6)+Sens -> 1.043 | O84: 37.77728127 | Q84: =IF(B84<=120,VLOOKUP(B84,Lookups!$A$3:$I$103,8,FALSE),"") ->  | R84: =VLOOKUP(A84,Trends!$A$3:$H$94,7)+Sens -> 1.045 | S84: 35.35245077 | T84: =IF(B84<=120,VLOOKUP(B84,Lookups!$A$3:$I$103,9,FALSE),"") ->  | U84: =VLOOKUP(A84,Trends!$A$3:$H$94,8)+Sens -> 1.045 | V84: 35.35245077 | AH84: =IF($B84<121,VLOOKUP($B84,Lookups!A:F,6)*(1-VLOOKUP($B84,Lookups!$N$3:$P$103,2))^($A84-$A$3),"") ->  | AI84: =IF($B84<121,VLOOKUP($B84,Lookups!A:G,7)*(1-VLOOKUP($B84,Lookups!$N$3:$P$103,3))^($A84-$A$3),"") -> 
A85: 2103 | B85: 163 | D85: =VLOOKUP(B85,Lookups!A:B,2) -> 15415.23373 | E85: =VLOOKUP(B85,Lookups!A:C,3) -> 1816.919755 | G85: =VLOOKUP(B85,Lookups!A:D,4) -> 153164.4644 | H85: =VLOOKUP(B85,Lookups!A:E,5) -> 124960.9887 | J85: =VLOOKUP(A85,Trends!$A$3:$H$94,IF(ExFlg=0,4,2))+Sens -> 1.051 | K85: 59.07758236 | L85: =VLOOKUP(A85,Trends!$A$3:$H$94,IF(ExFlg=0,5,3))+Sens -> 1.043 | M85: 45.51787386 | N85: =VLOOKUP(A85,Trends!$A$3:$H$94,6)+Sens -> 1.043 | O85: 39.40170437 | Q85: =IF(B85<=120,VLOOKUP(B85,Lookups!$A$3:$I$103,8,FALSE),"") ->  | R85: =VLOOKUP(A85,Trends!$A$3:$H$94,7)+Sens -> 1.045 | S85: 36.94331106 | T85: =IF(B85<=120,VLOOKUP(B85,Lookups!$A$3:$I$103,9,FALSE),"") ->  | U85: =VLOOKUP(A85,Trends!$A$3:$H$94,8)+Sens -> 1.045 | V85: 36.94331106 | AH85: =IF($B85<121,VLOOKUP($B85,Lookups!A:F,6)*(1-VLOOKUP($B85,Lookups!$N$3:$P$103,2))^($A85-$A$3),"") ->  | AI85: =IF($B85<121,VLOOKUP($B85,Lookups!A:G,7)*(1-VLOOKUP($B85,Lookups!$N$3:$P$103,3))^($A85-$A$3),"") -> 
A86: 2104 | B86: 164 | D86: =VLOOKUP(B86,Lookups!A:B,2) -> 15415.23373 | E86: =VLOOKUP(B86,Lookups!A:C,3) -> 1816.919755 | G86: =VLOOKUP(B86,Lookups!A:D,4) -> 153164.4644 | H86: =VLOOKUP(B86,Lookups!A:E,5) -> 124960.9887 | J86: =VLOOKUP(A86,Trends!$A$3:$H$94,IF(ExFlg=0,4,2))+Sens -> 1.051 | K86: 62.09053906 | L86: =VLOOKUP(A86,Trends!$A$3:$H$94,IF(ExFlg=0,5,3))+Sens -> 1.043 | M86: 47.47514244 | N86: =VLOOKUP(A86,Trends!$A$3:$H$94,6)+Sens -> 1.043 | O86: 41.09597766 | Q86: =IF(B86<=120,VLOOKUP(B86,Lookups!$A$3:$I$103,8,FALSE),"") ->  | R86: =VLOOKUP(A86,Trends!$A$3:$H$94,7)+Sens -> 1.045 | S86: 38.60576006 | T86: =IF(B86<=120,VLOOKUP(B86,Lookups!$A$3:$I$103,9,FALSE),"") ->  | U86: =VLOOKUP(A86,Trends!$A$3:$H$94,8)+Sens -> 1.045 | V86: 38.60576006 | AH86: =IF($B86<121,VLOOKUP($B86,Lookups!A:F,6)*(1-VLOOKUP($B86,Lookups!$N$3:$P$103,2))^($A86-$A$3),"") ->  | AI86: =IF($B86<121,VLOOKUP($B86,Lookups!A:G,7)*(1-VLOOKUP($B86,Lookups!$N$3:$P$103,3))^($A86-$A$3),"") -> 
A87: 2105 | B87: 165 | D87: =VLOOKUP(B87,Lookups!A:B,2) -> 15415.23373 | E87: =VLOOKUP(B87,Lookups!A:C,3) -> 1816.919755 | G87: =VLOOKUP(B87,Lookups!A:D,4) -> 153164.4644 | H87: =VLOOKUP(B87,Lookups!A:E,5) -> 124960.9887 | J87: =VLOOKUP(A87,Trends!$A$3:$H$94,IF(ExFlg=0,4,2))+Sens -> 1.051 | K87: 65.25715655 | L87: =VLOOKUP(A87,Trends!$A$3:$H$94,IF(ExFlg=0,5,3))+Sens -> 1.043 | M87: 49.51657356 | N87: =VLOOKUP(A87,Trends!$A$3:$H$94,6)+Sens -> 1.043 | O87: 42.8631047 | Q87: =IF(B87<=120,VLOOKUP(B87,Lookups!$A$3:$I$103,8,FALSE),"") ->  | R87: =VLOOKUP(A87,Trends!$A$3:$H$94,7)+Sens -> 1.045 | S87: 40.34301926 | T87: =IF(B87<=120,VLOOKUP(B87,Lookups!$A$3:$I$103,9,FALSE),"") ->  | U87: =VLOOKUP(A87,Trends!$A$3:$H$94,8)+Sens -> 1.045 | V87: 40.34301926 | AH87: =IF($B87<121,VLOOKUP($B87,Lookups!A:F,6)*(1-VLOOKUP($B87,Lookups!$N$3:$P$103,2))^($A87-$A$3),"") ->  | AI87: =IF($B87<121,VLOOKUP($B87,Lookups!A:G,7)*(1-VLOOKUP($B87,Lookups!$N$3:$P$103,3))^($A87-$A$3),"") -> 
A88: 2106 | B88: 166 | D88: =VLOOKUP(B88,Lookups!A:B,2) -> 15415.23373 | E88: =VLOOKUP(B88,Lookups!A:C,3) -> 1816.919755 | G88: =VLOOKUP(B88,Lookups!A:D,4) -> 153164.4644 | H88: =VLOOKUP(B88,Lookups!A:E,5) -> 124960.9887 | J88: =VLOOKUP(A88,Trends!$A$3:$H$94,IF(ExFlg=0,4,2))+Sens -> 1.051 | K88: 68.58527154 | L88: =VLOOKUP(A88,Trends!$A$3:$H$94,IF(ExFlg=0,5,3))+Sens -> 1.043 | M88: 51.64578623 | N88: =VLOOKUP(A88,Trends!$A$3:$H$94,6)+Sens -> 1.043 | O88: 44.7062182 | Q88: =IF(B88<=120,VLOOKUP(B88,Lookups!$A$3:$I$103,8,FALSE),"") ->  | R88: =VLOOKUP(A88,Trends!$A$3:$H$94,7)+Sens -> 1.045 | S88: 42.15845513 | T88: =IF(B88<=120,VLOOKUP(B88,Lookups!$A$3:$I$103,9,FALSE),"") ->  | U88: =VLOOKUP(A88,Trends!$A$3:$H$94,8)+Sens -> 1.045 | V88: 42.15845513 | AH88: =IF($B88<121,VLOOKUP($B88,Lookups!A:F,6)*(1-VLOOKUP($B88,Lookups!$N$3:$P$103,2))^($A88-$A$3),"") ->  | AI88: =IF($B88<121,VLOOKUP($B88,Lookups!A:G,7)*(1-VLOOKUP($B88,Lookups!$N$3:$P$103,3))^($A88-$A$3),"") -> 
A89: 2107 | B89: 167 | D89: =VLOOKUP(B89,Lookups!A:B,2) -> 15415.23373 | E89: =VLOOKUP(B89,Lookups!A:C,3) -> 1816.919755 | G89: =VLOOKUP(B89,Lookups!A:D,4) -> 153164.4644 | H89: =VLOOKUP(B89,Lookups!A:E,5) -> 124960.9887 | J89: =VLOOKUP(A89,Trends!$A$3:$H$94,IF(ExFlg=0,4,2))+Sens -> 1.051 | K89: 72.08312039 | L89: =VLOOKUP(A89,Trends!$A$3:$H$94,IF(ExFlg=0,5,3))+Sens -> 1.043 | M89: 53.86655503 | N89: =VLOOKUP(A89,Trends!$A$3:$H$94,6)+Sens -> 1.043 | O89: 46.62858558 | Q89: =IF(B89<=120,VLOOKUP(B89,Lookups!$A$3:$I$103,8,FALSE),"") ->  | R89: =VLOOKUP(A89,Trends!$A$3:$H$94,7)+Sens -> 1.045 | S89: 44.05558561 | T89: =IF(B89<=120,VLOOKUP(B89,Lookups!$A$3:$I$103,9,FALSE),"") ->  | U89: =VLOOKUP(A89,Trends!$A$3:$H$94,8)+Sens -> 1.045 | V89: 44.05558561 | AH89: =IF($B89<121,VLOOKUP($B89,Lookups!A:F,6)*(1-VLOOKUP($B89,Lookups!$N$3:$P$103,2))^($A89-$A$3),"") ->  | AI89: =IF($B89<121,VLOOKUP($B89,Lookups!A:G,7)*(1-VLOOKUP($B89,Lookups!$N$3:$P$103,3))^($A89-$A$3),"") -> 
A90: 2108 | B90: 168 | D90: =VLOOKUP(B90,Lookups!A:B,2) -> 15415.23373 | E90: =VLOOKUP(B90,Lookups!A:C,3) -> 1816.919755 | G90: =VLOOKUP(B90,Lookups!A:D,4) -> 153164.4644 | H90: =VLOOKUP(B90,Lookups!A:E,5) -> 124960.9887 | J90: =VLOOKUP(A90,Trends!$A$3:$H$94,IF(ExFlg=0,4,2))+Sens -> 1.051 | K90: 75.75935953 | L90: =VLOOKUP(A90,Trends!$A$3:$H$94,IF(ExFlg=0,5,3))+Sens -> 1.043 | M90: 56.1828169 | N90: =VLOOKUP(A90,Trends!$A$3:$H$94,6)+Sens -> 1.043 | O90: 48.63361476 | Q90: =IF(B90<=120,VLOOKUP(B90,Lookups!$A$3:$I$103,8,FALSE),"") ->  | R90: =VLOOKUP(A90,Trends!$A$3:$H$94,7)+Sens -> 1.045 | S90: 46.03808696 | T90: =IF(B90<=120,VLOOKUP(B90,Lookups!$A$3:$I$103,9,FALSE),"") ->  | U90: =VLOOKUP(A90,Trends!$A$3:$H$94,8)+Sens -> 1.045 | V90: 46.03808696 | AH90: =IF($B90<121,VLOOKUP($B90,Lookups!A:F,6)*(1-VLOOKUP($B90,Lookups!$N$3:$P$103,2))^($A90-$A$3),"") ->  | AI90: =IF($B90<121,VLOOKUP($B90,Lookups!A:G,7)*(1-VLOOKUP($B90,Lookups!$N$3:$P$103,3))^($A90-$A$3),"") -> 
A91: 2109 | B91: 169 | D91: =VLOOKUP(B91,Lookups!A:B,2) -> 15415.23373 | E91: =VLOOKUP(B91,Lookups!A:C,3) -> 1816.919755 | G91: =VLOOKUP(B91,Lookups!A:D,4) -> 153164.4644 | H91: =VLOOKUP(B91,Lookups!A:E,5) -> 124960.9887 | J91: =VLOOKUP(A91,Trends!$A$3:$H$94,IF(ExFlg=0,4,2))+Sens -> 1.051 | K91: 79.62308686 | L91: =VLOOKUP(A91,Trends!$A$3:$H$94,IF(ExFlg=0,5,3))+Sens -> 1.043 | M91: 58.59867803 | N91: =VLOOKUP(A91,Trends!$A$3:$H$94,6)+Sens -> 1.043 | O91: 50.7248602 | Q91: =IF(B91<=120,VLOOKUP(B91,Lookups!$A$3:$I$103,8,FALSE),"") ->  | R91: =VLOOKUP(A91,Trends!$A$3:$H$94,7)+Sens -> 1.045 | S91: 48.10980087 | T91: =IF(B91<=120,VLOOKUP(B91,Lookups!$A$3:$I$103,9,FALSE),"") ->  | U91: =VLOOKUP(A91,Trends!$A$3:$H$94,8)+Sens -> 1.045 | V91: 48.10980087 | AH91: =IF($B91<121,VLOOKUP($B91,Lookups!A:F,6)*(1-VLOOKUP($B91,Lookups!$N$3:$P$103,2))^($A91-$A$3),"") ->  | AI91: =IF($B91<121,VLOOKUP($B91,Lookups!A:G,7)*(1-VLOOKUP($B91,Lookups!$N$3:$P$103,3))^($A91-$A$3),"") -> 
A92: 2110 | B92: 170 | D92: =VLOOKUP(B92,Lookups!A:B,2) -> 15415.23373 | E92: =VLOOKUP(B92,Lookups!A:C,3) -> 1816.919755 | G92: =VLOOKUP(B92,Lookups!A:D,4) -> 153164.4644 | H92: =VLOOKUP(B92,Lookups!A:E,5) -> 124960.9887 | J92: =VLOOKUP(A92,Trends!$A$3:$H$94,IF(ExFlg=0,4,2))+Sens -> 1.051 | K92: 83.68386429 | L92: =VLOOKUP(A92,Trends!$A$3:$H$94,IF(ExFlg=0,5,3))+Sens -> 1.043 | M92: 61.11842118 | N92: =VLOOKUP(A92,Trends!$A$3:$H$94,6)+Sens -> 1.043 | O92: 52.90602918 | Q92: =IF(B92<=120,VLOOKUP(B92,Lookups!$A$3:$I$103,8,FALSE),"") ->  | R92: =VLOOKUP(A92,Trends!$A$3:$H$94,7)+Sens -> 1.045 | S92: 50.27474191 | T92: =IF(B92<=120,VLOOKUP(B92,Lookups!$A$3:$I$103,9,FALSE),"") ->  | U92: =VLOOKUP(A92,Trends!$A$3:$H$94,8)+Sens -> 1.045 | V92: 50.27474191 | AH92: =IF($B92<121,VLOOKUP($B92,Lookups!A:F,6)*(1-VLOOKUP($B92,Lookups!$N$3:$P$103,2))^($A92-$A$3),"") ->  | AI92: =IF($B92<121,VLOOKUP($B92,Lookups!A:G,7)*(1-VLOOKUP($B92,Lookups!$N$3:$P$103,3))^($A92-$A$3),"") -> 
A93: 2111 | B93: 171 | D93: =VLOOKUP(B93,Lookups!A:B,2) -> 15415.23373 | E93: =VLOOKUP(B93,Lookups!A:C,3) -> 1816.919755 | G93: =VLOOKUP(B93,Lookups!A:D,4) -> 153164.4644 | H93: =VLOOKUP(B93,Lookups!A:E,5) -> 124960.9887 | K93: 87.95174137 | M93: 63.74651329 | O93: 55.18098844 | Q93: =IF(B93<=120,VLOOKUP(B93,Lookups!$A$3:$I$103,8,FALSE),"") ->  | S93: 52.5371053 | T93: =IF(B93<=120,VLOOKUP(B93,Lookups!$A$3:$I$103,9,FALSE),"") ->  | V93: 52.5371053 | AH93: =IF($B93<121,VLOOKUP($B93,Lookups!A:F,6)*(1-VLOOKUP($B93,Lookups!$N$3:$P$103,2))^($A93-$A$3),"") ->  | AI93: =IF($B93<121,VLOOKUP($B93,Lookups!A:G,7)*(1-VLOOKUP($B93,Lookups!$N$3:$P$103,3))^($A93-$A$3),"") -> 
AP95: =SUM(AP3:AP93) -> 397552.3709 | AQ95: Sum
AP96: =B1 -> 0 | AQ96: Count
AP97: =AP95*AP96 -> 0 | AQ97: Aggregate
AP100: Total OPEB Liability | AQ100: =AP97 -> 0
AP101: Expected Benefit Payments | AQ101: =SUM(AO3:AP3)*AP96 -> 0

Sheet Log (hidden)
A1: EoP = End of Period | B1: Actives Cohort | G1: Inactive Cohorts
A2: BoP = Beginning of Period | B2: 1 | C2: 2 | D2: 3 | E2: 4 | G2: 1 | H2: 2 | I2: 3 | J2: 4
G3: 55-64 | H3: 65-69 | I3: 70-74 | J3: 75+ | L3: Total
A4: Run 1 - EoP Data, BoP Discount Rate, New HC Assumptions
A5: Service Cost (EANC) | L5: =SUM(B5:E5) -> 0
A6: Total OPEB Liability (TOL) | G6: 0 | H6: 0 | I6: 0 | J6: 0 | L6: =SUM(B6:E6,G6:J6) -> 0
A7: Expected Benefit Payments | G7: 0 | H7: 0 | I7: 0 | J7: 0 | L7: =SUM(B7:E7,G7:J7) -> 0
A9: Run 2 - EoP Data, EoP Discount Rate, New HC Assumptions
A10: Service Cost (EANC) | L10: =SUM(B10:E10) -> 0
A11: Total OPEB Liability (TOL) | G11: 0 | H11: 0 | I11: 0 | J11: 0 | L11: =SUM(B11:E11,G11:J11) -> 0
A12: Expected Benefit Payments | G12: 0 | H12: 0 | I12: 0 | J12: 0 | L12: =SUM(B12:E12,G12:J12) -> 0
A14: Run 3 - EoP Data, EoP Discount Rate, New HC Assumptions -1% Sensitvity
A15: Service Cost (EANC) | L15: =SUM(B15:E15) -> 0
A16: Total OPEB Liability (TOL) | G16: 0 | H16: 0 | I16: 0 | J16: 0 | L16: =SUM(B16:E16,G16:J16) -> 0
A17: Expected Benefit Payments | G17: 0 | H17: 0 | I17: 0 | J17: 0 | L17: =SUM(B17:E17,G17:J17) -> 0
A19: Run 4 - EoP Data, EoP Discount Rate, New HC Assumptions +1% Sensitvity
A20: Service Cost (EANC) | L20: =SUM(B20:E20) -> 0
A21: Total OPEB Liability (TOL) | G21: 0 | H21: 0 | I21: 0 | J21: 0 | L21: =SUM(B21:E21,G21:J21) -> 0
A22: Expected Benefit Payments | G22: 0 | H22: 0 | I22: 0 | J22: 0 | L22: =SUM(B22:E22,G22:J22) -> 0
A24: Run 5 - EoP Data, EoP Discount Rate -1% Sensitivity, New HC Assumptions
A25: Service Cost (EANC) | L25: =SUM(B25:E25) -> 0
A26: Total OPEB Liability (TOL) | G26: 0 | H26: 0 | I26: 0 | J26: 0 | L26: =SUM(B26:E26,G26:J26) -> 0
A27: Expected Benefit Payments | G27: 0 | H27: 0 | I27: 0 | J27: 0 | L27: =SUM(B27:E27,G27:J27) -> 0
A28: PVFB
A29: Run 6 - EoP Data, EoP Discount Rate +1% Sensitivity, New HC Assumptions
A30: Service Cost (EANC) | L30: =SUM(B30:E30) -> 0
A31: Total OPEB Liability (TOL) | G31: 0 | H31: 0 | I31: 0 | J31: 0 | L31: =SUM(B31:E31,G31:J31) -> 0
A32: Expected Benefit Payments | G32: 0 | H32: 0 | I32: 0 | J32: 0 | L32: =SUM(B32:E32,G32:J32) -> 0

Sheet Lookups (hidden)
B1: Medical | C1: Medicare | D1: LTC Inst. | E1: LTC Non- | F1: Mortality | G1: Mortality | H1: Institutional LTC Rate | I1: Non-Inst. LTC Rate | K1: =ToolYear - 1 & " Discount" -> 2020 Discount | L1: 0.0221 | O1: MP-2017 Ultimate | R1: Medical | S1: Medicare | T1: LTC Inst. | U1: LTC Non- | W1: Mortality | X1: Mortality
A2: Age | B2: Cost | C2: Cost | D2: Cost | E2: Inst. Cost | F2: Male | G2: Female | K2: =ToolYear & " Discount" -> 2021 Discount | L2: 0.0216 | N2: Age | O2: Male | P2: Female | R2: Cost | S2: Cost | T2: Cost | U2: Inst. Cost | W2: Male | X2: Female
A3: 20 | B3: =R3*PRODUCT(IF(Trends!$A$3:$A$94<ToolYear,IF(ExFlg=1,Trends!$B$3:$B$94,Trends!$D$3:$D$94),1)) -> 45821.74166 | C3: 0 | D3: =T3*PRODUCT(IF(Trends!$A$3:$A$94<ToolYear,Trends!$G$3:$G$94,1)) -> 221053.5783 | E3: =U3*PRODUCT(IF(Trends!$A$3:$A$94<ToolYear,Trends!$H$3:$H$94,1)) -> 156703.8824 | F3: =W3*(1-O3)^(ToolYear-MortBaseYear) -> 0.0008371412677 | G3: =X3*(1-P3)^(ToolYear-MortBaseYear) -> 0.0003088916977 | H3: 0.0004 | I3: 0.0019 | N3: 20 | O3: 0.01 | P3: 0.01 | R3: 38510.04 | S3: 0 | T3: 193708.5 | U3: 137319.08 | W3: 0.000935 | X3: 0.000345 | Z3: Sources
A4: =1+A3 -> 21 | B4: =R4*PRODUCT(IF(Trends!$A$3:$A$94<ToolYear,IF(ExFlg=1,Trends!$B$3:$B$94,Trends!$D$3:$D$94),1)) -> 45821.74166 | C4: 0 | D4: =T4*PRODUCT(IF(Trends!$A$3:$A$94<ToolYear,Trends!$G$3:$G$94,1)) -> 221053.5783 | E4: =U4*PRODUCT(IF(Trends!$A$3:$A$94<ToolYear,Trends!$H$3:$H$94,1)) -> 156703.8824 | F4: 0.0008595247241 | G4: 0.0003267984628 | H4: 0.0004 | I4: 0.0019 | L4: Int Rt | N4: 21 | O4: 0.01 | P4: 0.01 | R4: 38510.04 | S4: 0 | T4: 193708.5 | U4: 137319.08 | W4: 0.00096 | X4: 0.000365 | Z4: Mortality Assumption
A5: 22 | B5: =R5*PRODUCT(IF(Trends!$A$3:$A$94<ToolYear,IF(ExFlg=1,Trends!$B$3:$B$94,Trends!$D$3:$D$94),1)) -> 45821.74166 | C5: 0 | D5: =T5*PRODUCT(IF(Trends!$A$3:$A$94<ToolYear,Trends!$G$3:$G$94,1)) -> 221053.5783 | E5: =U5*PRODUCT(IF(Trends!$A$3:$A$94<ToolYear,Trends!$H$3:$H$94,1)) -> 156703.8824 | F5: 0.0008595247241 | G5: 0.0003402285366 | H5: 0.0004 | I5: 0.0019 | L5: 0.0221 | N5: 22 | O5: 0.01 | P5: 0.01 | R5: 38510.04 | S5: 0 | T5: 193708.5 | U5: 137319.08 | W5: 0.00096 | X5: 0.00038 | Z5: Medical, Medicare, and LTC Costs
A6: 23 | B6: =R6*PRODUCT(IF(Trends!$A$3:$A$94<ToolYear,IF(ExFlg=1,Trends!$B$3:$B$94,Trends!$D$3:$D$94),1)) -> 45821.74166 | C6: 0 | D6: =T6*PRODUCT(IF(Trends!$A$3:$A$94<ToolYear,Trends!$G$3:$G$94,1)) -> 221053.5783 | E6: =U6*PRODUCT(IF(Trends!$A$3:$A$94<ToolYear,Trends!$H$3:$H$94,1)) -> 156703.8824 | F6: 0.0008505713415 | G6: 0.0003491819192 | H6: 0.0004 | I6: 0.0019 | N6: 23 | O6: 0.01 | P6: 0.01 | R6: 38510.04 | S6: 0 | T6: 193708.5 | U6: 137319.08 | W6: 0.00095 | X6: 0.00039 | Z6: LTC Probabilities
A7: 24 | B7: =R7*PRODUCT(IF(Trends!$A$3:$A$94<ToolYear,IF(ExFlg=1,Trends!$B$3:$B$94,Trends!$D$3:$D$94),1)) -> 45821.74166 | C7: 0 | D7: =T7*PRODUCT(IF(Trends!$A$3:$A$94<ToolYear,Trends!$G$3:$G$94,1)) -> 221053.5783 | E7: =U7*PRODUCT(IF(Trends!$A$3:$A$94<ToolYear,Trends!$H$3:$H$94,1)) -> 156703.8824 | F7: 0.0008460946503 | G7: 0.000362611993 | H7: 0.0004 | I7: 0.0019 | L7: Sens | N7: 24 | O7: 0.01 | P7: 0.01 | R7: 38510.04 | S7: 0 | T7: 193708.5 | U7: 137319.08 | W7: 0.000945 | X7: 0.000405 | Z7: Discount Rate
A8: 25 | B8: =R8*PRODUCT(IF(Trends!$A$3:$A$94<ToolYear,IF(ExFlg=1,Trends!$B$3:$B$94,Trends!$D$3:$D$94),1)) -> 45821.74166 | C8: 0 | D8: =T8*PRODUCT(IF(Trends!$A$3:$A$94<ToolYear,Trends!$G$3:$G$94,1)) -> 221053.5783 | E8: =U8*PRODUCT(IF(Trends!$A$3:$A$94<ToolYear,Trends!$H$3:$H$94,1)) -> 156703.8824 | F8: 0.0008460946503 | G8: 0.0003805187581 | H8: 0.0004 | I8: 0.0019 | L8: 0 | N8: 25 | O8: 0.01 | P8: 0.01 | R8: 38510.04 | S8: 0 | T8: 193708.5 | U8: 137319.08 | W8: 0.000945 | X8: 0.000425 | Z8: 2018 Milliman Letter
A9: 26 | B9: =R9*PRODUCT(IF(Trends!$A$3:$A$94<ToolYear,IF(ExFlg=1,Trends!$B$3:$B$94,Trends!$D$3:$D$94),1)) -> 45821.74166 | C9: 0 | D9: =T9*PRODUCT(IF(Trends!$A$3:$A$94<ToolYear,Trends!$G$3:$G$94,1)) -> 221053.5783 | E9: =U9*PRODUCT(IF(Trends!$A$3:$A$94<ToolYear,Trends!$H$3:$H$94,1)) -> 156703.8824 | F9: 0.0008640014154 | G9: 0.000411855597 | H9: 0.0004 | I9: 0.0019 | N9: 26 | O9: 0.01 | P9: 0.01 | R9: 38510.04 | S9: 0 | T9: 193708.5 | U9: 137319.08 | W9: 0.000965 | X9: 0.00046
A10: 27 | B10: =R10*PRODUCT(IF(Trends!$A$3:$A$94<ToolYear,IF(ExFlg=1,Trends!$B$3:$B$94,Trends!$D$3:$D$94),1)) -> 45821.74166 | C10: 0 | D10: =T10*PRODUCT(IF(Trends!$A$3:$A$94<ToolYear,Trends!$G$3:$G$94,1)) -> 221053.5783 | E10: =U10*PRODUCT(IF(Trends!$A$3:$A$94<ToolYear,Trends!$H$3:$H$94,1)) -> 156703.8824 | F10: 0.0008819081804 | G10: 0.0004342390533 | H10: 0.0004 | I10: 0.0019 | L10: ExFlg | N10: 27 | O10: 0.01 | P10: 0.01 | R10: 38510.04 | S10: 0 | T10: 193708.5 | U10: 137319.08 | W10: 0.000985 | X10: 0.000485
A11: 28 | B11: =R11*PRODUCT(IF(Trends!$A$3:$A$94<ToolYear,IF(ExFlg=1,Trends!$B$3:$B$94,Trends!$D$3:$D$94),1)) -> 45821.74166 | C11: 0 | D11: =T11*PRODUCT(IF(Trends!$A$3:$A$94<ToolYear,Trends!$G$3:$G$94,1)) -> 221053.5783 | E11: =U11*PRODUCT(IF(Trends!$A$3:$A$94<ToolYear,Trends!$H$3:$H$94,1)) -> 156703.8824 | F11: 0.0008998149455 | G11: 0.0004655758922 | H11: 0.0004 | I11: 0.0019 | L11: 0 | N11: 28 | O11: 0.01 | P11: 0.01 | R11: 38510.04 | S11: 0 | T11: 193708.5 | U11: 137319.08 | W11: 0.001005 | X11: 0.00052
A12: 29 | B12: =R12*PRODUCT(IF(Trends!$A$3:$A$94<ToolYear,IF(ExFlg=1,Trends!$B$3:$B$94,Trends!$D$3:$D$94),1)) -> 45821.74166 | C12: 0 | D12: =T12*PRODUCT(IF(Trends!$A$3:$A$94<ToolYear,Trends!$G$3:$G$94,1)) -> 221053.5783 | E12: =U12*PRODUCT(IF(Trends!$A$3:$A$94<ToolYear,Trends!$H$3:$H$94,1)) -> 156703.8824 | F12: 0.0009221984019 | G12: 0.0004969127311 | H12: 0.0004 | I12: 0.0019 | N12: 29 | O12: 0.01 | P12: 0.01 | R12: 38510.04 | S12: 0 | T12: 193708.5 | U12: 137319.08 | W12: 0.00103 | X12: 0.000555
A13: 30 | B13: =R13*PRODUCT(IF(Trends!$A$3:$A$94<ToolYear,IF(ExFlg=1,Trends!$B$3:$B$94,Trends!$D$3:$D$94),1)) -> 45821.74166 | C13: 0 | D13: =T13*PRODUCT(IF(Trends!$A$3:$A$94<ToolYear,Trends!$G$3:$G$94,1)) -> 221053.5783 | E13: =U13*PRODUCT(IF(Trends!$A$3:$A$94<ToolYear,Trends!$H$3:$H$94,1)) -> 156703.8824 | F13: 0.000940105167 | G13: 0.0005237728787 | H13: 0.0004 | I13: 0.0019 | L13: Valuation Year | N13: 30 | O13: 0.01 | P13: 0.01 | R13: 38510.04 | S13: 0 | T13: 193708.5 | U13: 137319.08 | W13: 0.00105 | X13: 0.000585
A14: 31 | B14: =R14*PRODUCT(IF(Trends!$A$3:$A$94<ToolYear,IF(ExFlg=1,Trends!$B$3:$B$94,Trends!$D$3:$D$94),1)) -> 45821.74166 | C14: 0 | D14: =T14*PRODUCT(IF(Trends!$A$3:$A$94<ToolYear,Trends!$G$3:$G$94,1)) -> 221053.5783 | E14: =U14*PRODUCT(IF(Trends!$A$3:$A$94<ToolYear,Trends!$H$3:$H$94,1)) -> 156703.8824 | F14: 0.0009624886233 | G14: 0.0005595864089 | H14: 0.0004 | I14: 0.0019 | L14: 2018 | N14: 31 | O14: 0.01 | P14: 0.01 | R14: 38510.04 | S14: 0 | T14: 193708.5 | U14: 137319.08 | W14: 0.001075 | X14: 0.000625
A15: 32 | B15: =R15*PRODUCT(IF(Trends!$A$3:$A$94<ToolYear,IF(ExFlg=1,Trends!$B$3:$B$94,Trends!$D$3:$D$94),1)) -> 45821.74166 | C15: 0 | D15: =T15*PRODUCT(IF(Trends!$A$3:$A$94<ToolYear,Trends!$G$3:$G$94,1)) -> 221053.5783 | E15: =U15*PRODUCT(IF(Trends!$A$3:$A$94<ToolYear,Trends!$H$3:$H$94,1)) -> 156703.8824 | F15: 0.0009848720797 | G15: 0.0005953999391 | H15: 0.0004 | I15: 0.0019 | N15: 32 | O15: 0.01 | P15: 0.01 | R15: 38510.04 | S15: 0 | T15: 193708.5 | U15: 137319.08 | W15: 0.0011 | X15: 0.000665
A16: 33 | B16: =R16*PRODUCT(IF(Trends!$A$3:$A$94<ToolYear,IF(ExFlg=1,Trends!$B$3:$B$94,Trends!$D$3:$D$94),1)) -> 45821.74166 | C16: 0 | D16: =T16*PRODUCT(IF(Trends!$A$3:$A$94<ToolYear,Trends!$G$3:$G$94,1)) -> 221053.5783 | E16: =U16*PRODUCT(IF(Trends!$A$3:$A$94<ToolYear,Trends!$H$3:$H$94,1)) -> 156703.8824 | F16: 0.001007255536 | G16: 0.0006312134693 | H16: 0.0004 | I16: 0.0019 | L16: Tool Year | N16: 33 | O16: 0.01 | P16: 0.01 | R16: 38510.04 | S16: 0 | T16: 193708.5 | U16: 137319.08 | W16: 0.001125 | X16: 0.000705
A17: 34 | B17: =R17*PRODUCT(IF(Trends!$A$3:$A$94<ToolYear,IF(ExFlg=1,Trends!$B$3:$B$94,Trends!$D$3:$D$94),1)) -> 45821.74166 | C17: 0 | D17: =T17*PRODUCT(IF(Trends!$A$3:$A$94<ToolYear,Trends!$G$3:$G$94,1)) -> 221053.5783 | E17: =U17*PRODUCT(IF(Trends!$A$3:$A$94<ToolYear,Trends!$H$3:$H$94,1)) -> 156703.8824 | F17: 0.001034115684 | G17: 0.000675980382 | H17: 0.0004 | I17: 0.0019 | L17: 2021 | N17: 34 | O17: 0.01 | P17: 0.01 | R17: 38510.04 | S17: 0 | T17: 193708.5 | U17: 137319.08 | W17: 0.001155 | X17: 0.000755
A18: 35 | B18: =R18*PRODUCT(IF(Trends!$A$3:$A$94<ToolYear,IF(ExFlg=1,Trends!$B$3:$B$94,Trends!$D$3:$D$94),1)) -> 45821.74166 | C18: 0 | D18: =T18*PRODUCT(IF(Trends!$A$3:$A$94<ToolYear,Trends!$G$3:$G$94,1)) -> 221053.5783 | E18: =U18*PRODUCT(IF(Trends!$A$3:$A$94<ToolYear,Trends!$H$3:$H$94,1)) -> 156703.8824 | F18: 0.001065452523 | G18: 0.0007162706034 | H18: 0.0004 | I18: 0.0019 | N18: 35 | O18: 0.01 | P18: 0.01 | R18: 38510.04 | S18: 0 | T18: 193708.5 | U18: 137319.08 | W18: 0.00119 | X18: 0.0008
A19: 36 | B19: =R19*PRODUCT(IF(Trends!$A$3:$A$94<ToolYear,IF(ExFlg=1,Trends!$B$3:$B$94,Trends!$D$3:$D$94),1)) -> 45821.74166 | C19: 0 | D19: =T19*PRODUCT(IF(Trends!$A$3:$A$94<ToolYear,Trends!$G$3:$G$94,1)) -> 221053.5783 | E19: =U19*PRODUCT(IF(Trends!$A$3:$A$94<ToolYear,Trends!$H$3:$H$94,1)) -> 156703.8824 | F19: 0.001101266053 | G19: 0.0007655142074 | H19: 0.0004 | I19: 0.0019 | L19: Mortality Base | N19: 36 | O19: 0.01 | P19: 0.01 | R19: 38510.04 | S19: 0 | T19: 193708.5 | U19: 137319.08 | W19: 0.00123 | X19: 0.000855
A20: 37 | B20: =R20*PRODUCT(IF(Trends!$A$3:$A$94<ToolYear,IF(ExFlg=1,Trends!$B$3:$B$94,Trends!$D$3:$D$94),1)) -> 45821.74166 | C20: 0 | D20: =T20*PRODUCT(IF(Trends!$A$3:$A$94<ToolYear,Trends!$G$3:$G$94,1)) -> 221053.5783 | E20: =U20*PRODUCT(IF(Trends!$A$3:$A$94<ToolYear,Trends!$H$3:$H$94,1)) -> 156703.8824 | F20: 0.001141556274 | G20: 0.0008147578114 | H20: 0.0004 | I20: 0.0019 | L20: 2010 | N20: 37 | O20: 0.01 | P20: 0.01 | R20: 38510.04 | S20: 0 | T20: 193708.5 | U20: 137319.08 | W20: 0.001275 | X20: 0.00091
A21: 38 | B21: =R21*PRODUCT(IF(Trends!$A$3:$A$94<ToolYear,IF(ExFlg=1,Trends!$B$3:$B$94,Trends!$D$3:$D$94),1)) -> 45821.74166 | C21: 0 | D21: =T21*PRODUCT(IF(Trends!$A$3:$A$94<ToolYear,Trends!$G$3:$G$94,1)) -> 221053.5783 | E21: =U21*PRODUCT(IF(Trends!$A$3:$A$94<ToolYear,Trends!$H$3:$H$94,1)) -> 156703.8824 | F21: 0.001190799878 | G21: 0.0008640014154 | H21: 0.0004 | I21: 0.0019 | N21: 38 | O21: 0.01 | P21: 0.01 | R21: 38510.04 | S21: 0 | T21: 193708.5 | U21: 137319.08 | W21: 0.00133 | X21: 0.000965
A22: 39 | B22: =R22*PRODUCT(IF(Trends!$A$3:$A$94<ToolYear,IF(ExFlg=1,Trends!$B$3:$B$94,Trends!$D$3:$D$94),1)) -> 45821.74166 | C22: 0 | D22: =T22*PRODUCT(IF(Trends!$A$3:$A$94<ToolYear,Trends!$G$3:$G$94,1)) -> 221053.5783 | E22: =U22*PRODUCT(IF(Trends!$A$3:$A$94<ToolYear,Trends!$H$3:$H$94,1)) -> 156703.8824 | F22: 0.001248996865 | G22: 0.0009221984019 | H22: 0.0004 | I22: 0.0019 | N22: 39 | O22: 0.01 | P22: 0.01 | R22: 38510.04 | S22: 0 | T22: 193708.5 | U22: 137319.08 | W22: 0.001395 | X22: 0.00103
A23: 40 | B23: =R23*PRODUCT(IF(Trends!$A$3:$A$94<ToolYear,IF(ExFlg=1,Trends!$B$3:$B$94,Trends!$D$3:$D$94),1)) -> 45821.74166 | C23: 0 | D23: =T23*PRODUCT(IF(Trends!$A$3:$A$94<ToolYear,Trends!$G$3:$G$94,1)) -> 221053.5783 | E23: =U23*PRODUCT(IF(Trends!$A$3:$A$94<ToolYear,Trends!$H$3:$H$94,1)) -> 156703.8824 | F23: 0.001311670542 | G23: 0.0009848720797 | H23: 0.0004 | I23: 0.0019 | N23: 40 | O23: 0.01 | P23: 0.01 | R23: 38510.04 | S23: 0 | T23: 193708.5 | U23: 137319.08 | W23: 0.001465 | X23: 0.0011
A24: 41 | B24: =R24*PRODUCT(IF(Trends!$A$3:$A$94<ToolYear,IF(ExFlg=1,Trends!$B$3:$B$94,Trends!$D$3:$D$94),1)) -> 45821.74166 | C24: 0 | D24: =T24*PRODUCT(IF(Trends!$A$3:$A$94<ToolYear,Trends!$G$3:$G$94,1)) -> 221053.5783 | E24: =U24*PRODUCT(IF(Trends!$A$3:$A$94<ToolYear,Trends!$H$3:$H$94,1)) -> 156703.8824 | F24: 0.001387774294 | G24: 0.001052022449 | H24: 0.0004 | I24: 0.0019 | N24: 41 | O24: 0.01 | P24: 0.01 | R24: 38510.04 | S24: 0 | T24: 193708.5 | U24: 137319.08 | W24: 0.00155 | X24: 0.001175
A25: 42 | B25: =R25*PRODUCT(IF(Trends!$A$3:$A$94<ToolYear,IF(ExFlg=1,Trends!$B$3:$B$94,Trends!$D$3:$D$94),1)) -> 45821.74166 | C25: 0 | D25: =T25*PRODUCT(IF(Trends!$A$3:$A$94<ToolYear,Trends!$G$3:$G$94,1)) -> 221053.5783 | E25: =U25*PRODUCT(IF(Trends!$A$3:$A$94<ToolYear,Trends!$H$3:$H$94,1)) -> 156703.8824 | F25: 0.001472831428 | G25: 0.001123649509 | H25: 0.0004 | I25: 0.0019 | N25: 42 | O25: 0.01 | P25: 0.01 | R25: 38510.04 | S25: 0 | T25: 193708.5 | U25: 137319.08 | W25: 0.001645 | X25: 0.001255
A26: 43 | B26: =R26*PRODUCT(IF(Trends!$A$3:$A$94<ToolYear,IF(ExFlg=1,Trends!$B$3:$B$94,Trends!$D$3:$D$94),1)) -> 45821.74166 | C26: 0 | D26: =T26*PRODUCT(IF(Trends!$A$3:$A$94<ToolYear,Trends!$G$3:$G$94,1)) -> 221053.5783 | E26: =U26*PRODUCT(IF(Trends!$A$3:$A$94<ToolYear,Trends!$H$3:$H$94,1)) -> 156703.8824 | F26: 0.001566841945 | G26: 0.001195276569 | H26: 0.0004 | I26: 0.0019 | N26: 43 | O26: 0.01 | P26: 0.01 | R26: 38510.04 | S26: 0 | T26: 193708.5 | U26: 137319.08 | W26: 0.00175 | X26: 0.001335
A27: 44 | B27: =R27*PRODUCT(IF(Trends!$A$3:$A$94<ToolYear,IF(ExFlg=1,Trends!$B$3:$B$94,Trends!$D$3:$D$94),1)) -> 45821.74166 | C27: 0 | D27: =T27*PRODUCT(IF(Trends!$A$3:$A$94<ToolYear,Trends!$G$3:$G$94,1)) -> 221053.5783 | E27: =U27*PRODUCT(IF(Trends!$A$3:$A$94<ToolYear,Trends!$H$3:$H$94,1)) -> 156703.8824 | F27: 0.001669805844 | G27: 0.001275857012 | H27: 0.0004 | I27: 0.0019 | N27: 44 | O27: 0.01 | P27: 0.01 | R27: 38510.04 | S27: 0 | T27: 193708.5 | U27: 137319.08 | W27: 0.001865 | X27: 0.001425
A28: 45 | B28: =R28*PRODUCT(IF(Trends!$A$3:$A$94<ToolYear,IF(ExFlg=1,Trends!$B$3:$B$94,Trends!$D$3:$D$94),1)) -> 45821.74166 | C28: 0 | D28: =T28*PRODUCT(IF(Trends!$A$3:$A$94<ToolYear,Trends!$G$3:$G$94,1)) -> 221053.5783 | E28: =U28*PRODUCT(IF(Trends!$A$3:$A$94<ToolYear,Trends!$H$3:$H$94,1)) -> 156703.8824 | F28: 0.001790676509 | G28: 0.001522075032 | H28: 0.0004 | I28: 0.0019 | N28: 45 | O28: 0.01 | P28: 0.01 | R28: 38510.04 | S28: 0 | T28: 193708.5 | U28: 137319.08 | W28: 0.002 | X28: 0.0017
A29: 46 | B29: =R29*PRODUCT(IF(Trends!$A$3:$A$94<ToolYear,IF(ExFlg=1,Trends!$B$3:$B$94,Trends!$D$3:$D$94),1)) -> 45821.74166 | C29: 0 | D29: =T29*PRODUCT(IF(Trends!$A$3:$A$94<ToolYear,Trends!$G$3:$G$94,1)) -> 220871.4368 | E29: =U29*PRODUCT(IF(Trends!$A$3:$A$94<ToolYear,Trends!$H$3:$H$94,1)) -> 156588.1214 | F29: 0.002314449387 | G29: 0.001642945697 | H29: 0.00044 | I29: 0.00211 | N29: 46 | O29: 0.01 | P29: 0.01 | R29: 38510.04 | S29: 0 | T29: 193548.89 | U29: 137217.639 | W29: 0.002585 | X29: 0.001835
A30: 47 | B30: =R30*PRODUCT(IF(Trends!$A$3:$A$94<ToolYear,IF(ExFlg=1,Trends!$B$3:$B$94,Trends!$D$3:$D$94),1)) -> 45821.74166 | C30: 0 | D30: =T30*PRODUCT(IF(Trends!$A$3:$A$94<ToolYear,Trends!$G$3:$G$94,1)) -> 220689.2953 | E30: =U30*PRODUCT(IF(Trends!$A$3:$A$94<ToolYear,Trends!$H$3:$H$94,1)) -> 156472.3603 | F30: 0.002506947112 | G30: 0.001781723126 | H30: 0.00048 | I30: 0.00232 | N30: 47 | O30: 0.01 | P30: 0.01 | R30: 38510.04 | S30: 0 | T30: 193389.28 | U30: 137116.198 | W30: 0.0028 | X30: 0.00199
A31: 48 | B31: =R31*PRODUCT(IF(Trends!$A$3:$A$94<ToolYear,IF(ExFlg=1,Trends!$B$3:$B$94,Trends!$D$3:$D$94),1)) -> 45821.74166 | C31: 0 | D31: =T31*PRODUCT(IF(Trends!$A$3:$A$94<ToolYear,Trends!$G$3:$G$94,1)) -> 220507.1537 | E31: =U31*PRODUCT(IF(Trends!$A$3:$A$94<ToolYear,Trends!$H$3:$H$94,1)) -> 156356.5993 | F31: 0.002717351602 | G31: 0.001920500555 | H31: 0.00052 | I31: 0.00253 | N31: 48 | O31: 0.01 | P31: 0.01 | R31: 38510.04 | S31: 0 | T31: 193229.67 | U31: 137014.757 | W31: 0.003035 | X31: 0.002145
A32: 49 | B32: =R32*PRODUCT(IF(Trends!$A$3:$A$94<ToolYear,IF(ExFlg=1,Trends!$B$3:$B$94,Trends!$D$3:$D$94),1)) -> 45821.74166 | C32: 0 | D32: =T32*PRODUCT(IF(Trends!$A$3:$A$94<ToolYear,Trends!$G$3:$G$94,1)) -> 220325.0122 | E32: =U32*PRODUCT(IF(Trends!$A$3:$A$94<ToolYear,Trends!$H$3:$H$94,1)) -> 156240.8383 | F32: 0.002941186165 | G32: 0.002081661441 | H32: 0.00056 | I32: 0.00274 | N32: 49 | O32: 0.01 | P32: 0.01 | R32: 38510.04 | S32: 0 | T32: 193070.06 | U32: 136913.316 | W32: 0.003285 | X32: 0.002325
A33: 50 | B33: =R33*PRODUCT(IF(Trends!$A$3:$A$94<ToolYear,IF(ExFlg=1,Trends!$B$3:$B$94,Trends!$D$3:$D$94),1)) -> 45821.74166 | C33: 0 | D33: =T33*PRODUCT(IF(Trends!$A$3:$A$94<ToolYear,Trends!$G$3:$G$94,1)) -> 220142.8707 | E33: =U33*PRODUCT(IF(Trends!$A$3:$A$94<ToolYear,Trends!$H$3:$H$94,1)) -> 156125.0772 | F33: 0.003178450803 | G33: 0.002251775709 | H33: 0.0006 | I33: 0.00295 | N33: 50 | O33: 0.01 | P33: 0.01 | R33: 38510.04 | S33: 0 | T33: 192910.45 | U33: 136811.875 | W33: 0.00355 | X33: 0.002515
A34: 51 | B34: =R34*PRODUCT(IF(Trends!$A$3:$A$94<ToolYear,IF(ExFlg=1,Trends!$B$3:$B$94,Trends!$D$3:$D$94),1)) -> 45821.74166 | C34: 0 | D34: =T34*PRODUCT(IF(Trends!$A$3:$A$94<ToolYear,Trends!$G$3:$G$94,1)) -> 219960.7292 | E34: =U34*PRODUCT(IF(Trends!$A$3:$A$94<ToolYear,Trends!$H$3:$H$94,1)) -> 156009.3162 | F34: 0.003411238749 | G34: 0.002506947112 | H34: 0.00064 | I34: 0.00316 | N34: 51 | O34: 0.01 | P34: 0.01 | R34: 38510.04 | S34: 0 | T34: 192750.84 | U34: 136710.434 | W34: 0.00381 | X34: 0.0028
A35: 52 | B35: =R35*PRODUCT(IF(Trends!$A$3:$A$94<ToolYear,IF(ExFlg=1,Trends!$B$3:$B$94,Trends!$D$3:$D$94),1)) -> 45821.74166 | C35: 0 | D35: =T35*PRODUCT(IF(Trends!$A$3:$A$94<ToolYear,Trends!$G$3:$G$94,1)) -> 219778.5876 | E35: =U35*PRODUCT(IF(Trends!$A$3:$A$94<ToolYear,Trends!$H$3:$H$94,1)) -> 155893.5552 | F35: =W35*(1-O35)^(ToolYear-MortBaseYear) -> 0.003652980077 | G35: =X35*(1-P35)^(ToolYear-MortBaseYear) -> 0.002788978662 | H35: 0.00068 | I35: 0.00337 | N35: 52 | O35: 0.01 | P35: 0.01 | R35: 38510.04 | S35: 0 | T35: 192591.23 | U35: 136608.993 | W35: 0.00408 | X35: 0.003115
A36: =1+A35 -> 53 | B36: =R36*PRODUCT(IF(Trends!$A$3:$A$94<ToolYear,IF(ExFlg=1,Trends!$B$3:$B$94,Trends!$D$3:$D$94),1)) -> 45821.74166 | C36: 0 | D36: =T36*PRODUCT(IF(Trends!$A$3:$A$94<ToolYear,Trends!$G$3:$G$94,1)) -> 219596.4461 | E36: =U36*PRODUCT(IF(Trends!$A$3:$A$94<ToolYear,Trends!$H$3:$H$94,1)) -> 155777.7941 | F36: 0.003899198097 | G36: 0.003106823742 | H36: 0.00072 | I36: 0.00358 | N36: 53 | O36: 0.01 | P36: 0.01 | R36: 38510.04 | S36: 0 | T36: 192431.62 | U36: 136507.552 | W36: 0.004355 | X36: 0.00347
A37: 54 | B37: =R37*PRODUCT(IF(Trends!$A$3:$A$94<ToolYear,IF(ExFlg=1,Trends!$B$3:$B$94,Trends!$D$3:$D$94),1)) -> 45821.74166 | C37: 0 | D37: =T37*PRODUCT(IF(Trends!$A$3:$A$94<ToolYear,Trends!$G$3:$G$94,1)) -> 219414.3046 | E37: =U37*PRODUCT(IF(Trends!$A$3:$A$94<ToolYear,Trends!$H$3:$H$94,1)) -> 155662.0331 | F37: 0.004167799574 | G37: 0.00345152897 | H37: 0.00076 | I37: 0.00379 | N37: 54 | O37: 0.01 | P37: 0.01 | R37: 38510.04 | S37: 0 | T37: 192272.01 | U37: 136406.111 | W37: 0.004655 | X37: 0.003855
A38: 55 | B38: =R38*PRODUCT(IF(Trends!$A$3:$A$94<ToolYear,IF(ExFlg=1,Trends!$B$3:$B$94,Trends!$D$3:$D$94),1)) -> 46522.38166 | C38: 0 | D38: =T38*PRODUCT(IF(Trends!$A$3:$A$94<ToolYear,Trends!$G$3:$G$94,1)) -> 219232.1631 | E38: =U38*PRODUCT(IF(Trends!$A$3:$A$94<ToolYear,Trends!$H$3:$H$94,1)) -> 155546.2721 | F38: 0.004454307815 | G38: 0.003832047728 | H38: 0.0008 | I38: 0.004 | N38: 55 | O38: 0.01 | P38: 0.01 | R38: 39098.88 | S38: 0 | T38: 192112.4 | U38: 136304.67 | W38: 0.004975 | X38: 0.00428
A39: 56 | B39: =R39*PRODUCT(IF(Trends!$A$3:$A$94<ToolYear,IF(ExFlg=1,Trends!$B$3:$B$94,Trends!$D$3:$D$94),1)) -> 47233.73044 | C39: 0 | D39: =T39*PRODUCT(IF(Trends!$A$3:$A$94<ToolYear,Trends!$G$3:$G$94,1)) -> 219137.5441 | E39: =U39*PRODUCT(IF(Trends!$A$3:$A$94<ToolYear,Trends!$H$3:$H$94,1)) -> 155093.6726 | F39: 0.004781106278 | G39: 0.004248380016 | H39: 0.0009 | I39: 0.0044 | N39: 56 | O39: 0.01 | P39: 0.01 | R39: 39696.72 | S39: 0 | T39: 192029.4857 | U39: 135908.0586 | W39: 0.00534 | X39: 0.004745
A40: 57 | B40: =R40*PRODUCT(IF(Trends!$A$3:$A$94<ToolYear,IF(ExFlg=1,Trends!$B$3:$B$94,Trends!$D$3:$D$94),1)) -> 47955.93079 | C40: 0 | D40: =T40*PRODUCT(IF(Trends!$A$3:$A$94<ToolYear,Trends!$G$3:$G$94,1)) -> 219042.9251 | E40: =U40*PRODUCT(IF(Trends!$A$3:$A$94<ToolYear,Trends!$H$3:$H$94,1)) -> 154641.073 | F40: 0.005157148345 | G40: 0.004705002526 | H40: 0.001 | I40: 0.0048 | N40: 57 | O40: 0.01 | P40: 0.01 | R40: 40303.68 | S40: 0 | T40: 191946.5714 | U40: 135511.4471 | W40: 0.00576 | X40: 0.005255
A41: 58 | B41: =R41*PRODUCT(IF(Trends!$A$3:$A$94<ToolYear,IF(ExFlg=1,Trends!$B$3:$B$94,Trends!$D$3:$D$94),1)) -> 49674.90469 | C41: 0 | D41: =T41*PRODUCT(IF(Trends!$A$3:$A$94<ToolYear,Trends!$G$3:$G$94,1)) -> 218948.3062 | E41: =U41*PRODUCT(IF(Trends!$A$3:$A$94<ToolYear,Trends!$H$3:$H$94,1)) -> 154188.4735 | F41: 0.005595864089 | G41: 0.005188485183 | H41: 0.0011 | I41: 0.0052 | N41: 58 | O41: 0.01 | P41: 0.01 | R41: 41748.36 | S41: 0 | T41: 191863.6571 | U41: 135114.8357 | W41: 0.00625 | X41: 0.005795
A42: 59 | B42: =R42*PRODUCT(IF(Trends!$A$3:$A$94<ToolYear,IF(ExFlg=1,Trends!$B$3:$B$94,Trends!$D$3:$D$94),1)) -> 51455.56118 | C42: 0 | D42: =T42*PRODUCT(IF(Trends!$A$3:$A$94<ToolYear,Trends!$G$3:$G$94,1)) -> 218853.6872 | E42: =U42*PRODUCT(IF(Trends!$A$3:$A$94<ToolYear,Trends!$H$3:$H$94,1)) -> 153735.874 | F42: 0.006106206894 | G42: 0.00570330468 | H42: 0.0012 | I42: 0.0056 | N42: 59 | O42: 0.01 | P42: 0.01 | R42: 43244.88 | S42: 0 | T42: 191780.7429 | U42: 134718.2243 | W42: 0.00682 | X42: 0.00637
A43: 60 | B43: =R43*PRODUCT(IF(Trends!$A$3:$A$94<ToolYear,IF(ExFlg=1,Trends!$B$3:$B$94,Trends!$D$3:$D$94),1)) -> 53299.89924 | C43: 0 | D43: =T43*PRODUCT(IF(Trends!$A$3:$A$94<ToolYear,Trends!$G$3:$G$94,1)) -> 218759.0682 | E43: =U43*PRODUCT(IF(Trends!$A$3:$A$94<ToolYear,Trends!$H$3:$H$94,1)) -> 153283.2744 | F43: 0.006688176759 | G43: 0.00623155425 | H43: 0.0013 | I43: 0.006 | N43: 60 | O43: 0.01 | P43: 0.01 | R43: 44794.92 | S43: 0 | T43: 191697.8286 | U43: 134321.6129 | W43: 0.00747 | X43: 0.00696
A44: 61 | B44: =R44*PRODUCT(IF(Trends!$A$3:$A$94<ToolYear,IF(ExFlg=1,Trends!$B$3:$B$94,Trends!$D$3:$D$94),1)) -> 55210.48898 | C44: 0 | D44: =T44*PRODUCT(IF(Trends!$A$3:$A$94<ToolYear,Trends!$G$3:$G$94,1)) -> 218664.4492 | E44: =U44*PRODUCT(IF(Trends!$A$3:$A$94<ToolYear,Trends!$H$3:$H$94,1)) -> 152830.6749 | F44: 0.007341773685 | G44: 0.00679561735 | H44: 0.0014 | I44: 0.0064 | N44: 61 | O44: 0.01 | P44: 0.01 | R44: 46400.64 | S44: 0 | T44: 191614.9143 | U44: 133925.0014 | W44: 0.0082 | X44: 0.00759
A45: 62 | B45: =R45*PRODUCT(IF(Trends!$A$3:$A$94<ToolYear,IF(ExFlg=1,Trends!$B$3:$B$94,Trends!$D$3:$D$94),1)) -> 57189.61492 | C45: 0 | D45: =T45*PRODUCT(IF(Trends!$A$3:$A$94<ToolYear,Trends!$G$3:$G$94,1)) -> 218569.8303 | E45: =U45*PRODUCT(IF(Trends!$A$3:$A$94<ToolYear,Trends!$H$3:$H$94,1)) -> 152378.0754 | F45: 0.00806252098 | G45: 0.007382063906 | H45: 0.0015 | I45: 0.0068 | N45: 62 | O45: 0.01 | P45: 0.01 | R45: 48063.96 | S45: 0 | T45: 191532 | U45: 133528.39 | W45: 0.009005 | X45: 0.008245
A46: 63 | B46: =R46*PRODUCT(IF(Trends!$A$3:$A$94<ToolYear,IF(ExFlg=1,Trends!$B$3:$B$94,Trends!$D$3:$D$94),1)) -> 60617.13951 | C46: 0 | D46: =T46*PRODUCT(IF(Trends!$A$3:$A$94<ToolYear,Trends!$G$3:$G$94,1)) -> 217990.289 | E46: =U46*PRODUCT(IF(Trends!$A$3:$A$94<ToolYear,Trends!$H$3:$H$94,1)) -> 153413.832 | F46: 0.00883698857 | G46: 0.008008800684 | H46: 0.00176 | I46: 0.00744 | N46: 63 | O46: 0.01 | P46: 0.01 | R46: 50944.56 | S46: 0 | T46: 191024.15 | U46: 134436.02 | W46: 0.00987 | X46: 0.008945
A47: 64 | B47: =R47*PRODUCT(IF(Trends!$A$3:$A$94<ToolYear,IF(ExFlg=1,Trends!$B$3:$B$94,Trends!$D$3:$D$94),1)) -> 64250.12996 | C47: 0 | D47: =T47*PRODUCT(IF(Trends!$A$3:$A$94<ToolYear,Trends!$G$3:$G$94,1)) -> 217410.7478 | E47: =U47*PRODUCT(IF(Trends!$A$3:$A$94<ToolYear,Trends!$H$3:$H$94,1)) -> 154449.5886 | F47: 0.009660699763 | G47: 0.008693734449 | H47: 0.00202 | I47: 0.00808 | N47: 64 | O47: 0.01 | P47: 0.01 | R47: 53997.84 | S47: 0 | T47: 190516.3 | U47: 135343.65 | W47: 0.01079 | X47: 0.00971
A48: 65 | B48: =R48*PRODUCT(IF(Trends!$A$3:$A$94<ToolYear,IF(ExFlg=1,Trends!$C$3:$C$94,Trends!$E$3:$E$94),1)) -> 13796.00194 | C48: =S48*PRODUCT(IF(Trends!$A$3:$A$94<ToolYear,Trends!$F$3:$F$94,1)) -> 1816.919755 | D48: =T48*PRODUCT(IF(Trends!$A$3:$A$94<ToolYear,Trends!$G$3:$G$94,1)) -> 216831.2066 | E48: =U48*PRODUCT(IF(Trends!$A$3:$A$94<ToolYear,Trends!$H$3:$H$94,1)) -> 155485.3452 | F48: 0.01055156133 | G48: 0.009459248656 | H48: 0.00228 | I48: 0.00872 | N48: 65 | O48: 0.01 | P48: 0.01 | R48: 11704.56 | S48: 1617 | T48: 190008.45 | U48: 136251.28 | W48: 0.011785 | X48: 0.010565
A49: 66 | B49: =R49*PRODUCT(IF(Trends!$A$3:$A$94<ToolYear,IF(ExFlg=1,Trends!$C$3:$C$94,Trends!$E$3:$E$94),1)) -> 14008.16544 | C49: =S49*PRODUCT(IF(Trends!$A$3:$A$94<ToolYear,Trends!$F$3:$F$94,1)) -> 1816.919755 | D49: =T49*PRODUCT(IF(Trends!$A$3:$A$94<ToolYear,Trends!$G$3:$G$94,1)) -> 216251.6654 | E49: =U49*PRODUCT(IF(Trends!$A$3:$A$94<ToolYear,Trends!$H$3:$H$94,1)) -> 156521.1018 | F49: 0.01152748002 | G49: 0.01031877338 | H49: 0.00254 | I49: 0.00936 | N49: 66 | O49: 0.01 | P49: 0.01 | R49: 11884.56 | S49: 1617 | T49: 189500.6 | U49: 137158.91 | W49: 0.012875 | X49: 0.011525
A50: 67 | B50: =R50*PRODUCT(IF(Trends!$A$3:$A$94<ToolYear,IF(ExFlg=1,Trends!$C$3:$C$94,Trends!$E$3:$E$94),1)) -> 14223.44066 | C50: =S50*PRODUCT(IF(Trends!$A$3:$A$94<ToolYear,Trends!$F$3:$F$94,1)) -> 1816.919755 | D50: =T50*PRODUCT(IF(Trends!$A$3:$A$94<ToolYear,Trends!$G$3:$G$94,1)) -> 215672.1242 | E50: =U50*PRODUCT(IF(Trends!$A$3:$A$94<ToolYear,Trends!$H$3:$H$94,1)) -> 157556.8584 | F50: 0.01260188593 | G50: 0.01127678531 | H50: 0.0028 | I50: 0.01 | N50: 67 | O50: 0.01 | P50: 0.01 | R50: 12067.2 | S50: 1617 | T50: 188992.75 | U50: 138066.54 | W50: 0.014075 | X50: 0.012595
A51: 68 | B51: =R51*PRODUCT(IF(Trends!$A$3:$A$94<ToolYear,IF(ExFlg=1,Trends!$C$3:$C$94,Trends!$E$3:$E$94),1)) -> 14442.11051 | C51: =S51*PRODUCT(IF(Trends!$A$3:$A$94<ToolYear,Trends!$F$3:$F$94,1)) -> 1816.919755 | D51: =T51*PRODUCT(IF(Trends!$A$3:$A$94<ToolYear,Trends!$G$3:$G$94,1)) -> 215026.3497 | E51: =U51*PRODUCT(IF(Trends!$A$3:$A$94<ToolYear,Trends!$H$3:$H$94,1)) -> 158141.7563 | F51: 0.01382402265 | G51: 0.01235566791 | H51: 0.0034 | I51: 0.01104 | N51: 68 | O51: 0.01 | P51: 0.01 | R51: 12252.72 | S51: 1617 | T51: 188426.86 | U51: 138579.084 | W51: 0.01544 | X51: 0.0138
A52: 69 | B52: =R52*PRODUCT(IF(Trends!$A$3:$A$94<ToolYear,IF(ExFlg=1,Trends!$C$3:$C$94,Trends!$E$3:$E$94),1)) -> 14664.03352 | C52: =S52*PRODUCT(IF(Trends!$A$3:$A$94<ToolYear,Trends!$F$3:$F$94,1)) -> 1816.919755 | D52: =T52*PRODUCT(IF(Trends!$A$3:$A$94<ToolYear,Trends!$G$3:$G$94,1)) -> 214380.5752 | E52: =U52*PRODUCT(IF(Trends!$A$3:$A$94<ToolYear,Trends!$H$3:$H$94,1)) -> 158726.6541 | F52: 0.0152297037 | G52: 0.01357780463 | H52: 0.004 | I52: 0.01208 | N52: 69 | O52: 0.01 | P52: 0.01 | R52: 12441 | S52: 1617 | T52: 187860.97 | U52: 139091.628 | W52: 0.01701 | X52: 0.015165
A53: 70 | B53: =R53*PRODUCT(IF(Trends!$A$3:$A$94<ToolYear,IF(ExFlg=1,Trends!$C$3:$C$94,Trends!$E$3:$E$94),1)) -> 14889.49259 | C53: =S53*PRODUCT(IF(Trends!$A$3:$A$94<ToolYear,Trends!$F$3:$F$94,1)) -> 1816.919755 | D53: =T53*PRODUCT(IF(Trends!$A$3:$A$94<ToolYear,Trends!$G$3:$G$94,1)) -> 213734.8007 | E53: =U53*PRODUCT(IF(Trends!$A$3:$A$94<ToolYear,Trends!$H$3:$H$94,1)) -> 159311.552 | F53: 0.01685026595 | G53: 0.01496557892 | H53: 0.0046 | I53: 0.01312 | N53: 70 | O53: 0.01 | P53: 0.01 | R53: 12632.28 | S53: 1617 | T53: 187295.08 | U53: 139604.172 | W53: 0.01882 | X53: 0.016715
A54: 71 | B54: =R54*PRODUCT(IF(Trends!$A$3:$A$94<ToolYear,IF(ExFlg=1,Trends!$C$3:$C$94,Trends!$E$3:$E$94),1)) -> 15118.34628 | C54: =S54*PRODUCT(IF(Trends!$A$3:$A$94<ToolYear,Trends!$F$3:$F$94,1)) -> 1816.919755 | D54: =T54*PRODUCT(IF(Trends!$A$3:$A$94<ToolYear,Trends!$G$3:$G$94,1)) -> 213089.0262 | E54: =U54*PRODUCT(IF(Trends!$A$3:$A$94<ToolYear,Trends!$H$3:$H$94,1)) -> 159896.4498 | F54: 0.01869913944 | G54: 0.01654585094 | H54: 0.0052 | I54: 0.01416 | N54: 71 | O54: 0.01 | P54: 0.01 | R54: 12826.44 | S54: 1617 | T54: 186729.19 | U54: 140116.716 | W54: 0.020885 | X54: 0.01848
A55: 72 | B55: =R55*PRODUCT(IF(Trends!$A$3:$A$94<ToolYear,IF(ExFlg=1,Trends!$C$3:$C$94,Trends!$E$3:$E$94),1)) -> 15350.73603 | C55: =S55*PRODUCT(IF(Trends!$A$3:$A$94<ToolYear,Trends!$F$3:$F$94,1)) -> 1816.919755 | D55: =T55*PRODUCT(IF(Trends!$A$3:$A$94<ToolYear,Trends!$G$3:$G$94,1)) -> 212443.2517 | E55: =U55*PRODUCT(IF(Trends!$A$3:$A$94<ToolYear,Trends!$H$3:$H$94,1)) -> 160481.3477 | F55: 0.02081213772 | G55: 0.01834548083 | H55: 0.0058 | I55: 0.0152 | N55: 72 | O55: 0.01 | P55: 0.01 | R55: 13023.6 | S55: 1617 | T55: 186163.3 | U55: 140629.26 | W55: 0.023245 | X55: 0.02049
A56: 73 | B56: =R56*PRODUCT(IF(Trends!$A$3:$A$94<ToolYear,IF(ExFlg=1,Trends!$C$3:$C$94,Trends!$E$3:$E$94),1)) -> 15519.33529 | C56: =S56*PRODUCT(IF(Trends!$A$3:$A$94<ToolYear,Trends!$F$3:$F$94,1)) -> 1816.919755 | D56: =T56*PRODUCT(IF(Trends!$A$3:$A$94<ToolYear,Trends!$G$3:$G$94,1)) -> 211764.3605 | E56: =U56*PRODUCT(IF(Trends!$A$3:$A$94<ToolYear,Trends!$H$3:$H$94,1)) -> 160810.3527 | F56: 0.02319373748 | G56: 0.02039132874 | H56: 0.0074 | I56: 0.01716 | N56: 73 | O56: 0.01 | P56: 0.01 | R56: 13166.64 | S56: 1617 | T56: 185568.39 | U56: 140917.566 | W56: 0.025905 | X56: 0.022775
A57: 74 | B57: =R57*PRODUCT(IF(Trends!$A$3:$A$94<ToolYear,IF(ExFlg=1,Trends!$C$3:$C$94,Trends!$E$3:$E$94),1)) -> 15689.7733 | C57: =S57*PRODUCT(IF(Trends!$A$3:$A$94<ToolYear,Trends!$F$3:$F$94,1)) -> 1816.919755 | D57: =T57*PRODUCT(IF(Trends!$A$3:$A$94<ToolYear,Trends!$G$3:$G$94,1)) -> 211085.4694 | E57: =U57*PRODUCT(IF(Trends!$A$3:$A$94<ToolYear,Trends!$H$3:$H$94,1)) -> 161139.3578 | F57: 0.02586184547 | G57: 0.02270577813 | H57: 0.009 | I57: 0.01912 | N57: 74 | O57: 0.01 | P57: 0.01 | R57: 13311.24 | S57: 1617 | T57: 184973.48 | U57: 141205.872 | W57: 0.028885 | X57: 0.02536
A58: 75 | B58: =R58*PRODUCT(IF(Trends!$A$3:$A$94<ToolYear,IF(ExFlg=1,Trends!$C$3:$C$94,Trends!$E$3:$E$94),1)) -> 15861.90861 | C58: =S58*PRODUCT(IF(Trends!$A$3:$A$94<ToolYear,Trends!$F$3:$F$94,1)) -> 1816.919755 | D58: =T58*PRODUCT(IF(Trends!$A$3:$A$94<ToolYear,Trends!$G$3:$G$94,1)) -> 210406.5783 | E58: =U58*PRODUCT(IF(Trends!$A$3:$A$94<ToolYear,Trends!$H$3:$H$94,1)) -> 161468.3628 | F58: 0.0288254151 | G58: 0.02531121245 | H58: 0.0106 | I58: 0.02108 | N58: 75 | O58: 0.01 | P58: 0.01 | R58: 13457.28 | S58: 1617 | T58: 184378.57 | U58: 141494.178 | W58: 0.032195 | X58: 0.02827
A59: 76 | B59: =R59*PRODUCT(IF(Trends!$A$3:$A$94<ToolYear,IF(ExFlg=1,Trends!$C$3:$C$94,Trends!$E$3:$E$94),1)) -> 16036.16556 | C59: =S59*PRODUCT(IF(Trends!$A$3:$A$94<ToolYear,Trends!$F$3:$F$94,1)) -> 1816.919755 | D59: =T59*PRODUCT(IF(Trends!$A$3:$A$94<ToolYear,Trends!$G$3:$G$94,1)) -> 209727.6871 | E59: =U59*PRODUCT(IF(Trends!$A$3:$A$94<ToolYear,Trends!$H$3:$H$94,1)) -> 161797.3679 | F59: 0.03212025987 | G59: 0.02817181817 | H59: 0.0122 | I59: 0.02304 | N59: 76 | O59: 0.01 | P59: 0.01 | R59: 13605.12 | S59: 1617 | T59: 183783.66 | U59: 141782.484 | W59: 0.035875 | X59: 0.031465
A60: 77 | B60: =R60*PRODUCT(IF(Trends!$A$3:$A$94<ToolYear,IF(ExFlg=1,Trends!$C$3:$C$94,Trends!$E$3:$E$94),1)) -> 16212.11982 | C60: =S60*PRODUCT(IF(Trends!$A$3:$A$94<ToolYear,Trends!$F$3:$F$94,1)) -> 1816.919755 | D60: =T60*PRODUCT(IF(Trends!$A$3:$A$94<ToolYear,Trends!$G$3:$G$94,1)) -> 209048.796 | E60: =U60*PRODUCT(IF(Trends!$A$3:$A$94<ToolYear,Trends!$H$3:$H$94,1)) -> 162126.3729 | F60: 0.03579114671 | G60: 0.03125625846 | H60: 0.0138 | I60: 0.025 | N60: 77 | O60: 0.01 | P60: 0.01 | R60: 13754.4 | S60: 1617 | T60: 183188.75 | U60: 142070.79 | W60: 0.039975 | X60: 0.03491
A61: 78 | B61: =R61*PRODUCT(IF(Trends!$A$3:$A$94<ToolYear,IF(ExFlg=1,Trends!$C$3:$C$94,Trends!$E$3:$E$94),1)) -> 16244.08579 | C61: =S61*PRODUCT(IF(Trends!$A$3:$A$94<ToolYear,Trends!$F$3:$F$94,1)) -> 1816.919755 | D61: =T61*PRODUCT(IF(Trends!$A$3:$A$94<ToolYear,Trends!$G$3:$G$94,1)) -> 209860.1537 | E61: =U61*PRODUCT(IF(Trends!$A$3:$A$94<ToolYear,Trends!$H$3:$H$94,1)) -> 162528.4902 | F61: 0.03988731923 | G61: 0.03457796338 | H61: 0.01692 | I61: 0.02772 | N61: 78 | O61: 0.01 | P61: 0.01 | R61: 13781.52 | S61: 1617 | T61: 183899.74 | U61: 142423.164 | W61: 0.04455 | X61: 0.03862
A62: 79 | B62: =R62*PRODUCT(IF(Trends!$A$3:$A$94<ToolYear,IF(ExFlg=1,Trends!$C$3:$C$94,Trends!$E$3:$E$94),1)) -> 16276.05175 | C62: =S62*PRODUCT(IF(Trends!$A$3:$A$94<ToolYear,Trends!$F$3:$F$94,1)) -> 1816.919755 | D62: =T62*PRODUCT(IF(Trends!$A$3:$A$94<ToolYear,Trends!$G$3:$G$94,1)) -> 210671.5114 | E62: =U62*PRODUCT(IF(Trends!$A$3:$A$94<ToolYear,Trends!$H$3:$H$94,1)) -> 162930.6074 | F62: 0.0444669744 | G62: 0.03814140963 | H62: 0.02004 | I62: 0.03044 | N62: 79 | O62: 0.01 | P62: 0.01 | R62: 13808.64 | S62: 1617 | T62: 184610.73 | U62: 142775.538 | W62: 0.049665 | X62: 0.0426
A63: 80 | B63: =R63*PRODUCT(IF(Trends!$A$3:$A$94<ToolYear,IF(ExFlg=1,Trends!$C$3:$C$94,Trends!$E$3:$E$94),1)) -> 16308.15916 | C63: =S63*PRODUCT(IF(Trends!$A$3:$A$94<ToolYear,Trends!$F$3:$F$94,1)) -> 1816.919755 | D63: =T63*PRODUCT(IF(Trends!$A$3:$A$94<ToolYear,Trends!$G$3:$G$94,1)) -> 211482.8691 | E63: =U63*PRODUCT(IF(Trends!$A$3:$A$94<ToolYear,Trends!$H$3:$H$94,1)) -> 163332.7247 | F63: 0.04961964605 | G63: 0.04197793405 | H63: 0.02316 | I63: 0.03316 | N63: 80 | O63: 0.01 | P63: 0.01 | R63: 13835.88 | S63: 1617 | T63: 185321.72 | U63: 143127.912 | W63: 0.05542 | X63: 0.046885
A64: 81 | B64: =R64*PRODUCT(IF(Trends!$A$3:$A$94<ToolYear,IF(ExFlg=1,Trends!$C$3:$C$94,Trends!$E$3:$E$94),1)) -> 16340.26657 | C64: =S64*PRODUCT(IF(Trends!$A$3:$A$94<ToolYear,Trends!$F$3:$F$94,1)) -> 1816.919755 | D64: =T64*PRODUCT(IF(Trends!$A$3:$A$94<ToolYear,Trends!$G$3:$G$94,1)) -> 212294.2268 | E64: =U64*PRODUCT(IF(Trends!$A$3:$A$94<ToolYear,Trends!$H$3:$H$94,1)) -> 163734.842 | F64: 0.05541696125 | G64: 0.04610992009 | H64: 0.02628 | I64: 0.03588 | N64: 81 | O64: 0.01 | P64: 0.01 | R64: 13863.12 | S64: 1617 | T64: 186032.71 | U64: 143480.286 | W64: 0.061895 | X64: 0.0515
A65: 82 | B65: =R65*PRODUCT(IF(Trends!$A$3:$A$94<ToolYear,IF(ExFlg=1,Trends!$C$3:$C$94,Trends!$E$3:$E$94),1)) -> 16372.51542 | C65: =S65*PRODUCT(IF(Trends!$A$3:$A$94<ToolYear,Trends!$F$3:$F$94,1)) -> 1816.919755 | D65: =T65*PRODUCT(IF(Trends!$A$3:$A$94<ToolYear,Trends!$G$3:$G$94,1)) -> 213105.5845 | E65: =U65*PRODUCT(IF(Trends!$A$3:$A$94<ToolYear,Trends!$H$3:$H$94,1)) -> 164136.9593 | F65: 0.0619036869 | G65: 0.05060004144 | H65: 0.0294 | I65: 0.0386 | N65: 82 | O65: 0.01 | P65: 0.01 | R65: 13890.48 | S65: 1617 | T65: 186743.7 | U65: 143832.66 | W65: 0.06914 | X65: 0.056515
A66: 83 | B66: =R66*PRODUCT(IF(Trends!$A$3:$A$94<ToolYear,IF(ExFlg=1,Trends!$C$3:$C$94,Trends!$E$3:$E$94),1)) -> 16232.20463 | C66: =S66*PRODUCT(IF(Trends!$A$3:$A$94<ToolYear,Trends!$F$3:$F$94,1)) -> 1816.919755 | D66: =T66*PRODUCT(IF(Trends!$A$3:$A$94<ToolYear,Trends!$G$3:$G$94,1)) -> 211267.6109 | E66: =U66*PRODUCT(IF(Trends!$A$3:$A$94<ToolYear,Trends!$H$3:$H$94,1)) -> 163052.4612 | F66: 0.06954092221 | G66: 0.05549754169 | H66: 0.03498 | I66: 0.04324 | N66: 83 | O66: 0.01 | P66: 0.01 | R66: 13771.44 | S66: 1617 | T66: 185133.09 | U66: 142882.318 | W66: 0.07767 | X66: 0.061985
A67: 84 | B67: =R67*PRODUCT(IF(Trends!$A$3:$A$94<ToolYear,IF(ExFlg=1,Trends!$C$3:$C$94,Trends!$E$3:$E$94),1)) -> 16093.02538 | C67: =S67*PRODUCT(IF(Trends!$A$3:$A$94<ToolYear,Trends!$F$3:$F$94,1)) -> 1816.919755 | D67: =T67*PRODUCT(IF(Trends!$A$3:$A$94<ToolYear,Trends!$G$3:$G$94,1)) -> 209429.6374 | E67: =U67*PRODUCT(IF(Trends!$A$3:$A$94<ToolYear,Trends!$H$3:$H$94,1)) -> 161967.9631 | F67: =W67*(1-O67)^(ToolYear-MortBaseYear) -> 0.07822570327 | G67: =X67*(1-P67)^(ToolYear-MortBaseYear) -> 0.06095015166 | H67: 0.04056 | I67: 0.04788 | N67: 84 | O67: 0.01 | P67: 0.01 | R67: 13653.36 | S67: 1617 | T67: 183522.48 | U67: 141931.976 | W67: 0.08737 | X67: 0.068075
A68: =1+A67 -> 85 | B68: =R68*PRODUCT(IF(Trends!$A$3:$A$94<ToolYear,IF(ExFlg=1,Trends!$C$3:$C$94,Trends!$E$3:$E$94),1)) -> 15955.11911 | C68: =S68*PRODUCT(IF(Trends!$A$3:$A$94<ToolYear,Trends!$F$3:$F$94,1)) -> 1816.919755 | D68: =T68*PRODUCT(IF(Trends!$A$3:$A$94<ToolYear,Trends!$G$3:$G$94,1)) -> 207591.6638 | E68: =U68*PRODUCT(IF(Trends!$A$3:$A$94<ToolYear,Trends!$H$3:$H$94,1)) -> 160883.465 | F68: 0.08753722112 | G68: 0.06706531194 | H68: 0.04614 | I68: 0.05252 | N68: 85 | O68: 0.01 | P68: 0.01 | R68: 13536.36 | S68: 1617 | T68: 181911.87 | U68: 140981.634 | W68: 0.09777 | X68: 0.074905
A69: 86 | B69: =R69*PRODUCT(IF(Trends!$A$3:$A$94<ToolYear,IF(ExFlg=1,Trends!$C$3:$C$94,Trends!$E$3:$E$94),1)) -> 15818.34437 | C69: =S69*PRODUCT(IF(Trends!$A$3:$A$94<ToolYear,Trends!$F$3:$F$94,1)) -> 1816.919755 | D69: =T69*PRODUCT(IF(Trends!$A$3:$A$94<ToolYear,Trends!$G$3:$G$94,1)) -> 205753.6902 | E69: =U69*PRODUCT(IF(Trends!$A$3:$A$94<ToolYear,Trends!$H$3:$H$94,1)) -> 159798.9669 | F69: 0.09753901986 | G69: 0.07392063011 | H69: 0.05172 | I69: 0.05716 | N69: 86 | O69: 0.0099 | P69: 0.0099 | R69: 13420.32 | S69: 1617 | T69: 180301.26 | U69: 140031.292 | W69: 0.10882 | X69: 0.08247
A70: 87 | B70: =R70*PRODUCT(IF(Trends!$A$3:$A$94<ToolYear,IF(ExFlg=1,Trends!$C$3:$C$94,Trends!$E$3:$E$94),1)) -> 15682.84262 | C70: =S70*PRODUCT(IF(Trends!$A$3:$A$94<ToolYear,Trends!$F$3:$F$94,1)) -> 1816.919755 | D70: =T70*PRODUCT(IF(Trends!$A$3:$A$94<ToolYear,Trends!$G$3:$G$94,1)) -> 203915.7166 | E70: =U70*PRODUCT(IF(Trends!$A$3:$A$94<ToolYear,Trends!$H$3:$H$94,1)) -> 158714.4688 | F70: 0.1083202987 | G70: 0.0816309964 | H70: 0.0573 | I70: 0.0618 | N70: 87 | O70: 0.0097 | P70: 0.0097 | R70: 13305.36 | S70: 1617 | T70: 178690.65 | U70: 139080.95 | W70: 0.12058 | X70: 0.09087
A71: 88 | B71: =R71*PRODUCT(IF(Trends!$A$3:$A$94<ToolYear,IF(ExFlg=1,Trends!$C$3:$C$94,Trends!$E$3:$E$94),1)) -> 15548.47241 | C71: =S71*PRODUCT(IF(Trends!$A$3:$A$94<ToolYear,Trends!$F$3:$F$94,1)) -> 1816.919755 | D71: =T71*PRODUCT(IF(Trends!$A$3:$A$94<ToolYear,Trends!$G$3:$G$94,1)) -> 199229.7119 | E71: =U71*PRODUCT(IF(Trends!$A$3:$A$94<ToolYear,Trends!$H$3:$H$94,1)) -> 154303.3642 | F71: 0.1197496981 | G71: 0.09011242353 | H71: 0.06718 | I71: 0.06622 | N71: 88 | O71: 0.0096 | P71: 0.0096 | R71: 13191.36 | S71: 1617 | T71: 174584.32 | U71: 135215.514 | W71: 0.133155 | X71: 0.1002
A72: 89 | B72: =R72*PRODUCT(IF(Trends!$A$3:$A$94<ToolYear,IF(ExFlg=1,Trends!$C$3:$C$94,Trends!$E$3:$E$94),1)) -> 15415.23373 | C72: =S72*PRODUCT(IF(Trends!$A$3:$A$94<ToolYear,Trends!$F$3:$F$94,1)) -> 1816.919755 | D72: =T72*PRODUCT(IF(Trends!$A$3:$A$94<ToolYear,Trends!$G$3:$G$94,1)) -> 194543.7072 | E72: =U72*PRODUCT(IF(Trends!$A$3:$A$94<ToolYear,Trends!$H$3:$H$94,1)) -> 149892.2595 | F72: 0.1322109011 | G72: 0.09965953804 | H72: 0.07706 | I72: 0.07064 | N72: 89 | O72: 0.0094 | P72: 0.0094 | R72: 13078.32 | S72: 1617 | T72: 170477.99 | U72: 131350.078 | W72: 0.146685 | X72: 0.11057
A73: 90 | B73: =R73*PRODUCT(IF(Trends!$A$3:$A$94<ToolYear,IF(ExFlg=1,Trends!$C$3:$C$94,Trends!$E$3:$E$94),1)) -> 15415.23373 | C73: =S73*PRODUCT(IF(Trends!$A$3:$A$94<ToolYear,Trends!$F$3:$F$94,1)) -> 1816.919755 | D73: =T73*PRODUCT(IF(Trends!$A$3:$A$94<ToolYear,Trends!$G$3:$G$94,1)) -> 189857.7026 | E73: =U73*PRODUCT(IF(Trends!$A$3:$A$94<ToolYear,Trends!$H$3:$H$94,1)) -> 145481.1549 | F73: 0.145612966 | G73: 0.1101605512 | H73: 0.08694 | I73: 0.07506 | N73: 90 | O73: 0.0093 | P73: 0.0093 | R73: 13078.32 | S73: 1617 | T73: 166371.66 | U73: 127484.642 | W73: 0.161375 | X73: 0.122085
A74: 91 | B74: =R74*PRODUCT(IF(Trends!$A$3:$A$94<ToolYear,IF(ExFlg=1,Trends!$C$3:$C$94,Trends!$E$3:$E$94),1)) -> 15415.23373 | C74: =S74*PRODUCT(IF(Trends!$A$3:$A$94<ToolYear,Trends!$F$3:$F$94,1)) -> 1816.919755 | D74: =T74*PRODUCT(IF(Trends!$A$3:$A$94<ToolYear,Trends!$G$3:$G$94,1)) -> 185171.6979 | E74: =U74*PRODUCT(IF(Trends!$A$3:$A$94<ToolYear,Trends!$H$3:$H$94,1)) -> 141070.0503 | F74: 0.1600080612 | G74: 0.1216914955 | H74: 0.09682 | I74: 0.07948 | N74: 91 | O74: 0.0091 | P74: 0.0091 | R74: 13078.32 | S74: 1617 | T74: 162265.33 | U74: 123619.206 | W74: 0.176935 | X74: 0.134565
A75: 92 | B75: =R75*PRODUCT(IF(Trends!$A$3:$A$94<ToolYear,IF(ExFlg=1,Trends!$C$3:$C$94,Trends!$E$3:$E$94),1)) -> 15415.23373 | C75: =S75*PRODUCT(IF(Trends!$A$3:$A$94<ToolYear,Trends!$F$3:$F$94,1)) -> 1816.919755 | D75: =T75*PRODUCT(IF(Trends!$A$3:$A$94<ToolYear,Trends!$G$3:$G$94,1)) -> 180485.6932 | E75: =U75*PRODUCT(IF(Trends!$A$3:$A$94<ToolYear,Trends!$H$3:$H$94,1)) -> 136658.9457 | F75: 0.1744900984 | G75: 0.1339264807 | H75: 0.1067 | I75: 0.0839 | N75: 92 | O75: 0.009 | P75: 0.009 | R75: 13078.32 | S75: 1617 | T75: 158159 | U75: 119753.77 | W75: 0.192735 | X75: 0.14793
A76: 93 | B76: =R76*PRODUCT(IF(Trends!$A$3:$A$94<ToolYear,IF(ExFlg=1,Trends!$C$3:$C$94,Trends!$E$3:$E$94),1)) -> 15415.23373 | C76: =S76*PRODUCT(IF(Trends!$A$3:$A$94<ToolYear,Trends!$F$3:$F$94,1)) -> 1816.919755 | D76: =T76*PRODUCT(IF(Trends!$A$3:$A$94<ToolYear,Trends!$G$3:$G$94,1)) -> 175021.4474 | E76: =U76*PRODUCT(IF(Trends!$A$3:$A$94<ToolYear,Trends!$H$3:$H$94,1)) -> 134319.3543 | F76: 0.189154986 | G76: 0.1471311304 | H76: 0.11538 | I76: 0.08394 | N76: 93 | O76: 0.0088 | P76: 0.0088 | R76: 13078.32 | S76: 1617 | T76: 153370.7 | U76: 117703.594 | W76: 0.20847 | X76: 0.162155
A77: 94 | B77: =R77*PRODUCT(IF(Trends!$A$3:$A$94<ToolYear,IF(ExFlg=1,Trends!$C$3:$C$94,Trends!$E$3:$E$94),1)) -> 15415.23373 | C77: =S77*PRODUCT(IF(Trends!$A$3:$A$94<ToolYear,Trends!$F$3:$F$94,1)) -> 1816.919755 | D77: =T77*PRODUCT(IF(Trends!$A$3:$A$94<ToolYear,Trends!$G$3:$G$94,1)) -> 169557.2017 | E77: =U77*PRODUCT(IF(Trends!$A$3:$A$94<ToolYear,Trends!$H$3:$H$94,1)) -> 131979.7629 | F77: 0.2035444494 | G77: 0.1610197555 | H77: 0.12406 | I77: 0.08398 | N77: 94 | O77: 0.0087 | P77: 0.0087 | R77: 13078.32 | S77: 1617 | T77: 148582.4 | U77: 115653.418 | W77: 0.22408 | X77: 0.177265
A78: 95 | B78: =R78*PRODUCT(IF(Trends!$A$3:$A$94<ToolYear,IF(ExFlg=1,Trends!$C$3:$C$94,Trends!$E$3:$E$94),1)) -> 15415.23373 | C78: =S78*PRODUCT(IF(Trends!$A$3:$A$94<ToolYear,Trends!$F$3:$F$94,1)) -> 1816.919755 | D78: =T78*PRODUCT(IF(Trends!$A$3:$A$94<ToolYear,Trends!$G$3:$G$94,1)) -> 164092.9559 | E78: =U78*PRODUCT(IF(Trends!$A$3:$A$94<ToolYear,Trends!$H$3:$H$94,1)) -> 129640.1715 | F78: 0.218216677 | G78: 0.1766808577 | H78: 0.13274 | I78: 0.08402 | N78: 95 | O78: 0.0085 | P78: 0.0085 | R78: 13078.32 | S78: 1617 | T78: 143794.1 | U78: 113603.242 | W78: 0.2397 | X78: 0.194075
A79: 96 | B79: =R79*PRODUCT(IF(Trends!$A$3:$A$94<ToolYear,IF(ExFlg=1,Trends!$C$3:$C$94,Trends!$E$3:$E$94),1)) -> 15415.23373 | C79: =S79*PRODUCT(IF(Trends!$A$3:$A$94<ToolYear,Trends!$F$3:$F$94,1)) -> 1816.919755 | D79: =T79*PRODUCT(IF(Trends!$A$3:$A$94<ToolYear,Trends!$G$3:$G$94,1)) -> 158628.7101 | E79: =U79*PRODUCT(IF(Trends!$A$3:$A$94<ToolYear,Trends!$H$3:$H$94,1)) -> 127300.5801 | F79: 0.2336943266 | G79: 0.1944884719 | H79: 0.14142 | I79: 0.08406 | N79: 96 | O79: 0.0081 | P79: 0.0081 | R79: 13078.32 | S79: 1617 | T79: 139005.8 | U79: 111553.066 | W79: 0.255565 | X79: 0.21269
A80: 97 | B80: =R80*PRODUCT(IF(Trends!$A$3:$A$94<ToolYear,IF(ExFlg=1,Trends!$C$3:$C$94,Trends!$E$3:$E$94),1)) -> 15415.23373 | C80: =S80*PRODUCT(IF(Trends!$A$3:$A$94<ToolYear,Trends!$F$3:$F$94,1)) -> 1816.919755 | D80: =T80*PRODUCT(IF(Trends!$A$3:$A$94<ToolYear,Trends!$G$3:$G$94,1)) -> 153164.4644 | E80: =U80*PRODUCT(IF(Trends!$A$3:$A$94<ToolYear,Trends!$H$3:$H$94,1)) -> 124960.9887 | F80: 0.2497870695 | G80: 0.2132909977 | H80: 0.1501 | I80: 0.0841 | N80: 97 | O80: 0.0077 | P80: 0.0077 | R80: 13078.32 | S80: 1617 | T80: 134217.5 | U80: 109502.89 | W80: 0.271955 | X80: 0.23222
A81: 98 | B81: =R81*PRODUCT(IF(Trends!$A$3:$A$94<ToolYear,IF(ExFlg=1,Trends!$C$3:$C$94,Trends!$E$3:$E$94),1)) -> 15415.23373 | C81: =S81*PRODUCT(IF(Trends!$A$3:$A$94<ToolYear,Trends!$F$3:$F$94,1)) -> 1816.919755 | D81: =T81*PRODUCT(IF(Trends!$A$3:$A$94<ToolYear,Trends!$G$3:$G$94,1)) -> 153164.4644 | E81: =U81*PRODUCT(IF(Trends!$A$3:$A$94<ToolYear,Trends!$H$3:$H$94,1)) -> 124960.9887 | F81: 0.267033101 | G81: 0.2331835095 | H81: 0.1501 | I81: 0.0841 | N81: 98 | O81: 0.0072 | P81: 0.0072 | R81: 13078.32 | S81: 1617 | T81: 134217.5 | U81: 109502.89 | W81: 0.289125 | X81: 0.252475
A82: 99 | B82: =R82*PRODUCT(IF(Trends!$A$3:$A$94<ToolYear,IF(ExFlg=1,Trends!$C$3:$C$94,Trends!$E$3:$E$94),1)) -> 15415.23373 | C82: =S82*PRODUCT(IF(Trends!$A$3:$A$94<ToolYear,Trends!$F$3:$F$94,1)) -> 1816.919755 | D82: =T82*PRODUCT(IF(Trends!$A$3:$A$94<ToolYear,Trends!$G$3:$G$94,1)) -> 153164.4644 | E82: =U82*PRODUCT(IF(Trends!$A$3:$A$94<ToolYear,Trends!$H$3:$H$94,1)) -> 124960.9887 | F82: 0.2850009032 | G82: 0.2534918438 | H82: 0.1501 | I82: 0.0841 | N82: 99 | O82: 0.0068 | P82: 0.0068 | R82: 13078.32 | S82: 1617 | T82: 134217.5 | U82: 109502.89 | W82: 0.307215 | X82: 0.27325
A83: 100 | B83: =R83*PRODUCT(IF(Trends!$A$3:$A$94<ToolYear,IF(ExFlg=1,Trends!$C$3:$C$94,Trends!$E$3:$E$94),1)) -> 15415.23373 | C83: =S83*PRODUCT(IF(Trends!$A$3:$A$94<ToolYear,Trends!$F$3:$F$94,1)) -> 1816.919755 | D83: =T83*PRODUCT(IF(Trends!$A$3:$A$94<ToolYear,Trends!$G$3:$G$94,1)) -> 153164.4644 | E83: =U83*PRODUCT(IF(Trends!$A$3:$A$94<ToolYear,Trends!$H$3:$H$94,1)) -> 124960.9887 | F83: 0.303961112 | G83: 0.2742876196 | H83: 0.1501 | I83: 0.0841 | N83: 100 | O83: 0.0064 | P83: 0.0064 | R83: 13078.32 | S83: 1617 | T83: 134217.5 | U83: 109502.89 | W83: 0.326205 | X83: 0.29436
A84: 101 | B84: =R84*PRODUCT(IF(Trends!$A$3:$A$94<ToolYear,IF(ExFlg=1,Trends!$C$3:$C$94,Trends!$E$3:$E$94),1)) -> 15415.23373 | C84: =S84*PRODUCT(IF(Trends!$A$3:$A$94<ToolYear,Trends!$F$3:$F$94,1)) -> 1816.919755 | D84: =T84*PRODUCT(IF(Trends!$A$3:$A$94<ToolYear,Trends!$G$3:$G$94,1)) -> 153164.4644 | E84: =U84*PRODUCT(IF(Trends!$A$3:$A$94<ToolYear,Trends!$H$3:$H$94,1)) -> 124960.9887 | F84: 0.3236871441 | G84: 0.2954028928 | H84: 0.1501 | I84: 0.0841 | N84: 101 | O84: 0.006 | P84: 0.006 | R84: 13078.32 | S84: 1617 | T84: 134217.5 | U84: 109502.89 | W84: 0.34584 | X84: 0.31562
A85: 102 | B85: =R85*PRODUCT(IF(Trends!$A$3:$A$94<ToolYear,IF(ExFlg=1,Trends!$C$3:$C$94,Trends!$E$3:$E$94),1)) -> 15415.23373 | C85: =S85*PRODUCT(IF(Trends!$A$3:$A$94<ToolYear,Trends!$F$3:$F$94,1)) -> 1816.919755 | D85: =T85*PRODUCT(IF(Trends!$A$3:$A$94<ToolYear,Trends!$G$3:$G$94,1)) -> 153164.4644 | E85: =U85*PRODUCT(IF(Trends!$A$3:$A$94<ToolYear,Trends!$H$3:$H$94,1)) -> 124960.9887 | F85: 0.344023072 | G85: 0.3170689198 | H85: 0.1501 | I85: 0.0841 | N85: 102 | O85: 0.0055 | P85: 0.0055 | R85: 13078.32 | S85: 1617 | T85: 134217.5 | U85: 109502.89 | W85: 0.36554 | X85: 0.3369
A86: 103 | B86: =R86*PRODUCT(IF(Trends!$A$3:$A$94<ToolYear,IF(ExFlg=1,Trends!$C$3:$C$94,Trends!$E$3:$E$94),1)) -> 15415.23373 | C86: =S86*PRODUCT(IF(Trends!$A$3:$A$94<ToolYear,Trends!$F$3:$F$94,1)) -> 1816.919755 | D86: =T86*PRODUCT(IF(Trends!$A$3:$A$94<ToolYear,Trends!$G$3:$G$94,1)) -> 153164.4644 | E86: =U86*PRODUCT(IF(Trends!$A$3:$A$94<ToolYear,Trends!$H$3:$H$94,1)) -> 124960.9887 | F86: 0.3638068506 | G86: 0.3384205806 | H86: 0.1501 | I86: 0.0841 | N86: 103 | O86: 0.0051 | P86: 0.0051 | R86: 13078.32 | S86: 1617 | T86: 134217.5 | U86: 109502.89 | W86: 0.384855 | X86: 0.358
A87: 104 | B87: =R87*PRODUCT(IF(Trends!$A$3:$A$94<ToolYear,IF(ExFlg=1,Trends!$C$3:$C$94,Trends!$E$3:$E$94),1)) -> 15415.23373 | C87: =S87*PRODUCT(IF(Trends!$A$3:$A$94<ToolYear,Trends!$F$3:$F$94,1)) -> 1816.919755 | D87: =T87*PRODUCT(IF(Trends!$A$3:$A$94<ToolYear,Trends!$G$3:$G$94,1)) -> 153164.4644 | E87: =U87*PRODUCT(IF(Trends!$A$3:$A$94<ToolYear,Trends!$H$3:$H$94,1)) -> 124960.9887 | F87: 0.3832648593 | G87: 0.3596033697 | H87: 0.1501 | I87: 0.0841 | N87: 104 | O87: 0.0047 | P87: 0.0047 | R87: 13078.32 | S87: 1617 | T87: 134217.5 | U87: 109502.89 | W87: 0.40365 | X87: 0.37873
A88: 105 | B88: =R88*PRODUCT(IF(Trends!$A$3:$A$94<ToolYear,IF(ExFlg=1,Trends!$C$3:$C$94,Trends!$E$3:$E$94),1)) -> 15415.23373 | C88: =S88*PRODUCT(IF(Trends!$A$3:$A$94<ToolYear,Trends!$F$3:$F$94,1)) -> 1816.919755 | D88: =T88*PRODUCT(IF(Trends!$A$3:$A$94<ToolYear,Trends!$G$3:$G$94,1)) -> 153164.4644 | E88: =U88*PRODUCT(IF(Trends!$A$3:$A$94<ToolYear,Trends!$H$3:$H$94,1)) -> 124960.9887 | F88: 0.4022675548 | G88: 0.3804515771 | H88: 0.1501 | I88: 0.0841 | N88: 105 | O88: 0.0043 | P88: 0.0043 | R88: 13078.32 | S88: 1617 | T88: 134217.5 | U88: 109502.89 | W88: 0.421795 | X88: 0.39892
A89: 106 | B89: =R89*PRODUCT(IF(Trends!$A$3:$A$94<ToolYear,IF(ExFlg=1,Trends!$C$3:$C$94,Trends!$E$3:$E$94),1)) -> 15415.23373 | C89: =S89*PRODUCT(IF(Trends!$A$3:$A$94<ToolYear,Trends!$F$3:$F$94,1)) -> 1816.919755 | D89: =T89*PRODUCT(IF(Trends!$A$3:$A$94<ToolYear,Trends!$G$3:$G$94,1)) -> 153164.4644 | E89: =U89*PRODUCT(IF(Trends!$A$3:$A$94<ToolYear,Trends!$H$3:$H$94,1)) -> 124960.9887 | F89: 0.4211719215 | G89: 0.4012490036 | H89: 0.1501 | I89: 0.0841 | N89: 106 | O89: 0.0038 | P89: 0.0038 | R89: 13078.32 | S89: 1617 | T89: 134217.5 | U89: 109502.89 | W89: 0.439185 | X89: 0.41841
A90: 107 | B90: =R90*PRODUCT(IF(Trends!$A$3:$A$94<ToolYear,IF(ExFlg=1,Trends!$C$3:$C$94,Trends!$E$3:$E$94),1)) -> 15415.23373 | C90: =S90*PRODUCT(IF(Trends!$A$3:$A$94<ToolYear,Trends!$F$3:$F$94,1)) -> 1816.919755 | D90: =T90*PRODUCT(IF(Trends!$A$3:$A$94<ToolYear,Trends!$G$3:$G$94,1)) -> 153164.4644 | E90: =U90*PRODUCT(IF(Trends!$A$3:$A$94<ToolYear,Trends!$H$3:$H$94,1)) -> 124960.9887 | F90: 0.4389773318 | G90: 0.4209890235 | H90: 0.1501 | I90: 0.0841 | N90: 107 | O90: 0.0034 | P90: 0.0034 | R90: 13078.32 | S90: 1617 | T90: 134217.5 | U90: 109502.89 | W90: 0.455735 | X90: 0.43706
A91: 108 | B91: =R91*PRODUCT(IF(Trends!$A$3:$A$94<ToolYear,IF(ExFlg=1,Trends!$C$3:$C$94,Trends!$E$3:$E$94),1)) -> 15415.23373 | C91: =S91*PRODUCT(IF(Trends!$A$3:$A$94<ToolYear,Trends!$F$3:$F$94,1)) -> 1816.919755 | D91: =T91*PRODUCT(IF(Trends!$A$3:$A$94<ToolYear,Trends!$G$3:$G$94,1)) -> 153164.4644 | E91: =U91*PRODUCT(IF(Trends!$A$3:$A$94<ToolYear,Trends!$H$3:$H$94,1)) -> 124960.9887 | F91: 0.4560508682 | G91: 0.4399856873 | H91: 0.1501 | I91: 0.0841 | N91: 108 | O91: 0.003 | P91: 0.003 | R91: 13078.32 | S91: 1617 | T91: 134217.5 | U91: 109502.89 | W91: 0.471375 | X91: 0.45477
A92: 109 | B92: =R92*PRODUCT(IF(Trends!$A$3:$A$94<ToolYear,IF(ExFlg=1,Trends!$C$3:$C$94,Trends!$E$3:$E$94),1)) -> 15415.23373 | C92: =S92*PRODUCT(IF(Trends!$A$3:$A$94<ToolYear,Trends!$F$3:$F$94,1)) -> 1816.919755 | D92: =T92*PRODUCT(IF(Trends!$A$3:$A$94<ToolYear,Trends!$G$3:$G$94,1)) -> 153164.4644 | E92: =U92*PRODUCT(IF(Trends!$A$3:$A$94<ToolYear,Trends!$H$3:$H$94,1)) -> 124960.9887 | F92: 0.4723428577 | G92: 0.458140455 | H92: 0.1501 | I92: 0.0841 | N92: 109 | O92: 0.0026 | P92: 0.0026 | R92: 13078.32 | S92: 1617 | T92: 134217.5 | U92: 109502.89 | W92: 0.486065 | X92: 0.47145
A93: 110 | B93: =R93*PRODUCT(IF(Trends!$A$3:$A$94<ToolYear,IF(ExFlg=1,Trends!$C$3:$C$94,Trends!$E$3:$E$94),1)) -> 15415.23373 | C93: =S93*PRODUCT(IF(Trends!$A$3:$A$94<ToolYear,Trends!$F$3:$F$94,1)) -> 1816.919755 | D93: =T93*PRODUCT(IF(Trends!$A$3:$A$94<ToolYear,Trends!$G$3:$G$94,1)) -> 153164.4644 | E93: =U93*PRODUCT(IF(Trends!$A$3:$A$94<ToolYear,Trends!$H$3:$H$94,1)) -> 124960.9887 | F93: 0.4852335776 | G93: 0.4759165379 | H93: 0.1501 | I93: 0.0841 | N93: 110 | O93: 0.0021 | P93: 0.0021 | R93: 13078.32 | S93: 1617 | T93: 134217.5 | U93: 109502.89 | W93: 0.496585 | X93: 0.48705
A94: 111 | B94: =R94*PRODUCT(IF(Trends!$A$3:$A$94<ToolYear,IF(ExFlg=1,Trends!$C$3:$C$94,Trends!$E$3:$E$94),1)) -> 15415.23373 | C94: =S94*PRODUCT(IF(Trends!$A$3:$A$94<ToolYear,Trends!$F$3:$F$94,1)) -> 1816.919755 | D94: =T94*PRODUCT(IF(Trends!$A$3:$A$94<ToolYear,Trends!$G$3:$G$94,1)) -> 153164.4644 | E94: =U94*PRODUCT(IF(Trends!$A$3:$A$94<ToolYear,Trends!$H$3:$H$94,1)) -> 124960.9887 | F94: 0.4907290711 | G94: 0.4907290711 | H94: 0.1501 | I94: 0.0841 | N94: 111 | O94: 0.0017 | P94: 0.0017 | R94: 13078.32 | S94: 1617 | T94: 134217.5 | U94: 109502.89 | W94: 0.5 | X94: 0.5
A95: 112 | B95: =R95*PRODUCT(IF(Trends!$A$3:$A$94<ToolYear,IF(ExFlg=1,Trends!$C$3:$C$94,Trends!$E$3:$E$94),1)) -> 15415.23373 | C95: =S95*PRODUCT(IF(Trends!$A$3:$A$94<ToolYear,Trends!$F$3:$F$94,1)) -> 1816.919755 | D95: =T95*PRODUCT(IF(Trends!$A$3:$A$94<ToolYear,Trends!$G$3:$G$94,1)) -> 153164.4644 | E95: =U95*PRODUCT(IF(Trends!$A$3:$A$94<ToolYear,Trends!$H$3:$H$94,1)) -> 124960.9887 | F95: 0.4928962942 | G95: 0.4928962942 | H95: 0.1501 | I95: 0.0841 | N95: 112 | O95: 0.0013 | P95: 0.0013 | R95: 13078.32 | S95: 1617 | T95: 134217.5 | U95: 109502.89 | W95: 0.5 | X95: 0.5
A96: 113 | B96: =R96*PRODUCT(IF(Trends!$A$3:$A$94<ToolYear,IF(ExFlg=1,Trends!$C$3:$C$94,Trends!$E$3:$E$94),1)) -> 15415.23373 | C96: =S96*PRODUCT(IF(Trends!$A$3:$A$94<ToolYear,Trends!$F$3:$F$94,1)) -> 1816.919755 | D96: =T96*PRODUCT(IF(Trends!$A$3:$A$94<ToolYear,Trends!$G$3:$G$94,1)) -> 153164.4644 | E96: =U96*PRODUCT(IF(Trends!$A$3:$A$94<ToolYear,Trends!$H$3:$H$94,1)) -> 124960.9887 | F96: 0.495072215 | G96: 0.495072215 | H96: 0.1501 | I96: 0.0841 | N96: 113 | O96: 0.0009 | P96: 0.0009 | R96: 13078.32 | S96: 1617 | T96: 134217.5 | U96: 109502.89 | W96: 0.5 | X96: 0.5
A97: 114 | B97: =R97*PRODUCT(IF(Trends!$A$3:$A$94<ToolYear,IF(ExFlg=1,Trends!$C$3:$C$94,Trends!$E$3:$E$94),1)) -> 15415.23373 | C97: =S97*PRODUCT(IF(Trends!$A$3:$A$94<ToolYear,Trends!$F$3:$F$94,1)) -> 1816.919755 | D97: =T97*PRODUCT(IF(Trends!$A$3:$A$94<ToolYear,Trends!$G$3:$G$94,1)) -> 153164.4644 | E97: =U97*PRODUCT(IF(Trends!$A$3:$A$94<ToolYear,Trends!$H$3:$H$94,1)) -> 124960.9887 | F97: 0.4978043947 | G97: 0.4978043947 | H97: 0.1501 | I97: 0.0841 | N97: 114 | O97: 0.0004 | P97: 0.0004 | R97: 13078.32 | S97: 1617 | T97: 134217.5 | U97: 109502.89 | W97: 0.5 | X97: 0.5
A98: 115 | B98: =R98*PRODUCT(IF(Trends!$A$3:$A$94<ToolYear,IF(ExFlg=1,Trends!$C$3:$C$94,Trends!$E$3:$E$94),1)) -> 15415.23373 | C98: =S98*PRODUCT(IF(Trends!$A$3:$A$94<ToolYear,Trends!$F$3:$F$94,1)) -> 1816.919755 | D98: =T98*PRODUCT(IF(Trends!$A$3:$A$94<ToolYear,Trends!$G$3:$G$94,1)) -> 153164.4644 | E98: =U98*PRODUCT(IF(Trends!$A$3:$A$94<ToolYear,Trends!$H$3:$H$94,1)) -> 124960.9887 | F98: 0.5 | G98: 0.5 | H98: 0.1501 | I98: 0.0841 | N98: 115 | O98: 0 | P98: 0 | R98: 13078.32 | S98: 1617 | T98: 134217.5 | U98: 109502.89 | W98: 0.5 | X98: 0.5
A99: 116 | B99: =R99*PRODUCT(IF(Trends!$A$3:$A$94<ToolYear,IF(ExFlg=1,Trends!$C$3:$C$94,Trends!$E$3:$E$94),1)) -> 15415.23373 | C99: =S99*PRODUCT(IF(Trends!$A$3:$A$94<ToolYear,Trends!$F$3:$F$94,1)) -> 1816.919755 | D99: =T99*PRODUCT(IF(Trends!$A$3:$A$94<ToolYear,Trends!$G$3:$G$94,1)) -> 153164.4644 | E99: =U99*PRODUCT(IF(Trends!$A$3:$A$94<ToolYear,Trends!$H$3:$H$94,1)) -> 124960.9887 | F99: 0.5 | G99: 0.5 | H99: 0.1501 | I99: 0.0841 | N99: 116 | O99: 0 | P99: 0 | R99: 13078.32 | S99: 1617 | T99: 134217.5 | U99: 109502.89 | W99: 0.5 | X99: 0.5
A100: 117 | B100: =R100*PRODUCT(IF(Trends!$A$3:$A$94<ToolYear,IF(ExFlg=1,Trends!$C$3:$C$94,Trends!$E$3:$E$94),1)) -> 15415.23373 | C100: =S100*PRODUCT(IF(Trends!$A$3:$A$94<ToolYear,Trends!$F$3:$F$94,1)) -> 1816.919755 | D100: =T100*PRODUCT(IF(Trends!$A$3:$A$94<ToolYear,Trends!$G$3:$G$94,1)) -> 153164.4644 | E100: =U100*PRODUCT(IF(Trends!$A$3:$A$94<ToolYear,Trends!$H$3:$H$94,1)) -> 124960.9887 | F100: 0.5 | G100: 0.5 | H100: 0.1501 | I100: 0.0841 | N100: 117 | O100: 0 | P100: 0 | R100: 13078.32 | S100: 1617 | T100: 134217.5 | U100: 109502.89 | W100: 0.5 | X100: 0.5
A101: 118 | B101: =R101*PRODUCT(IF(Trends!$A$3:$A$94<ToolYear,IF(ExFlg=1,Trends!$C$3:$C$94,Trends!$E$3:$E$94),1)) -> 15415.23373 | C101: =S101*PRODUCT(IF(Trends!$A$3:$A$94<ToolYear,Trends!$F$3:$F$94,1)) -> 1816.919755 | D101: =T101*PRODUCT(IF(Trends!$A$3:$A$94<ToolYear,Trends!$G$3:$G$94,1)) -> 153164.4644 | E101: =U101*PRODUCT(IF(Trends!$A$3:$A$94<ToolYear,Trends!$H$3:$H$94,1)) -> 124960.9887 | F101: 0.5 | G101: 0.5 | H101: 0.1501 | I101: 0.0841 | N101: 118 | O101: 0 | P101: 0 | R101: 13078.32 | S101: 1617 | T101: 134217.5 | U101: 109502.89 | W101: 0.5 | X101: 0.5
A102: 119 | B102: =R102*PRODUCT(IF(Trends!$A$3:$A$94<ToolYear,IF(ExFlg=1,Trends!$C$3:$C$94,Trends!$E$3:$E$94),1)) -> 15415.23373 | C102: =S102*PRODUCT(IF(Trends!$A$3:$A$94<ToolYear,Trends!$F$3:$F$94,1)) -> 1816.919755 | D102: =T102*PRODUCT(IF(Trends!$A$3:$A$94<ToolYear,Trends!$G$3:$G$94,1)) -> 153164.4644 | E102: =U102*PRODUCT(IF(Trends!$A$3:$A$94<ToolYear,Trends!$H$3:$H$94,1)) -> 124960.9887 | F102: 0.5 | G102: 0.5 | H102: 0.1501 | I102: 0.0841 | N102: 119 | O102: 0 | P102: 0 | R102: 13078.32 | S102: 1617 | T102: 134217.5 | U102: 109502.89 | W102: 0.5 | X102: 0.5
A103: 120 | B103: =R103*PRODUCT(IF(Trends!$A$3:$A$94<ToolYear,IF(ExFlg=1,Trends!$C$3:$C$94,Trends!$E$3:$E$94),1)) -> 15415.23373 | C103: =S103*PRODUCT(IF(Trends!$A$3:$A$94<ToolYear,Trends!$F$3:$F$94,1)) -> 1816.919755 | D103: =T103*PRODUCT(IF(Trends!$A$3:$A$94<ToolYear,Trends!$G$3:$G$94,1)) -> 153164.4644 | E103: =U103*PRODUCT(IF(Trends!$A$3:$A$94<ToolYear,Trends!$H$3:$H$94,1)) -> 124960.9887 | F103: 1 | G103: 1 | H103: 0.1501 | I103: 0.0841 | N103: 120 | O103: 0 | P103: 0 | R103: 13078.32 | S103: 1617 | T103: 134217.5 | U103: 109502.89 | W103: 1 | X103: 1

Sheet Trends (hidden)
A1: Beginning of | B1: Costs Trends
A2: Year | B2: Placeholder | C2: Placeholder | D2: Medical No Excise Tax - Age<65 | E2: Medical No Excise Tax - Age>=65 | F2: Medicare Part B | G2: LTC Inst. | H2: LTC Non-Inst.
A3: =ValYear -> 2018 | B3: =D3 -> 1.064 | C3: =E3 -> 1.06 | D3: 1.064 | E3: 1.06 | F3: 1.026 | G3: 1.045 | H3: 1.045 | J3: Trends Source:
A4: =1+A3 -> 2019 | B4: =D4 -> 1.061 | C4: =E4 -> 1.056 | D4: 1.061 | E4: 1.056 | F4: 1.047 | G4: 1.045 | H4: 1.045 | J4: Medical, Medicare, and LTC Costs
A5: 2020 | B5: 1.054 | C5: 1.053 | D5: 1.054 | E5: 1.053 | F5: 1.046 | G5: 1.045 | H5: 1.045 | J5: 2018 Milliman Letter
A6: 2021 | B6: 1.051 | C6: 1.051 | D6: 1.051 | E6: 1.051 | F6: 1.049 | G6: 1.045 | H6: 1.045
A7: 2022 | B7: 1.051 | C7: 1.051 | D7: 1.051 | E7: 1.051 | F7: 1.059 | G7: 1.045 | H7: 1.045
A8: 2023 | B8: 1.051 | C8: 1.051 | D8: 1.051 | E8: 1.051 | F8: 1.057 | G8: 1.045 | H8: 1.045
A9: 2024 | B9: 1.051 | C9: 1.051 | D9: 1.051 | E9: 1.051 | F9: 1.05 | G9: 1.045 | H9: 1.045
A10: 2025 | B10: 1.051 | C10: 1.051 | D10: 1.051 | E10: 1.051 | F10: 1.054 | G10: 1.045 | H10: 1.045
A11: 2026 | B11: 1.051 | C11: 1.051 | D11: 1.051 | E11: 1.051 | F11: 1.059 | G11: 1.045 | H11: 1.045
A12: 2027 | B12: 1.051 | C12: 1.051 | D12: 1.051 | E12: 1.051 | F12: 1.056 | G12: 1.045 | H12: 1.045
A13: 2028 | B13: 1.051 | C13: 1.051 | D13: 1.051 | E13: 1.051 | F13: 1.056 | G13: 1.045 | H13: 1.045
A14: 2029 | B14: 1.051 | C14: 1.051 | D14: 1.051 | E14: 1.051 | F14: 1.053 | G14: 1.045 | H14: 1.045
A15: 2030 | B15: 1.051 | C15: 1.051 | D15: 1.051 | E15: 1.051 | F15: 1.051 | G15: 1.045 | H15: 1.045
A16: 2031 | B16: 1.051 | C16: 1.052 | D16: 1.051 | E16: 1.052 | F16: 1.051 | G16: 1.045 | H16: 1.045
A17: 2032 | B17: 1.051 | C17: 1.052 | D17: 1.051 | E17: 1.052 | F17: 1.051 | G17: 1.045 | H17: 1.045
A18: 2033 | B18: 1.051 | C18: 1.052 | D18: 1.051 | E18: 1.052 | F18: 1.051 | G18: 1.045 | H18: 1.045
A19: 2034 | B19: 1.051 | C19: 1.052 | D19: 1.051 | E19: 1.052 | F19: 1.051 | G19: 1.045 | H19: 1.045
A20: 2035 | B20: 1.051 | C20: 1.052 | D20: 1.051 | E20: 1.052 | F20: 1.051 | G20: 1.045 | H20: 1.045
A21: 2036 | B21: 1.051 | C21: 1.052 | D21: 1.051 | E21: 1.052 | F21: 1.051 | G21: 1.045 | H21: 1.045
A22: 2037 | B22: 1.051 | C22: 1.052 | D22: 1.051 | E22: 1.052 | F22: 1.051 | G22: 1.045 | H22: 1.045
A23: 2038 | B23: 1.051 | C23: 1.052 | D23: 1.051 | E23: 1.052 | F23: 1.051 | G23: 1.045 | H23: 1.045
A24: 2039 | B24: 1.051 | C24: 1.052 | D24: 1.051 | E24: 1.052 | F24: 1.048 | G24: 1.045 | H24: 1.045
A25: 2040 | B25: 1.051 | C25: 1.053 | D25: 1.051 | E25: 1.053 | F25: 1.045 | G25: 1.045 | H25: 1.045
A26: 2041 | B26: 1.051 | C26: 1.053 | D26: 1.051 | E26: 1.053 | F26: 1.045 | G26: 1.045 | H26: 1.045
A27: 2042 | B27: 1.051 | C27: 1.053 | D27: 1.051 | E27: 1.053 | F27: 1.045 | G27: 1.045 | H27: 1.045
A28: 2043 | B28: 1.051 | C28: 1.053 | D28: 1.051 | E28: 1.053 | F28: 1.045 | G28: 1.045 | H28: 1.045
A29: 2044 | B29: 1.051 | C29: 1.053 | D29: 1.051 | E29: 1.053 | F29: 1.045 | G29: 1.045 | H29: 1.045
A30: 2045 | B30: 1.051 | C30: 1.052 | D30: 1.051 | E30: 1.052 | F30: 1.045 | G30: 1.045 | H30: 1.045
A31: 2046 | B31: 1.051 | C31: 1.052 | D31: 1.051 | E31: 1.052 | F31: 1.045 | G31: 1.045 | H31: 1.045
A32: 2047 | B32: 1.051 | C32: 1.051 | D32: 1.051 | E32: 1.051 | F32: 1.045 | G32: 1.045 | H32: 1.045
A33: 2048 | B33: 1.051 | C33: 1.051 | D33: 1.051 | E33: 1.051 | F33: 1.045 | G33: 1.045 | H33: 1.045
A34: 2049 | B34: 1.051 | C34: 1.051 | D34: 1.051 | E34: 1.051 | F34: 1.045 | G34: 1.045 | H34: 1.045
A35: 2050 | B35: 1.051 | C35: 1.051 | D35: 1.051 | E35: 1.051 | F35: 1.044 | G35: 1.045 | H35: 1.045
A36: 2051 | B36: 1.051 | C36: 1.051 | D36: 1.051 | E36: 1.051 | F36: 1.044 | G36: 1.045 | H36: 1.045
A37: =1+A36 -> 2052 | B37: 1.051 | C37: 1.05 | D37: 1.051 | E37: 1.05 | F37: 1.044 | G37: 1.045 | H37: 1.045
A38: 2053 | B38: 1.051 | C38: 1.05 | D38: 1.051 | E38: 1.05 | F38: 1.044 | G38: 1.045 | H38: 1.045
A39: 2054 | B39: 1.051 | C39: 1.05 | D39: 1.051 | E39: 1.05 | F39: 1.044 | G39: 1.045 | H39: 1.045
A40: 2055 | B40: 1.051 | C40: 1.05 | D40: 1.051 | E40: 1.05 | F40: 1.044 | G40: 1.045 | H40: 1.045
A41: 2056 | B41: 1.051 | C41: 1.05 | D41: 1.051 | E41: 1.05 | F41: 1.044 | G41: 1.045 | H41: 1.045
A42: 2057 | B42: 1.051 | C42: 1.05 | D42: 1.051 | E42: 1.05 | F42: 1.044 | G42: 1.045 | H42: 1.045
A43: 2058 | B43: 1.051 | C43: 1.05 | D43: 1.051 | E43: 1.05 | F43: 1.044 | G43: 1.045 | H43: 1.045
A44: 2059 | B44: 1.051 | C44: 1.05 | D44: 1.051 | E44: 1.05 | F44: 1.044 | G44: 1.045 | H44: 1.045
A45: 2060 | B45: 1.051 | C45: 1.05 | D45: 1.051 | E45: 1.05 | F45: 1.044 | G45: 1.045 | H45: 1.045
A46: 2061 | B46: 1.051 | C46: 1.05 | D46: 1.051 | E46: 1.05 | F46: 1.044 | G46: 1.045 | H46: 1.045
A47: 2062 | B47: 1.051 | C47: 1.05 | D47: 1.051 | E47: 1.05 | F47: 1.044 | G47: 1.045 | H47: 1.045
A48: 2063 | B48: 1.051 | C48: 1.05 | D48: 1.051 | E48: 1.05 | F48: 1.044 | G48: 1.045 | H48: 1.045
A49: 2064 | B49: 1.051 | C49: 1.049 | D49: 1.051 | E49: 1.049 | F49: 1.044 | G49: 1.045 | H49: 1.045
A50: 2065 | B50: 1.051 | C50: 1.048 | D50: 1.051 | E50: 1.048 | F50: 1.044 | G50: 1.045 | H50: 1.045
A51: 2066 | B51: 1.051 | C51: 1.048 | D51: 1.051 | E51: 1.048 | F51: 1.044 | G51: 1.045 | H51: 1.045
A52: 2067 | B52: 1.051 | C52: 1.047 | D52: 1.051 | E52: 1.047 | F52: 1.044 | G52: 1.045 | H52: 1.045
A53: 2068 | B53: 1.051 | C53: 1.046 | D53: 1.051 | E53: 1.046 | F53: 1.044 | G53: 1.045 | H53: 1.045
A54: 2069 | B54: 1.051 | C54: 1.046 | D54: 1.051 | E54: 1.046 | F54: 1.044 | G54: 1.045 | H54: 1.045
A55: 2070 | B55: 1.051 | C55: 1.045 | D55: 1.051 | E55: 1.045 | F55: 1.044 | G55: 1.045 | H55: 1.045
A56: 2071 | B56: 1.051 | C56: 1.044 | D56: 1.051 | E56: 1.044 | F56: 1.044 | G56: 1.045 | H56: 1.045
A57: 2072 | B57: 1.051 | C57: 1.044 | D57: 1.051 | E57: 1.044 | F57: 1.044 | G57: 1.045 | H57: 1.045
A58: 2073 | B58: 1.051 | C58: 1.043 | D58: 1.051 | E58: 1.043 | F58: 1.044 | G58: 1.045 | H58: 1.045
A59: 2074 | B59: 1.051 | C59: 1.043 | D59: 1.051 | E59: 1.043 | F59: 1.044 | G59: 1.045 | H59: 1.045
A60: 2075 | B60: 1.051 | C60: 1.043 | D60: 1.051 | E60: 1.043 | F60: 1.044 | G60: 1.045 | H60: 1.045
A61: 2076 | B61: 1.051 | C61: 1.043 | D61: 1.051 | E61: 1.043 | F61: 1.044 | G61: 1.045 | H61: 1.045
A62: 2077 | B62: 1.051 | C62: 1.043 | D62: 1.051 | E62: 1.043 | F62: 1.044 | G62: 1.045 | H62: 1.045
A63: 2078 | B63: 1.051 | C63: 1.043 | D63: 1.051 | E63: 1.043 | F63: 1.044 | G63: 1.045 | H63: 1.045
A64: 2079 | B64: 1.051 | C64: 1.043 | D64: 1.051 | E64: 1.043 | F64: 1.043 | G64: 1.045 | H64: 1.045
A65: 2080 | B65: 1.051 | C65: 1.043 | D65: 1.051 | E65: 1.043 | F65: 1.043 | G65: 1.045 | H65: 1.045
A66: 2081 | B66: 1.051 | C66: 1.043 | D66: 1.051 | E66: 1.043 | F66: 1.043 | G66: 1.045 | H66: 1.045
A67: 2082 | B67: 1.051 | C67: 1.043 | D67: 1.051 | E67: 1.043 | F67: 1.043 | G67: 1.045 | H67: 1.045
A68: 2083 | B68: =D68 -> 1.051 | C68: =E68 -> 1.043 | D68: 1.051 | E68: 1.043 | F68: 1.043 | G68: 1.045 | H68: 1.045
A69: =1+A68 -> 2084 | B69: 1.051 | C69: 1.043 | D69: 1.051 | E69: 1.043 | F69: 1.043 | G69: 1.045 | H69: 1.045
A70: 2085 | B70: 1.051 | C70: 1.043 | D70: 1.051 | E70: 1.043 | F70: 1.043 | G70: 1.045 | H70: 1.045
A71: 2086 | B71: 1.051 | C71: 1.043 | D71: 1.051 | E71: 1.043 | F71: 1.043 | G71: 1.045 | H71: 1.045
A72: 2087 | B72: 1.051 | C72: 1.043 | D72: 1.051 | E72: 1.043 | F72: 1.043 | G72: 1.045 | H72: 1.045
A73: 2088 | B73: 1.051 | C73: 1.043 | D73: 1.051 | E73: 1.043 | F73: 1.043 | G73: 1.045 | H73: 1.045
A74: 2089 | B74: 1.051 | C74: 1.043 | D74: 1.051 | E74: 1.043 | F74: 1.043 | G74: 1.045 | H74: 1.045
A75: 2090 | B75: 1.051 | C75: 1.043 | D75: 1.051 | E75: 1.043 | F75: 1.043 | G75: 1.045 | H75: 1.045
A76: 2091 | B76: 1.051 | C76: 1.043 | D76: 1.051 | E76: 1.043 | F76: 1.043 | G76: 1.045 | H76: 1.045
A77: 2092 | B77: 1.051 | C77: 1.043 | D77: 1.051 | E77: 1.043 | F77: 1.043 | G77: 1.045 | H77: 1.045
A78: 2093 | B78: 1.051 | C78: 1.043 | D78: 1.051 | E78: 1.043 | F78: 1.043 | G78: 1.045 | H78: 1.045
A79: 2094 | B79: 1.051 | C79: 1.043 | D79: 1.051 | E79: 1.043 | F79: 1.043 | G79: 1.045 | H79: 1.045
A80: 2095 | B80: 1.051 | C80: 1.043 | D80: 1.051 | E80: 1.043 | F80: 1.043 | G80: 1.045 | H80: 1.045
A81: 2096 | B81: 1.051 | C81: 1.043 | D81: 1.051 | E81: 1.043 | F81: 1.043 | G81: 1.045 | H81: 1.045
A82: 2097 | B82: 1.051 | C82: 1.043 | D82: 1.051 | E82: 1.043 | F82: 1.043 | G82: 1.045 | H82: 1.045
A83: 2098 | B83: 1.051 | C83: 1.043 | D83: 1.051 | E83: 1.043 | F83: 1.043 | G83: 1.045 | H83: 1.045
A84: 2099 | B84: 1.051 | C84: 1.043 | D84: 1.051 | E84: 1.043 | F84: 1.043 | G84: 1.045 | H84: 1.045
A85: 2100 | B85: 1.051 | C85: 1.043 | D85: 1.051 | E85: 1.043 | F85: 1.043 | G85: 1.045 | H85: 1.045
A86: 2101 | B86: 1.051 | C86: 1.043 | D86: 1.051 | E86: 1.043 | F86: 1.043 | G86: 1.045 | H86: 1.045
A87: 2102 | B87: 1.051 | C87: 1.043 | D87: 1.051 | E87: 1.043 | F87: 1.043 | G87: 1.045 | H87: 1.045
A88: 2103 | B88: 1.051 | C88: 1.043 | D88: 1.051 | E88: 1.043 | F88: 1.043 | G88: 1.045 | H88: 1.045
A89: 2104 | B89: 1.051 | C89: 1.043 | D89: 1.051 | E89: 1.043 | F89: 1.043 | G89: 1.045 | H89: 1.045
A90: 2105 | B90: 1.051 | C90: 1.043 | D90: 1.051 | E90: 1.043 | F90: 1.043 | G90: 1.045 | H90: 1.045
A91: 2106 | B91: 1.051 | C91: 1.043 | D91: 1.051 | E91: 1.043 | F91: 1.043 | G91: 1.045 | H91: 1.045
A92: 2107 | B92: 1.051 | C92: 1.043 | D92: 1.051 | E92: 1.043 | F92: 1.043 | G92: 1.045 | H92: 1.045
A93: 2108 | B93: 1.051 | C93: 1.043 | D93: 1.051 | E93: 1.043 | F93: 1.043 | G93: 1.045 | H93: 1.045
A94: 2109 | B94: 1.051 | C94: 1.043 | D94: 1.051 | E94: 1.043 | F94: 1.043 | G94: 1.045 | H94: 1.045
